Body Name,Date Paid,Transaction Number,Amount,Supplier Name,Supplier Type,Expense Area,Cost Centre Description,Expense Type
Cambridgeshire County Council,02-Nov-22,51301873018,"-53,562.44",ATKINS LTD,COMPANY,Guided Busway - Litigation costs,Guided Bus,External Legal Fees
Cambridgeshire County Council,02-Nov-22,51301802183,"-19,098.00",E2BN,TRADE SUPPLIER,ICT Service,ICT Service Eastnet,Computer software - annual licence agreement
Cambridgeshire County Council,02-Nov-22,51301878025,"-15,800.00",Keys PCE Ltd,CARE ESTABLISHMENT,LAC Placements,Placements - residential homes,Agency Placements - In County
Cambridgeshire County Council,02-Nov-22,51301878034,"-15,800.00",Keys PCE Ltd,CARE ESTABLISHMENT,LAC Placements,Placements - residential homes,Agency Placements - Out of  County
Cambridgeshire County Council,02-Nov-22,51301878028,"-15,800.00",Keys PCE Ltd,CARE ESTABLISHMENT,LAC Placements,Placements - residential homes,Agency Placements - Out of  County
Cambridgeshire County Council,02-Nov-22,51301878037,"-15,800.00",Keys PCE Ltd,CARE ESTABLISHMENT,LAC Placements,Placements - residential homes,Agency Placements - Out of  County
Cambridgeshire County Council,02-Nov-22,51301878022,"-15,800.00",Keys PCE Ltd,CARE ESTABLISHMENT,LAC Placements,Placements - residential homes,Agency Placements - In County
Cambridgeshire County Council,02-Nov-22,51301878031,"-15,800.00",Keys PCE Ltd,CARE ESTABLISHMENT,LAC Placements,Placements - residential disability,Agency Placements - Out of  County
Cambridgeshire County Council,02-Nov-22,51301877957,"-5,796.00",THE CAMBRIDGE NURSING CENTRE,CARE ESTABLISHMENT,OPPD - Cost of Care - City South - Over 65,Older People - City & South - Care,Nursing Care
Cambridgeshire County Council,02-Nov-22,51301877957,"-5,796.00",THE CAMBRIDGE NURSING CENTRE,CARE ESTABLISHMENT,OPPD - Cost of Care - City South - Over 65,Older People - City & South - Care,Nursing Care
Cambridgeshire County Council,02-Nov-22,51301877957,"-5,796.00",THE CAMBRIDGE NURSING CENTRE,CARE ESTABLISHMENT,OPPD - Cost of Care - City South - Over 65,Older People - City & South - Care,Nursing Care
Cambridgeshire County Council,02-Nov-22,51301877957,"-5,796.00",THE CAMBRIDGE NURSING CENTRE,CARE ESTABLISHMENT,OPPD - Cost of Care - City South - Over 65,Older People - City & South - Care,Nursing Care
Cambridgeshire County Council,02-Nov-22,51301877957,"-5,796.00",THE CAMBRIDGE NURSING CENTRE,CARE ESTABLISHMENT,OPPD - Cost of Care - City South - Over 65,Older People - City & South - Care,Nursing Care
Cambridgeshire County Council,02-Nov-22,51301877957,"-5,796.00",THE CAMBRIDGE NURSING CENTRE,CARE ESTABLISHMENT,OPPD - Cost of Care - City South - Over 65,Older People - City & South - Care,Nursing Care
Cambridgeshire County Council,02-Nov-22,51301877957,"-5,796.00",THE CAMBRIDGE NURSING CENTRE,CARE ESTABLISHMENT,OPPD - Cost of Care - City South - Over 65,Older People - City & South - Care,Nursing Care
Cambridgeshire County Council,02-Nov-22,51301877957,"-5,796.00",THE CAMBRIDGE NURSING CENTRE,CARE ESTABLISHMENT,OPPD - Cost of Care - City South - Over 65,Older People - City & South - Care,Nursing Care
Cambridgeshire County Council,02-Nov-22,51301877957,"-5,796.00",THE CAMBRIDGE NURSING CENTRE,CARE ESTABLISHMENT,OPPD - Cost of Care - City South - Over 65,Older People - City & South - Care,Nursing Care
Cambridgeshire County Council,02-Nov-22,51301877957,"-5,796.00",THE CAMBRIDGE NURSING CENTRE,CARE ESTABLISHMENT,OPPD - Cost of Care - City South - Over 65,Older People - City & South - Care,Nursing Care
Cambridgeshire County Council,02-Nov-22,51301877957,"-5,796.00",THE CAMBRIDGE NURSING CENTRE,CARE ESTABLISHMENT,OPPD - Cost of Care - City South - Over 65,Older People - City & South - Care,Nursing Care
Cambridgeshire County Council,02-Nov-22,51301877957,"-5,796.00",THE CAMBRIDGE NURSING CENTRE,CARE ESTABLISHMENT,OPPD - Cost of Care - City South - Over 65,Older People - City & South - Care,Nursing Care
Cambridgeshire County Council,02-Nov-22,51301877957,"-5,796.00",THE CAMBRIDGE NURSING CENTRE,CARE ESTABLISHMENT,OPPD - Cost of Care - City South - Over 65,Older People - City & South - Care,Nursing Care
Cambridgeshire County Council,02-Nov-22,51301877957,"-5,796.00",THE CAMBRIDGE NURSING CENTRE,CARE ESTABLISHMENT,OPPD - Cost of Care - City South - Over 65,Older People - City & South - Care,Nursing Care
Cambridgeshire County Council,02-Nov-22,51301877957,"-5,796.00",THE CAMBRIDGE NURSING CENTRE,CARE ESTABLISHMENT,OPPD - Cost of Care - City South - Over 65,Older People - City & South - Care,Nursing Care
Cambridgeshire County Council,02-Nov-22,51301877957,"-5,796.00",THE CAMBRIDGE NURSING CENTRE,CARE ESTABLISHMENT,OPPD - Cost of Care - City South - Over 65,Older People - City & South - Care,Nursing Care
Cambridgeshire County Council,02-Nov-22,51301877957,"-5,796.00",THE CAMBRIDGE NURSING CENTRE,CARE ESTABLISHMENT,OPPD - Cost of Care - City South - Over 65,Older People - City & South - Care,Nursing Care
Cambridgeshire County Council,02-Nov-22,51301877957,"-5,796.00",THE CAMBRIDGE NURSING CENTRE,CARE ESTABLISHMENT,OPPD - Cost of Care - City South - Over 65,Older People - City & South - Care,Nursing Care
Cambridgeshire County Council,02-Nov-22,51301877957,"-5,796.00",THE CAMBRIDGE NURSING CENTRE,CARE ESTABLISHMENT,OPPD - Cost of Care - City South - Over 65,Older People - City & South - Care,Nursing Care
Cambridgeshire County Council,02-Nov-22,51301877957,"-5,796.00",THE CAMBRIDGE NURSING CENTRE,CARE ESTABLISHMENT,OPPD - Cost of Care - City South - Over 65,Older People - City & South - Care,Nursing Care
Cambridgeshire County Council,02-Nov-22,51301877957,"-4,968.00",THE CAMBRIDGE NURSING CENTRE,CARE ESTABLISHMENT,OPPD - Cost of Care - City South - Over 65,Older People - City & South - Care,Nursing Care
Cambridgeshire County Council,02-Nov-22,51301877957,"-4,731.43",THE CAMBRIDGE NURSING CENTRE,CARE ESTABLISHMENT,OPPD - Cost of Care - City South - Over 65,Older People - City & South - Care,Nursing Care
Cambridgeshire County Council,02-Nov-22,51301877957,"-4,140.00",THE CAMBRIDGE NURSING CENTRE,CARE ESTABLISHMENT,OPPD - Cost of Care - City South - Over 65,Older People - City & South - Care,Nursing Care
Cambridgeshire County Council,02-Nov-22,51301877957,"-3,785.14",THE CAMBRIDGE NURSING CENTRE,CARE ESTABLISHMENT,OPPD - Cost of Care - City South - Over 65,Older People - City & South - Care,Nursing Care
Cambridgeshire County Council,02-Nov-22,51301877957,"-3,436.20",THE CAMBRIDGE NURSING CENTRE,CARE ESTABLISHMENT,OPPD - Cost of Care - City South - Over 65,Older People - City & South - Care,Nursing Care
Cambridgeshire County Council,02-Nov-22,51301877957,"-3,436.20",THE CAMBRIDGE NURSING CENTRE,CARE ESTABLISHMENT,OPPD - Cost of Care - City South - Over 65,Older People - City & South - Care,Nursing Care
Cambridgeshire County Council,02-Nov-22,51301877957,"-3,436.20",THE CAMBRIDGE NURSING CENTRE,CARE ESTABLISHMENT,OPPD - Cost of Care - City South - Over 65,Older People - City & South - Care,Nursing Care
Cambridgeshire County Council,02-Nov-22,51301877957,"-3,436.20",THE CAMBRIDGE NURSING CENTRE,CARE ESTABLISHMENT,OPPD - Cost of Care - City South - Over 65,Older People - City & South - Care,Nursing Care
Cambridgeshire County Council,02-Nov-22,51301877957,"-3,436.20",THE CAMBRIDGE NURSING CENTRE,CARE ESTABLISHMENT,OPPD - Cost of Care - City South - Over 65,Older People - City & South - Care,Nursing Care
Cambridgeshire County Council,02-Nov-22,51301877957,"-3,436.20",THE CAMBRIDGE NURSING CENTRE,CARE ESTABLISHMENT,OPPD - Cost of Care - City South - Over 65,Older People - City & South - Care,Nursing Care
Cambridgeshire County Council,02-Nov-22,51301877957,"-3,436.20",THE CAMBRIDGE NURSING CENTRE,CARE ESTABLISHMENT,OPPD - Cost of Care - City South - Over 65,Older People - City & South - Care,Nursing Care
Cambridgeshire County Council,02-Nov-22,51301877957,"-3,425.85",THE CAMBRIDGE NURSING CENTRE,CARE ESTABLISHMENT,OPPD - Cost of Care - City South - Over 65,Older People - City & South - Care,Nursing Care
Cambridgeshire County Council,02-Nov-22,51301877957,"-3,425.85",THE CAMBRIDGE NURSING CENTRE,CARE ESTABLISHMENT,OPPD - Cost of Care - City South - Over 65,Older People - City & South - Care,Nursing Care
Cambridgeshire County Council,02-Nov-22,51301877957,"-3,425.85",THE CAMBRIDGE NURSING CENTRE,CARE ESTABLISHMENT,OPPD - Cost of Care - City South - Over 65,Older People - City & South - Care,Nursing Care
Cambridgeshire County Council,02-Nov-22,51301877957,"-3,425.85",THE CAMBRIDGE NURSING CENTRE,CARE ESTABLISHMENT,OPPD - Cost of Care - City South - Over 65,Older People - City & South - Care,Nursing Care
Cambridgeshire County Council,02-Nov-22,51301877957,"-3,425.85",THE CAMBRIDGE NURSING CENTRE,CARE ESTABLISHMENT,OPPD - Cost of Care - City South - Over 65,Older People - City & South - Care,Nursing Care
Cambridgeshire County Council,02-Nov-22,51301877957,"-3,425.85",THE CAMBRIDGE NURSING CENTRE,CARE ESTABLISHMENT,OPPD - Cost of Care - City South - Over 65,Older People - City & South - Care,Nursing Care
Cambridgeshire County Council,02-Nov-22,51301877957,"-3,425.85",THE CAMBRIDGE NURSING CENTRE,CARE ESTABLISHMENT,OPPD - Cost of Care - City South - Over 65,Older People - City & South - Care,Nursing Care
Cambridgeshire County Council,02-Nov-22,51301877954,"-2,980.80",THE GABLES SPECIALIST NURSING HOME,CARE ESTABLISHMENT,OPPD - Cost of Care - Fenland Blocks,Fenland - Long term blocks,Nursing Care
Cambridgeshire County Council,02-Nov-22,51301877954,"-2,980.80",THE GABLES SPECIALIST NURSING HOME,CARE ESTABLISHMENT,OPPD - Cost of Care - Fenland Blocks,Fenland - Long term blocks,Nursing Care
Cambridgeshire County Council,02-Nov-22,51301877954,"-2,980.80",THE GABLES SPECIALIST NURSING HOME,CARE ESTABLISHMENT,OPPD - Cost of Care - Fenland Blocks,Fenland - Long term blocks,Nursing Care
Cambridgeshire County Council,02-Nov-22,51301877954,"-2,980.80",THE GABLES SPECIALIST NURSING HOME,CARE ESTABLISHMENT,OPPD - Cost of Care - Fenland Blocks,Fenland - Long term blocks,Nursing Care
Cambridgeshire County Council,02-Nov-22,51301877954,"-2,980.80",THE GABLES SPECIALIST NURSING HOME,CARE ESTABLISHMENT,OPPD - Cost of Care - Fenland Blocks,Fenland - Long term blocks,Nursing Care
Cambridgeshire County Council,02-Nov-22,51301877954,"-2,980.80",THE GABLES SPECIALIST NURSING HOME,CARE ESTABLISHMENT,OPPD - Cost of Care - Fenland Blocks,Fenland - Long term blocks,Nursing Care
Cambridgeshire County Council,02-Nov-22,51301877954,"-2,980.80",THE GABLES SPECIALIST NURSING HOME,CARE ESTABLISHMENT,OPPD - Cost of Care - Fenland Blocks,Fenland - Long term blocks,Nursing Care
Cambridgeshire County Council,02-Nov-22,51301877954,"-2,980.80",THE GABLES SPECIALIST NURSING HOME,CARE ESTABLISHMENT,OPPD - Cost of Care - Fenland Blocks,Fenland - Long term blocks,Nursing Care
Cambridgeshire County Council,02-Nov-22,51301877957,"-2,945.31",THE CAMBRIDGE NURSING CENTRE,CARE ESTABLISHMENT,OPPD - Cost of Care - City South - Over 65,Older People - City & South - Care,Nursing Care
Cambridgeshire County Council,02-Nov-22,51301877957,"-2,936.44",THE CAMBRIDGE NURSING CENTRE,CARE ESTABLISHMENT,OPPD - Cost of Care - City South - Over 65,Older People - City & South - Care,Nursing Care
Cambridgeshire County Council,02-Nov-22,51301878011,"-2,802.89",WCL UK LTD,TRADE SUPPLIER,ICT Service,ICT Service Sales,Materials for resale
Cambridgeshire County Council,02-Nov-22,51301877957,"-2,484.00",THE CAMBRIDGE NURSING CENTRE,CARE ESTABLISHMENT,OPPD - Cost of Care - City South - Over 65,Older People - City & South - Care,Nursing Care
Cambridgeshire County Council,02-Nov-22,51301877957,"-2,454.43",THE CAMBRIDGE NURSING CENTRE,CARE ESTABLISHMENT,OPPD - Cost of Care - City South - Over 65,Older People - City & South - Care,Nursing Care
Cambridgeshire County Council,02-Nov-22,51301877957,"-2,447.04",THE CAMBRIDGE NURSING CENTRE,CARE ESTABLISHMENT,OPPD - Cost of Care - City South - Over 65,Older People - City & South - Care,Nursing Care
Cambridgeshire County Council,02-Nov-22,51301877954,"-2,129.14",THE GABLES SPECIALIST NURSING HOME,CARE ESTABLISHMENT,OPPD - Cost of Care - Fenland Blocks,Fenland - Long term blocks,Nursing Care
Cambridgeshire County Council,02-Nov-22,51301877957,"-1,656.00",THE CAMBRIDGE NURSING CENTRE,CARE ESTABLISHMENT,OPPD - Cost of Care - City South - Over 65,Older People - City & South - Care,Nursing Care
Cambridgeshire County Council,02-Nov-22,51301877957,"-1,656.00",THE CAMBRIDGE NURSING CENTRE,CARE ESTABLISHMENT,OPPD - Cost of Care - City South - Over 65,Older People - City & South - Care,Nursing Care
Cambridgeshire County Council,02-Nov-22,51301877957,"-1,656.00",THE CAMBRIDGE NURSING CENTRE,CARE ESTABLISHMENT,OPPD - Cost of Care - City South - Over 65,Older People - City & South - Care,Nursing Care
Cambridgeshire County Council,02-Nov-22,51301877957,"-1,656.00",THE CAMBRIDGE NURSING CENTRE,CARE ESTABLISHMENT,OPPD - Cost of Care - City South - Over 65,Older People - City & South - Care,Nursing Care
Cambridgeshire County Council,02-Nov-22,51301877957,"-1,656.00",THE CAMBRIDGE NURSING CENTRE,CARE ESTABLISHMENT,OPPD - Cost of Care - City South - Over 65,Older People - City & South - Care,Nursing Care
Cambridgeshire County Council,02-Nov-22,51301877957,"-1,656.00",THE CAMBRIDGE NURSING CENTRE,CARE ESTABLISHMENT,OPPD - Cost of Care - City South - Over 65,Older People - City & South - Care,Nursing Care
Cambridgeshire County Council,02-Nov-22,51301877957,"-1,656.00",THE CAMBRIDGE NURSING CENTRE,CARE ESTABLISHMENT,OPPD - Cost of Care - City South - Over 65,Older People - City & South - Care,Nursing Care
Cambridgeshire County Council,02-Nov-22,51301877957,"-1,656.00",THE CAMBRIDGE NURSING CENTRE,CARE ESTABLISHMENT,OPPD - Cost of Care - City South - Over 65,Older People - City & South - Care,Nursing Care
Cambridgeshire County Council,02-Nov-22,51301877957,"-1,656.00",THE CAMBRIDGE NURSING CENTRE,CARE ESTABLISHMENT,OPPD - Cost of Care - City South - Over 65,Older People - City & South - Care,Nursing Care
Cambridgeshire County Council,02-Nov-22,51301877957,"-1,419.43",THE CAMBRIDGE NURSING CENTRE,CARE ESTABLISHMENT,OPPD - Cost of Care - City South - Over 65,Older People - City & South - Care,Nursing Care
Cambridgeshire County Council,02-Nov-22,51301877957,"-1,227.21",THE CAMBRIDGE NURSING CENTRE,CARE ESTABLISHMENT,OPPD - Cost of Care - City South - Over 65,Older People - City & South - Care,Nursing Care
Cambridgeshire County Council,02-Nov-22,51301877957,"-1,227.21",THE CAMBRIDGE NURSING CENTRE,CARE ESTABLISHMENT,OPPD - Cost of Care - City South - Over 65,Older People - City & South - Care,Nursing Care
Cambridgeshire County Council,02-Nov-22,51301877957,"-1,182.86",THE CAMBRIDGE NURSING CENTRE,CARE ESTABLISHMENT,OPPD - Cost of Care - City South - Over 65,Older People - City & South - Care,Nursing Care
Cambridgeshire County Council,02-Nov-22,51301877957,-859.05,THE CAMBRIDGE NURSING CENTRE,CARE ESTABLISHMENT,OPPD - Cost of Care - City South - Over 65,Older People - City & South - Care,Nursing Care
Cambridgeshire County Council,02-Nov-22,51301877957,-859.05,THE CAMBRIDGE NURSING CENTRE,CARE ESTABLISHMENT,OPPD - Cost of Care - City South - Over 65,Older People - City & South - Care,Nursing Care
Cambridgeshire County Council,02-Nov-22,51301877957,-859.05,THE CAMBRIDGE NURSING CENTRE,CARE ESTABLISHMENT,OPPD - Cost of Care - City South - Over 65,Older People - City & South - Care,Nursing Care
Cambridgeshire County Council,02-Nov-22,51301877957,-859.05,THE CAMBRIDGE NURSING CENTRE,CARE ESTABLISHMENT,OPPD - Cost of Care - City South - Over 65,Older People - City & South - Care,Nursing Care
Cambridgeshire County Council,02-Nov-22,51301877957,-859.05,THE CAMBRIDGE NURSING CENTRE,CARE ESTABLISHMENT,OPPD - Cost of Care - City South - Over 65,Older People - City & South - Care,Nursing Care
Cambridgeshire County Council,02-Nov-22,51301877957,-859.05,THE CAMBRIDGE NURSING CENTRE,CARE ESTABLISHMENT,OPPD - Cost of Care - City South - Over 65,Older People - City & South - Care,Nursing Care
Cambridgeshire County Council,02-Nov-22,51301877957,-736.33,THE CAMBRIDGE NURSING CENTRE,CARE ESTABLISHMENT,OPPD - Cost of Care - City South - Over 65,Older People - City & South - Care,Nursing Care
Cambridgeshire County Council,02-Nov-22,51301878148,-673.20,OVER COMMUNITY ENTERPRISES LTD,LOCAL CLUBS & GROUPS,Education Safeguarding,Education Safeguarding,Casual hire of facilities
Cambridgeshire County Council,02-Nov-22,51301878125,-573.30,HUNTINGDONSHIRE DISTRICT COUNCIL,OTHER PUBLIC BODIES,Corporate Offices,Preschools,Business rates
Cambridgeshire County Council,02-Nov-22,51301878191,500.22,NOTTINGHAM REHAB SUPPLIES LTD,TRADE SUPPLIER,Reablement - Hunts,Reablement - Hunts,Specialist Equipment For Service Delivery
Cambridgeshire County Council,02-Nov-22,51301878247,512.56,STAR CABS LTD,TRADE SUPPLIER,Physical Disablity - Cost of Care,Countywide PD Service - Care,Social Care Transport
Cambridgeshire County Council,02-Nov-22,51301878236,512.56,STAR CABS LTD,TRADE SUPPLIER,Physical Disablity - Cost of Care,Countywide PD Service - Care,Social Care Transport
Cambridgeshire County Council,02-Nov-22,51301878322,546.65,HSL Compliance Limited,COMPANY,Health & Safety,POD - Health & Safety,Building Structural Maintenance - Reactive
Cambridgeshire County Council,02-Nov-22,51301878227,554.40,Sam Private Hire,COMPANY,LD - Hunts Locality - Cost of Care,LD - Huntingdonshire - Care,Social Care Transport
Cambridgeshire County Council,02-Nov-22,51301878012,566.00,Redacted Personal Data,INDIVIDUAL,Early Help Huntingdon & St Ives District Team,Transforming Lives Hunts,Professional Fees and Hired Services
Cambridgeshire County Council,02-Nov-22,51301865695,566.50,The MSR Service,SOLETRADER,IHPS - Huntingdonshire,Hunts Community Centre,Specialist Supplies and Materials
Cambridgeshire County Council,02-Nov-22,51301877923,584.69,Redacted Personal Data,INDIVIDUAL,Early Years Service - HAF,HAF Grant,Social Care Transport
Cambridgeshire County Council,02-Nov-22,51301877989,585.00,HILL ROW DAY NURSERY,NURSERY,Early Years,SEND Specialist Services - SENIF,Formula Budget Allocation
Cambridgeshire County Council,02-Nov-22,51301878162,591.96,Redacted Personal Data,INDIVIDUAL,Home to School Transport - Special,Home to School Transport Special - Post 16,Home to School - Contract
Cambridgeshire County Council,02-Nov-22,51301878133,595.00,Redacted Personal Data,INDIVIDUAL,Children's Disability Direct Payments,CSC Direct Payments,Direct Payments
Cambridgeshire County Council,02-Nov-22,51301878224,609.60,Sam Private Hire,COMPANY,Hunts Children's Team 3,Hunts Children's Team 3,Social Care Transport
Cambridgeshire County Council,02-Nov-22,51301864841,612.00,PETERBOROUGH CITY COUNCIL,OTHER PUBLIC BODIES,Childrens L&D,Childrens VQ,Professional Fees and Hired Services
Cambridgeshire County Council,02-Nov-22,51301877896,617.40,Redacted Personal Data,INDIVIDUAL,LAC Transport,LAC Transport - Home to School,Social Care Transport
Cambridgeshire County Council,02-Nov-22,51301878089,618.43,Global Media Group Services Ltd,TRADE SUPPLIER,Libraries - H of S,B&IP Centre (Ext Fund),Professional Fees and Hired Services
Cambridgeshire County Council,02-Nov-22,51301867324,633.82,CAMBRIDGESHIRE HOMECARE (J&M CARE LTD),CARE ESTABLISHMENT,Community Support Service,Community Support Service ECF,Grants to Voluntary Bodies
Cambridgeshire County Council,02-Nov-22,51301877978,637.47,EATON SOCON PRESCHOOL,NURSERY,Early Years,SEND Specialist Services - SENIF,Care & Ed Partner Organisations
Cambridgeshire County Council,02-Nov-22,51301868011,638.22,Pathfinder Legal Services Limited,TRADE SUPPLIER,LD - South Service Manager,LD - South Service Manager,External Legal Fees
Cambridgeshire County Council,02-Nov-22,51301878150,645.24,Redacted Personal Data,INDIVIDUAL,Children's Disability Direct Payments,CSC Direct Payments,Direct Payments
Cambridgeshire County Council,02-Nov-22,51301878302,652.27,HSL Compliance Limited,COMPANY,Health & Safety,POD - Health & Safety,Building Structural Maintenance - Reactive
Cambridgeshire County Council,02-Nov-22,51301877983,661.08,PIPPINS PRESCHOOL,NURSERY,Early Years,SEND Specialist Services - SENIF,SEN Funding
Cambridgeshire County Council,02-Nov-22,51301877987,661.08,PIPPINS PRESCHOOL,NURSERY,Early Years,SEND Specialist Services - SENIF,Care & Ed Partner Organisations
Cambridgeshire County Council,02-Nov-22,51301878149,673.20,OVER COMMUNITY ENTERPRISES LTD,LOCAL CLUBS & GROUPS,Education Safeguarding,Education Safeguarding,Casual hire of facilities
Cambridgeshire County Council,02-Nov-22,51301877904,675.45,Redacted Personal Data,INDIVIDUAL,LAC Transport,LAC Transport - Home to School,Social Care Transport
Cambridgeshire County Council,02-Nov-22,51301865128,690.00,GUARDIAN NEWS AND MEDIA LTD,TRADE SUPPLIER,Integrated Front Door,Head of Service - Multi-Agency Safeguarding Hub,Recruitment Advertising
Cambridgeshire County Council,02-Nov-22,51301865903,690.12,Pathfinder Legal Services Limited,TRADE SUPPLIER,GCP - West of Cambridge Package,GCP - West of Cambridge Package,Construction - External Professional Fees
Cambridgeshire County Council,02-Nov-22,51301878309,702.00,FAMILIES CAMBRIDGESHIRE,TRADE SUPPLIER,Park & Ride Parking,Park & Ride - Marketing,Advertising / Publicity (non Recruitment)
Cambridgeshire County Council,02-Nov-22,51301877914,702.00,Redacted Personal Data,INDIVIDUAL,LAC Transport,LAC Transport - Home to School,Social Care Transport
Cambridgeshire County Council,02-Nov-22,51301864734,708.00,DOTTED EYES LTD,TRADE SUPPLIER,System Licences,System Software & Licences,Computer software - annual licence agreement
Cambridgeshire County Council,02-Nov-22,51301877955,733.37,HC-ONE,CARE ESTABLISHMENT,OPPD - Cost of Care - Huntingdon Blocks,Hunts - Long term blocks,Nursing Care
Cambridgeshire County Council,02-Nov-22,51301877957,736.33,THE CAMBRIDGE NURSING CENTRE,CARE ESTABLISHMENT,OPPD - Cost of Care - City South - Over 65,Older People - City & South - Care,Nursing Care
Cambridgeshire County Council,02-Nov-22,51301877897,740.70,Redacted Personal Data,INDIVIDUAL,LAC Transport,LAC Transport  - Contact Visits,Social Care Transport
Cambridgeshire County Council,02-Nov-22,51301877954,745.20,THE GABLES SPECIALIST NURSING HOME,CARE ESTABLISHMENT,OPPD - Cost of Care - Fenland Blocks,Fenland - Long term blocks,Nursing Care
Cambridgeshire County Council,02-Nov-22,51301877954,745.20,THE GABLES SPECIALIST NURSING HOME,CARE ESTABLISHMENT,OPPD - Cost of Care - Fenland Blocks,Fenland - Long term blocks,Nursing Care
Cambridgeshire County Council,02-Nov-22,51301877956,757.03,THE RED HOUSE RESIDENTIAL & NURSING HOME,CARE ESTABLISHMENT,OPPD - Cost of Care - Huntingdon Blocks,Hunts - Long term blocks,Nursing Care
Cambridgeshire County Council,02-Nov-22,51301878225,762.00,Sam Private Hire,COMPANY,Hunts Children's Team 3,Hunts Children's Team 3,Social Care Transport
Cambridgeshire County Council,02-Nov-22,51301877996,765.00,Redacted Personal Data,FOSTER PARENT,Fostering,FCP allowances,Adoption Allowances
Cambridgeshire County Council,02-Nov-22,51301877985,787.00,Kindred Cambridge (Kindred Education Cambridgeshire Ltd),NURSERY,Early Years,SEND Specialist Services - SENIF,Care & Ed Partner Organisations
Cambridgeshire County Council,02-Nov-22,51301877893,795.00,Redacted Personal Data,INDIVIDUAL,LAC Transport,LAC Transport - Home to School,Social Care Transport
Cambridgeshire County Council,02-Nov-22,51301877965,826.35,WATERBEACH COMMUNITY PLAYGROUP,NURSERY,Early Years,SEND Specialist Services - SENIF,SEN Funding
Cambridgeshire County Council,02-Nov-22,51301877981,826.35,GOREFIELD PRE-SCHOOL,NURSERY,Early Years,SEND Specialist Services - SENIF,SEN Funding
Cambridgeshire County Council,02-Nov-22,51301877969,826.35,THE ASHBEACH LADYBIRDS PRE-SCHOOL,NURSERY,Early Years,SEND Specialist Services - SENIF,SEN Funding
Cambridgeshire County Council,02-Nov-22,51301877979,826.35,MOONBEAMS PRE SCHOOL,NURSERY,Early Years,SEND Specialist Services - SENIF,Care & Ed Partner Organisations
Cambridgeshire County Council,02-Nov-22,51301877993,826.35,STEPPING STONES PRE-SCHOOL (LEVERINGTON),NURSERY,Early Years,SEND Specialist Services - SENIF,Care & Ed Partner Organisations
Cambridgeshire County Council,02-Nov-22,51301877968,826.35,CHESTNUT NURSERY SCHOOLS LIMITED,NURSERY,Early Years,SEND Specialist Services - SENIF,Care & Ed Partner Organisations
Cambridgeshire County Council,02-Nov-22,51301877994,826.35,MAPLE GROVE COMMUNITY PRE-SCHOOL,NURSERY,Early Years,SEND Specialist Services - SENIF,Care & Ed Partner Organisations
Cambridgeshire County Council,02-Nov-22,51301877955,828.00,HC-ONE,CARE ESTABLISHMENT,OPPD - Cost of Care - Huntingdon Blocks,Hunts - Long term blocks,Nursing Care
Cambridgeshire County Council,02-Nov-22,51301878223,846.00,AXCESS TEN LTD,TRADE SUPPLIER,Outdoor Education,"Education, Health, Safety and Wellbeing - Outdoor Education",Printing
Cambridgeshire County Council,02-Nov-22,51301877956,856.39,THE RED HOUSE RESIDENTIAL & NURSING HOME,CARE ESTABLISHMENT,OPPD - Cost of Care - Huntingdon Blocks,Hunts - Long term blocks,Nursing Care
Cambridgeshire County Council,02-Nov-22,51301877956,856.39,THE RED HOUSE RESIDENTIAL & NURSING HOME,CARE ESTABLISHMENT,OPPD - Cost of Care - Huntingdon Blocks,Hunts - Long term blocks,Nursing Care
Cambridgeshire County Council,02-Nov-22,51301878289,858.80,ST CHRISTOPHER'S FELLOWSHIP,CARE ESTABLISHMENT,LAC Placements,Placements - independent fostering,Agency Placements - Out of  County
Cambridgeshire County Council,02-Nov-22,51301877957,859.05,THE CAMBRIDGE NURSING CENTRE,CARE ESTABLISHMENT,OPPD - Cost of Care - City South - Over 65,Older People - City & South - Care,Nursing Care
Cambridgeshire County Council,02-Nov-22,51301877957,859.05,THE CAMBRIDGE NURSING CENTRE,CARE ESTABLISHMENT,OPPD - Cost of Care - City South - Over 65,Older People - City & South - Care,Nursing Care
Cambridgeshire County Council,02-Nov-22,51301877957,859.05,THE CAMBRIDGE NURSING CENTRE,CARE ESTABLISHMENT,OPPD - Cost of Care - City South - Over 65,Older People - City & South - Care,Nursing Care
Cambridgeshire County Council,02-Nov-22,51301877957,859.05,THE CAMBRIDGE NURSING CENTRE,CARE ESTABLISHMENT,OPPD - Cost of Care - City South - Over 65,Older People - City & South - Care,Nursing Care
Cambridgeshire County Council,02-Nov-22,51301877957,859.05,THE CAMBRIDGE NURSING CENTRE,CARE ESTABLISHMENT,OPPD - Cost of Care - City South - Over 65,Older People - City & South - Care,Nursing Care
Cambridgeshire County Council,02-Nov-22,51301877957,859.05,THE CAMBRIDGE NURSING CENTRE,CARE ESTABLISHMENT,OPPD - Cost of Care - City South - Over 65,Older People - City & South - Care,Nursing Care
Cambridgeshire County Council,02-Nov-22,51301877995,881.44,BUTTERCUPS COMMUNITY PRE-SCHOOL,NURSERY,Early Years,SEND Specialist Services - SENIF,Care & Ed Partner Organisations
Cambridgeshire County Council,02-Nov-22,51301877984,897.18,Kindred Cambourne (Kindred Education Cambridgeshire Ltd),NURSERY,Early Years,SEND Specialist Services - SENIF,Care & Ed Partner Organisations
Cambridgeshire County Council,02-Nov-22,51301878246,898.13,STAR CABS LTD,TRADE SUPPLIER,LD - City Locality - Cost of Care,LD - City - Care,Social Care Transport
Cambridgeshire County Council,02-Nov-22,51301878235,898.13,STAR CABS LTD,TRADE SUPPLIER,LD - City Locality - Cost of Care,LD - City - Care,Social Care Transport
Cambridgeshire County Council,02-Nov-22,51301877986,944.40,CHESTNUT NURSERY SCHOOLS LIMITED,NURSERY,Early Years,SEND Specialist Services - SENIF,Care & Ed Partner Organisations
Cambridgeshire County Council,02-Nov-22,51301877991,944.40,Peckover Nursery,NURSERY,Early Years,SEND Specialist Services - SENIF,Care & Ed Partner Organisations
Cambridgeshire County Council,02-Nov-22,51301877967,944.40,LITTLEPORT COMMUNITY PRESCHOOL,NURSERY,Early Years,SEND Specialist Services - SENIF,Care & Ed Partner Organisations
Cambridgeshire County Council,02-Nov-22,51301877982,944.40,PIPPINS PRESCHOOL,NURSERY,Early Years,SEND Specialist Services - SENIF,Payments to Other Establishments
Cambridgeshire County Council,02-Nov-22,51301877957,946.29,THE CAMBRIDGE NURSING CENTRE,CARE ESTABLISHMENT,OPPD - Cost of Care - City South - Over 65,Older People - City & South - Care,Nursing Care
Cambridgeshire County Council,02-Nov-22,51301877956,963.44,THE RED HOUSE RESIDENTIAL & NURSING HOME,CARE ESTABLISHMENT,OPPD - Cost of Care - Huntingdon Blocks,Hunts - Long term blocks,Nursing Care
Cambridgeshire County Council,02-Nov-22,51301877957,981.77,THE CAMBRIDGE NURSING CENTRE,CARE ESTABLISHMENT,OPPD - Cost of Care - City South - Over 65,Older People - City & South - Care,Nursing Care
Cambridgeshire County Council,02-Nov-22,51301878239,986.00,Drivero Taxi Ltd,COMPANY,LD - City Locality - Staffing,LD - City - Staffing,Social Care Transport
Cambridgeshire County Council,02-Nov-22,51301878240,986.00,Drivero Taxi Ltd,COMPANY,LD - South Locality - Cost of Care,LD - South Cambs - Care,Social Care Transport
Cambridgeshire County Council,02-Nov-22,51301878241,986.00,Drivero Taxi Ltd,COMPANY,LD - South Locality - Cost of Care,LD - South Cambs - Care,Social Care Transport
Cambridgeshire County Council,02-Nov-22,51301878186,"1,000.00",20TWENTY PRODUCTIONS,TRADE SUPPLIER,Youth and Community Services,Participation,Educational Materials
Cambridgeshire County Council,02-Nov-22,51301878187,"1,000.00",CENTRE 33,CHARITY,Youth and Community Services,Participation,Educational Materials
Cambridgeshire County Council,02-Nov-22,51301878082,"1,000.00",Cambridge African Network,CHARITY,Highways - Bridges,Highways - Bridges,Highways - Bridges
Cambridgeshire County Council,02-Nov-22,51301864830,"1,008.00",PETERBOROUGH CITY COUNCIL,OTHER PUBLIC BODIES,Childrens L&D,Childrens VQ,Professional Fees and Hired Services
Cambridgeshire County Council,02-Nov-22,51301864842,"1,008.00",PETERBOROUGH CITY COUNCIL,OTHER PUBLIC BODIES,Childrens L&D,Childrens VQ,Professional Fees and Hired Services
Cambridgeshire County Council,02-Nov-22,51301864824,"1,008.00",PETERBOROUGH CITY COUNCIL,OTHER PUBLIC BODIES,Childrens L&D,Childrens VQ,Professional Fees and Hired Services
Cambridgeshire County Council,02-Nov-22,51301877892,"1,032.12",Redacted Personal Data,INDIVIDUAL,LAC Transport,LAC Transport - Home to School,Social Care Transport
Cambridgeshire County Council,02-Nov-22,51301877913,"1,035.00",Redacted Personal Data,INDIVIDUAL,LAC Transport,LAC Transport - Home to School,Social Care Transport
Cambridgeshire County Council,02-Nov-22,51301877863,"1,038.00",Redactive Publishing Ltd,COMPANY,Resources Directorate,CCC Finance Office,Recruitment Costs
Cambridgeshire County Council,02-Nov-22,51301877988,"1,046.71",HARDWICK PRE-SCHOOL,NURSERY,Early Years,SEND Specialist Services - SENIF,Care & Ed Partner Organisations
Cambridgeshire County Council,02-Nov-22,51301878134,"1,057.00",HUNTINGDONSHIRE DISTRICT COUNCIL,OTHER PUBLIC BODIES,Corporate Offices,Pathfinder House,Service Charges
Cambridgeshire County Council,02-Nov-22,51301877895,"1,062.00",Redacted Personal Data,INDIVIDUAL,LD - East Locality - Cost of Care,LD - East Cambs - Care,Social Care Transport
Cambridgeshire County Council,02-Nov-22,51301877980,"1,062.45",Hinchingbrooke Park Pre-School,NURSERY,Early Years,SEND Specialist Services - SENIF,Care & Ed Partner Organisations
Cambridgeshire County Council,02-Nov-22,51301877956,"1,100.06",THE RED HOUSE RESIDENTIAL & NURSING HOME,CARE ESTABLISHMENT,OPPD - Cost of Care - Huntingdon Blocks,Hunts - Long term blocks,Nursing Care
Cambridgeshire County Council,02-Nov-22,51301877956,"1,135.54",THE RED HOUSE RESIDENTIAL & NURSING HOME,CARE ESTABLISHMENT,OPPD - Cost of Care - Huntingdon Blocks,Hunts - Long term blocks,Nursing Care
Cambridgeshire County Council,02-Nov-22,51301877957,"1,174.58",THE CAMBRIDGE NURSING CENTRE,CARE ESTABLISHMENT,OPPD - Cost of Care - City South - Over 65,Older People - City & South - Care,Nursing Care
Cambridgeshire County Council,02-Nov-22,51301877977,"1,180.50",ACE NURSERY SCHOOL,NURSERY,Early Years,SEND Specialist Services - SENIF,Care & Ed Partner Organisations
Cambridgeshire County Council,02-Nov-22,51301877957,"1,182.86",THE CAMBRIDGE NURSING CENTRE,CARE ESTABLISHMENT,OPPD - Cost of Care - City South - Over 65,Older People - City & South - Care,Nursing Care
Cambridgeshire County Council,02-Nov-22,51301877957,"1,182.86",THE CAMBRIDGE NURSING CENTRE,CARE ESTABLISHMENT,OPPD - Cost of Care - City South - Over 65,Older People - City & South - Care,Nursing Care
Cambridgeshire County Council,02-Nov-22,51301877957,"1,227.21",THE CAMBRIDGE NURSING CENTRE,CARE ESTABLISHMENT,OPPD - Cost of Care - City South - Over 65,Older People - City & South - Care,Nursing Care
Cambridgeshire County Council,02-Nov-22,51301877957,"1,227.21",THE CAMBRIDGE NURSING CENTRE,CARE ESTABLISHMENT,OPPD - Cost of Care - City South - Over 65,Older People - City & South - Care,Nursing Care
Cambridgeshire County Council,02-Nov-22,51301864789,"1,240.21",J & G GROUNDWORKS & SURFACING,COMPANY,Highways - Rights of Way,Highways - Rights of Way,Highways - Bridges
Cambridgeshire County Council,02-Nov-22,51301878249,"1,260.00",LITTLEPORT TAXIS,TRADE SUPPLIER,LAC Transport,LAC Transport - Home to School,Social Care Transport
Cambridgeshire County Council,02-Nov-22,51301877954,"1,277.49",THE GABLES SPECIALIST NURSING HOME,CARE ESTABLISHMENT,OPPD - Cost of Care - Fenland Blocks,Fenland - Long term blocks,Nursing Care
Cambridgeshire County Council,02-Nov-22,51301877955,"1,283.40",HC-ONE,CARE ESTABLISHMENT,OPPD - Cost of Care - Huntingdon Blocks,Hunts - Long term blocks,Nursing Care
Cambridgeshire County Council,02-Nov-22,51301877955,"1,283.40",HC-ONE,CARE ESTABLISHMENT,OPPD - Cost of Care - Huntingdon Blocks,Hunts - Long term blocks,Nursing Care
Cambridgeshire County Council,02-Nov-22,51301850975,"1,311.54",Pathfinder Legal Services Limited,TRADE SUPPLIER,LD - South Service Manager,LD - South Service Manager,External Legal Fees
Cambridgeshire County Council,02-Nov-22,51301877966,"1,322.16",Godmanchester Pre-School,NURSERY,Early Years,SEND Specialist Services - SENIF,Care & Ed Partner Organisations
Cambridgeshire County Council,02-Nov-22,51301877956,"1,324.80",THE RED HOUSE RESIDENTIAL & NURSING HOME,CARE ESTABLISHMENT,OPPD - Cost of Care - Huntingdon Blocks,Hunts - Long term blocks,Nursing Care
Cambridgeshire County Council,02-Nov-22,51301877956,"1,324.80",THE RED HOUSE RESIDENTIAL & NURSING HOME,CARE ESTABLISHMENT,OPPD - Cost of Care - Huntingdon Blocks,Hunts - Long term blocks,Nursing Care
Cambridgeshire County Council,02-Nov-22,51301877916,"1,335.60",Redacted Personal Data,INDIVIDUAL,LAC Transport,LAC Transport - Home to School,Social Care Transport
Cambridgeshire County Council,02-Nov-22,51301877901,"1,363.50",Redacted Personal Data,INDIVIDUAL,LAC Transport,LAC Transport - Home to School,Social Care Transport
Cambridgeshire County Council,02-Nov-22,51301878298,"1,375.69",HSL Compliance Limited,COMPANY,Health & Safety,POD - Health & Safety,Building Structural Maintenance - Reactive
Cambridgeshire County Council,02-Nov-22,51301877957,"1,419.43",THE CAMBRIDGE NURSING CENTRE,CARE ESTABLISHMENT,OPPD - Cost of Care - City South - Over 65,Older People - City & South - Care,Nursing Care
Cambridgeshire County Council,02-Nov-22,51301877957,"1,419.43",THE CAMBRIDGE NURSING CENTRE,CARE ESTABLISHMENT,OPPD - Cost of Care - City South - Over 65,Older People - City & South - Care,Nursing Care
Cambridgeshire County Council,02-Nov-22,51301878168,"1,439.40",PINSENT MASONS LLP,TRADE SUPPLIER,DCO Schemes,A428 Black Cat to Caxton DCO,External Legal Fees
Cambridgeshire County Council,02-Nov-22,51301873970,"1,440.00",CDW Ltd,COMPANY,Home to School Transport - Special,Home to School Transport Special - Central Costs,Specialist Equipment For Service Delivery
Cambridgeshire County Council,02-Nov-22,51301877955,"1,449.00",HC-ONE,CARE ESTABLISHMENT,OPPD - Cost of Care - Huntingdon Blocks,Hunts - Long term blocks,Nursing Care
Cambridgeshire County Council,02-Nov-22,51301877955,"1,449.00",HC-ONE,CARE ESTABLISHMENT,OPPD - Cost of Care - Huntingdon Blocks,Hunts - Long term blocks,Nursing Care
Cambridgeshire County Council,02-Nov-22,51301877925,"1,463.85",Redacted Personal Data,INDIVIDUAL,LAC Transport,LAC Transport - Home to School,Social Care Transport
Cambridgeshire County Council,02-Nov-22,51301877956,"1,466.74",THE RED HOUSE RESIDENTIAL & NURSING HOME,CARE ESTABLISHMENT,OPPD - Cost of Care - Huntingdon Blocks,Hunts - Long term blocks,Nursing Care
Cambridgeshire County Council,02-Nov-22,51301878229,"1,470.00",BEV'S TAXIS,TRADE SUPPLIER,LAC Transport,LAC Transport - Out of county,Social Care Transport
Cambridgeshire County Council,02-Nov-22,51301877886,"1,494.24",Redacted Personal Data,INDIVIDUAL,Coroners,Coroners General,Professional Fees and Hired Services
Cambridgeshire County Council,02-Nov-22,51301877956,"1,498.68",THE RED HOUSE RESIDENTIAL & NURSING HOME,CARE ESTABLISHMENT,OPPD - Cost of Care - Huntingdon Blocks,Hunts - Long term blocks,Nursing Care
Cambridgeshire County Council,02-Nov-22,51301818724,"1,502.46",Pathfinder Legal Services Limited,TRADE SUPPLIER,Legal Proceedings,Legal Proceedings,Professional Fees and Hired Services
Cambridgeshire County Council,02-Nov-22,51301877918,"1,565.10",Redacted Personal Data,INDIVIDUAL,LAC Transport,LAC Transport - Home to School,Social Care Transport
Cambridgeshire County Council,02-Nov-22,51301877928,"1,585.71",Esland South Ltd,CARE ESTABLISHMENT,LAC Placements,Placements - residential homes,Agency Placements - Out of  County
Cambridgeshire County Council,02-Nov-22,51301877954,"1,596.86",THE GABLES SPECIALIST NURSING HOME,CARE ESTABLISHMENT,OPPD - Cost of Care - Fenland Blocks,Fenland - Long term blocks,Nursing Care
Cambridgeshire County Council,02-Nov-22,51301877941,"1,615.00",Redacted Personal Data,INDIVIDUAL,Unaccompanied Asylum Seeking Children,Unaccompanied Asylum Seeking Children >18 Leaving Care,Leaving Care Grants
Cambridgeshire County Council,02-Nov-22,51301877888,"1,617.64",Redacted Personal Data,INDIVIDUAL,Coroners,Coroners General,Professional Fees and Hired Services
Cambridgeshire County Council,02-Nov-22,51301867240,"1,639.20",Flowbird Smart City UK Ltd,TRADE SUPPLIER,Parking Enforcement,On Street Parking,Professional Fees and Hired Services
Cambridgeshire County Council,02-Nov-22,51301878007,"1,652.70",Busy Bees- Westwick Hall Farm,EDUCATION,Early Years,SEND Specialist Services - SENIF,Care & Ed Partner Organisations
Cambridgeshire County Council,02-Nov-22,51301877957,"1,656.00",THE CAMBRIDGE NURSING CENTRE,CARE ESTABLISHMENT,OPPD - Cost of Care - City South - Over 65,Older People - City & South - Care,Nursing Care
Cambridgeshire County Council,02-Nov-22,51301877957,"1,656.00",THE CAMBRIDGE NURSING CENTRE,CARE ESTABLISHMENT,OPPD - Cost of Care - City South - Over 65,Older People - City & South - Care,Nursing Care
Cambridgeshire County Council,02-Nov-22,51301877957,"1,656.00",THE CAMBRIDGE NURSING CENTRE,CARE ESTABLISHMENT,OPPD - Cost of Care - City South - Over 65,Older People - City & South - Care,Nursing Care
Cambridgeshire County Council,02-Nov-22,51301877957,"1,656.00",THE CAMBRIDGE NURSING CENTRE,CARE ESTABLISHMENT,OPPD - Cost of Care - City South - Over 65,Older People - City & South - Care,Nursing Care
Cambridgeshire County Council,02-Nov-22,51301877957,"1,656.00",THE CAMBRIDGE NURSING CENTRE,CARE ESTABLISHMENT,OPPD - Cost of Care - City South - Over 65,Older People - City & South - Care,Nursing Care
Cambridgeshire County Council,02-Nov-22,51301877957,"1,656.00",THE CAMBRIDGE NURSING CENTRE,CARE ESTABLISHMENT,OPPD - Cost of Care - City South - Over 65,Older People - City & South - Care,Nursing Care
Cambridgeshire County Council,02-Nov-22,51301877957,"1,656.00",THE CAMBRIDGE NURSING CENTRE,CARE ESTABLISHMENT,OPPD - Cost of Care - City South - Over 65,Older People - City & South - Care,Nursing Care
Cambridgeshire County Council,02-Nov-22,51301877957,"1,656.00",THE CAMBRIDGE NURSING CENTRE,CARE ESTABLISHMENT,OPPD - Cost of Care - City South - Over 65,Older People - City & South - Care,Nursing Care
Cambridgeshire County Council,02-Nov-22,51301877957,"1,656.00",THE CAMBRIDGE NURSING CENTRE,CARE ESTABLISHMENT,OPPD - Cost of Care - City South - Over 65,Older People - City & South - Care,Nursing Care
Cambridgeshire County Council,02-Nov-22,51301873541,"1,680.00",Permanent Futures Ltd,COMPANY,Business Intelligence,Business Intelligence Service,Recruitment Costs
Cambridgeshire County Council,02-Nov-22,51301877957,"1,718.10",THE CAMBRIDGE NURSING CENTRE,CARE ESTABLISHMENT,OPPD - Cost of Care - City South - Over 65,Older People - City & South - Care,Nursing Care
Cambridgeshire County Council,02-Nov-22,51301877957,"1,718.10",THE CAMBRIDGE NURSING CENTRE,CARE ESTABLISHMENT,OPPD - Cost of Care - City South - Over 65,Older People - City & South - Care,Nursing Care
Cambridgeshire County Council,02-Nov-22,51301877957,"1,774.29",THE CAMBRIDGE NURSING CENTRE,CARE ESTABLISHMENT,OPPD - Cost of Care - City South - Over 65,Older People - City & South - Care,Nursing Care
Cambridgeshire County Council,02-Nov-22,51301878006,"1,799.90",TMP (UK) LTD T/A TMP WORLDWIDE,TRADE SUPPLIER,Highways - DTSA,Highways - DTSA,Highways - Construction
Cambridgeshire County Council,02-Nov-22,51301877937,"1,800.00",CITY AND GUILDS OF LONDON INSTITUTE,CHARITY,Cambridgeshire Skills HoS,Cambridgeshire Skills Direct Delivery,Educational Materials
Cambridgeshire County Council,02-Nov-22,51301877865,"1,824.00",Mr Kenneth Stuart Hodgkinson t/a KS Taxis,SOLETRADER,Home to School Transport - Special,Home to School Transport Special - Secondary,Home to School - Contract
Cambridgeshire County Council,02-Nov-22,51301878263,"1,831.50",PARKERS OF WISBECH LTD,TRADE SUPPLIER,OPPD - Cost of Care - Fenland - Over 65,Older People - Fenland - Care,Social Care Transport
Cambridgeshire County Council,02-Nov-22,51301862926,"1,839.18",BRUTON KNOWLES,TRADE SUPPLIER,Wisbech Town Centre Access Study,Wisbech Town Centre Access Study,Construction - External Professional Fees
Cambridgeshire County Council,02-Nov-22,51301877956,"1,925.10",THE RED HOUSE RESIDENTIAL & NURSING HOME,CARE ESTABLISHMENT,OPPD - Cost of Care - Huntingdon Blocks,Hunts - Long term blocks,Nursing Care
Cambridgeshire County Council,02-Nov-22,51301877956,"1,925.10",THE RED HOUSE RESIDENTIAL & NURSING HOME,CARE ESTABLISHMENT,OPPD - Cost of Care - Huntingdon Blocks,Hunts - Long term blocks,Nursing Care
Cambridgeshire County Council,02-Nov-22,51301877957,"1,963.54",THE CAMBRIDGE NURSING CENTRE,CARE ESTABLISHMENT,OPPD - Cost of Care - City South - Over 65,Older People - City & South - Care,Nursing Care
Cambridgeshire County Council,02-Nov-22,51301878189,"1,968.15",Redacted Personal Data,INDIVIDUAL,LD - East Locality - Cost of Care,LD - East Cambs - Care,Direct Payments
Cambridgeshire County Council,02-Nov-22,51301877956,"1,987.20",THE RED HOUSE RESIDENTIAL & NURSING HOME,CARE ESTABLISHMENT,OPPD - Cost of Care - Huntingdon Blocks,Hunts - Long term blocks,Nursing Care
Cambridgeshire County Council,02-Nov-22,51301877956,"1,987.20",THE RED HOUSE RESIDENTIAL & NURSING HOME,CARE ESTABLISHMENT,OPPD - Cost of Care - Huntingdon Blocks,Hunts - Long term blocks,Nursing Care
Cambridgeshire County Council,02-Nov-22,51301878215,"2,035.00",ALL SAINTS PRE SCHOOL ACADEMY,NURSERY,SEND High Needs Top Up,SEND Specialist Services-High needs top-up-Early Years,Independent School Placements
Cambridgeshire County Council,02-Nov-22,51301877957,"2,055.51",THE CAMBRIDGE NURSING CENTRE,CARE ESTABLISHMENT,OPPD - Cost of Care - City South - Over 65,Older People - City & South - Care,Nursing Care
Cambridgeshire County Council,02-Nov-22,51301877957,"2,055.51",THE CAMBRIDGE NURSING CENTRE,CARE ESTABLISHMENT,OPPD - Cost of Care - City South - Over 65,Older People - City & South - Care,Nursing Care
Cambridgeshire County Council,02-Nov-22,51301877956,"2,070.00",THE RED HOUSE RESIDENTIAL & NURSING HOME,CARE ESTABLISHMENT,OPPD - Cost of Care - Huntingdon Blocks,Hunts - Long term blocks,Nursing Care
Cambridgeshire County Council,02-Nov-22,51301877955,"2,070.00",HC-ONE,CARE ESTABLISHMENT,OPPD - Cost of Care - Huntingdon Blocks,Hunts - Long term blocks,Nursing Care
Cambridgeshire County Council,02-Nov-22,51301877957,"2,129.14",THE CAMBRIDGE NURSING CENTRE,CARE ESTABLISHMENT,OPPD - Cost of Care - City South - Over 65,Older People - City & South - Care,Nursing Care
Cambridgeshire County Council,02-Nov-22,51301878232,"2,142.00",DART TAXIS (MARCH),TRADE SUPPLIER,LD - Hunts Locality - Cost of Care,LD - Huntingdonshire - Care,Social Care Transport
Cambridgeshire County Council,02-Nov-22,51301878250,"2,142.00",DART TAXIS (MARCH),TRADE SUPPLIER,LD - Hunts Locality - Cost of Care,LD - Huntingdonshire - Care,Social Care Transport
Cambridgeshire County Council,02-Nov-22,51301878087,"2,167.56",ALL SAINTS PRE SCHOOL ACADEMY,NURSERY,SEND High Needs Top Up,SEND Specialist Services-High needs top-up-Early Years,Independent School Placements
Cambridgeshire County Council,02-Nov-22,51301877954,"2,235.60",THE GABLES SPECIALIST NURSING HOME,CARE ESTABLISHMENT,OPPD - Cost of Care - Fenland Blocks,Fenland - Long term blocks,Nursing Care
Cambridgeshire County Council,02-Nov-22,51301877954,"2,235.60",THE GABLES SPECIALIST NURSING HOME,CARE ESTABLISHMENT,OPPD - Cost of Care - Fenland Blocks,Fenland - Long term blocks,Nursing Care
Cambridgeshire County Council,02-Nov-22,51301877954,"2,235.60",THE GABLES SPECIALIST NURSING HOME,CARE ESTABLISHMENT,OPPD - Cost of Care - Fenland Blocks,Fenland - Long term blocks,Nursing Care
Cambridgeshire County Council,02-Nov-22,51301877954,"2,235.60",THE GABLES SPECIALIST NURSING HOME,CARE ESTABLISHMENT,OPPD - Cost of Care - Fenland Blocks,Fenland - Long term blocks,Nursing Care
Cambridgeshire County Council,02-Nov-22,51301877954,"2,235.60",THE GABLES SPECIALIST NURSING HOME,CARE ESTABLISHMENT,OPPD - Cost of Care - Fenland Blocks,Fenland - Long term blocks,Nursing Care
Cambridgeshire County Council,02-Nov-22,51301877954,"2,235.60",THE GABLES SPECIALIST NURSING HOME,CARE ESTABLISHMENT,OPPD - Cost of Care - Fenland Blocks,Fenland - Long term blocks,Nursing Care
Cambridgeshire County Council,02-Nov-22,51301877954,"2,235.60",THE GABLES SPECIALIST NURSING HOME,CARE ESTABLISHMENT,OPPD - Cost of Care - Fenland Blocks,Fenland - Long term blocks,Nursing Care
Cambridgeshire County Council,02-Nov-22,51301877954,"2,235.60",THE GABLES SPECIALIST NURSING HOME,CARE ESTABLISHMENT,OPPD - Cost of Care - Fenland Blocks,Fenland - Long term blocks,Nursing Care
Cambridgeshire County Council,02-Nov-22,51301877954,"2,235.60",THE GABLES SPECIALIST NURSING HOME,CARE ESTABLISHMENT,OPPD - Cost of Care - Fenland Blocks,Fenland - Long term blocks,Nursing Care
Cambridgeshire County Council,02-Nov-22,51301877954,"2,235.60",THE GABLES SPECIALIST NURSING HOME,CARE ESTABLISHMENT,OPPD - Cost of Care - Fenland Blocks,Fenland - Long term blocks,Nursing Care
Cambridgeshire County Council,02-Nov-22,51301851288,"2,315.40",BEVAN BRITTAN LLP,TRADE SUPPLIER,Educations Systems,Education Systems - SEND system,IT Software
Cambridgeshire County Council,02-Nov-22,51301878018,"2,400.88",NEXUS FOSTERING LTD,CARE ESTABLISHMENT,LAC Placements,Placements - independent fostering,Agency Placements - In County
Cambridgeshire County Council,02-Nov-22,51301878085,"2,408.40",ALL SAINTS PRE SCHOOL ACADEMY,NURSERY,SEND High Needs Top Up,SEND Specialist Services-High needs top-up-Early Years,Independent School Placements
Cambridgeshire County Council,02-Nov-22,51301877957,"2,447.04",THE CAMBRIDGE NURSING CENTRE,CARE ESTABLISHMENT,OPPD - Cost of Care - City South - Over 65,Older People - City & South - Care,Nursing Care
Cambridgeshire County Council,02-Nov-22,51301877957,"2,454.43",THE CAMBRIDGE NURSING CENTRE,CARE ESTABLISHMENT,OPPD - Cost of Care - City South - Over 65,Older People - City & South - Care,Nursing Care
Cambridgeshire County Council,02-Nov-22,51301877957,"2,484.00",THE CAMBRIDGE NURSING CENTRE,CARE ESTABLISHMENT,OPPD - Cost of Care - City South - Over 65,Older People - City & South - Care,Nursing Care
Cambridgeshire County Council,02-Nov-22,51301877957,"2,484.00",THE CAMBRIDGE NURSING CENTRE,CARE ESTABLISHMENT,OPPD - Cost of Care - City South - Over 65,Older People - City & South - Care,Nursing Care
Cambridgeshire County Council,02-Nov-22,51301877957,"2,484.00",THE CAMBRIDGE NURSING CENTRE,CARE ESTABLISHMENT,OPPD - Cost of Care - City South - Over 65,Older People - City & South - Care,Nursing Care
Cambridgeshire County Council,02-Nov-22,51301878291,"2,495.64",International Parking Systems (UK) Limited,COMPANY,Parking Enforcement,On Street Parking,Professional Fees and Hired Services
Cambridgeshire County Council,02-Nov-22,51301877956,"2,566.80",THE RED HOUSE RESIDENTIAL & NURSING HOME,CARE ESTABLISHMENT,OPPD - Cost of Care - Huntingdon Blocks,Hunts - Long term blocks,Nursing Care
Cambridgeshire County Council,02-Nov-22,51301877956,"2,566.80",THE RED HOUSE RESIDENTIAL & NURSING HOME,CARE ESTABLISHMENT,OPPD - Cost of Care - Huntingdon Blocks,Hunts - Long term blocks,Nursing Care
Cambridgeshire County Council,02-Nov-22,51301854351,"2,579.10",Pathfinder Legal Services Limited,TRADE SUPPLIER,LD - Young Adults Staffing,LD - Young Adults - Staffing,External Legal Fees
Cambridgeshire County Council,02-Nov-22,51301877976,"2,590.14",International Parking Systems (UK) Limited,COMPANY,Parking Enforcement,On Street Parking,Professional Fees and Hired Services
Cambridgeshire County Council,02-Nov-22,51301866210,"2,618.40",Urban Movement Limited (John Dales),COMPANY,Growth & Development,Quality Charter funding,Professional Fees and Hired Services
Cambridgeshire County Council,02-Nov-22,51301864790,"2,700.00",Jackson Environmental Ltd,COMPANY,"School Condition, Maintenance & Suitability","School Condition, Maintenance & Suitability",Environmental Works
Cambridgeshire County Council,02-Nov-22,51301867858,"2,726.15",Excellerate Services UK Limited,TRADE SUPPLIER,Corporate Offices,County Offices General,Building Cleaning
Cambridgeshire County Council,02-Nov-22,51301873392,"2,802.89",WCL UK LTD,TRADE SUPPLIER,ICT Service,ICT Service Sales,Materials for resale
Cambridgeshire County Council,02-Nov-22,51301878086,"2,809.80",ALL SAINTS PRE SCHOOL ACADEMY,NURSERY,SEND High Needs Top Up,SEND Specialist Services-High needs top-up-Early Years,Independent School Placements
Cambridgeshire County Council,02-Nov-22,51301877957,"2,838.86",THE CAMBRIDGE NURSING CENTRE,CARE ESTABLISHMENT,OPPD - Cost of Care - City South - Over 65,Older People - City & South - Care,Nursing Care
Cambridgeshire County Council,02-Nov-22,51301878216,"2,910.15",ALL SAINTS PRE SCHOOL ACADEMY,NURSERY,SEND High Needs Top Up,SEND Specialist Services-High needs top-up-Early Years,Independent School Placements
Cambridgeshire County Council,02-Nov-22,51301877957,"2,936.44",THE CAMBRIDGE NURSING CENTRE,CARE ESTABLISHMENT,OPPD - Cost of Care - City South - Over 65,Older People - City & South - Care,Nursing Care
Cambridgeshire County Council,02-Nov-22,51301877957,"2,945.31",THE CAMBRIDGE NURSING CENTRE,CARE ESTABLISHMENT,OPPD - Cost of Care - City South - Over 65,Older People - City & South - Care,Nursing Care
Cambridgeshire County Council,02-Nov-22,51301878259,"3,082.20",Hunts Taxis Ltd,COMPANY,Adults - Central Transport,Adults Disabilities and OP Transport,Social Care Transport
Cambridgeshire County Council,02-Nov-22,51301878288,"3,220.50",ST CHRISTOPHER'S FELLOWSHIP,CARE ESTABLISHMENT,LAC Placements,Placements - independent fostering,Agency Placements - Out of  County
Cambridgeshire County Council,02-Nov-22,51301877957,"3,312.00",THE CAMBRIDGE NURSING CENTRE,CARE ESTABLISHMENT,OPPD - Cost of Care - City South - Over 65,Older People - City & South - Care,Nursing Care
Cambridgeshire County Council,02-Nov-22,51301877957,"3,312.00",THE CAMBRIDGE NURSING CENTRE,CARE ESTABLISHMENT,OPPD - Cost of Care - City South - Over 65,Older People - City & South - Care,Nursing Care
Cambridgeshire County Council,02-Nov-22,51301877957,"3,312.00",THE CAMBRIDGE NURSING CENTRE,CARE ESTABLISHMENT,OPPD - Cost of Care - City South - Over 65,Older People - City & South - Care,Nursing Care
Cambridgeshire County Council,02-Nov-22,51301878188,"3,360.00",Redacted Personal Data,INDIVIDUAL,OPPD - Cost of Care - Fenland - Over 65,Older People - Fenland - Care,Direct Payments
Cambridgeshire County Council,02-Nov-22,51301877957,"3,425.85",THE CAMBRIDGE NURSING CENTRE,CARE ESTABLISHMENT,OPPD - Cost of Care - City South - Over 65,Older People - City & South - Care,Nursing Care
Cambridgeshire County Council,02-Nov-22,51301877957,"3,425.85",THE CAMBRIDGE NURSING CENTRE,CARE ESTABLISHMENT,OPPD - Cost of Care - City South - Over 65,Older People - City & South - Care,Nursing Care
Cambridgeshire County Council,02-Nov-22,51301877957,"3,425.85",THE CAMBRIDGE NURSING CENTRE,CARE ESTABLISHMENT,OPPD - Cost of Care - City South - Over 65,Older People - City & South - Care,Nursing Care
Cambridgeshire County Council,02-Nov-22,51301877957,"3,425.85",THE CAMBRIDGE NURSING CENTRE,CARE ESTABLISHMENT,OPPD - Cost of Care - City South - Over 65,Older People - City & South - Care,Nursing Care
Cambridgeshire County Council,02-Nov-22,51301877957,"3,425.85",THE CAMBRIDGE NURSING CENTRE,CARE ESTABLISHMENT,OPPD - Cost of Care - City South - Over 65,Older People - City & South - Care,Nursing Care
Cambridgeshire County Council,02-Nov-22,51301877957,"3,425.85",THE CAMBRIDGE NURSING CENTRE,CARE ESTABLISHMENT,OPPD - Cost of Care - City South - Over 65,Older People - City & South - Care,Nursing Care
Cambridgeshire County Council,02-Nov-22,51301877957,"3,425.85",THE CAMBRIDGE NURSING CENTRE,CARE ESTABLISHMENT,OPPD - Cost of Care - City South - Over 65,Older People - City & South - Care,Nursing Care
Cambridgeshire County Council,02-Nov-22,51301866356,"3,432.90",CUSTOM GROUP LTD,COMPANY,Corporate Offices,Cambridge PDC,"Fixtures, Fittings and Furnishings"
Cambridgeshire County Council,02-Nov-22,51301877957,"3,436.20",THE CAMBRIDGE NURSING CENTRE,CARE ESTABLISHMENT,OPPD - Cost of Care - City South - Over 65,Older People - City & South - Care,Nursing Care
Cambridgeshire County Council,02-Nov-22,51301877957,"3,436.20",THE CAMBRIDGE NURSING CENTRE,CARE ESTABLISHMENT,OPPD - Cost of Care - City South - Over 65,Older People - City & South - Care,Nursing Care
Cambridgeshire County Council,02-Nov-22,51301877957,"3,436.20",THE CAMBRIDGE NURSING CENTRE,CARE ESTABLISHMENT,OPPD - Cost of Care - City South - Over 65,Older People - City & South - Care,Nursing Care
Cambridgeshire County Council,02-Nov-22,51301877957,"3,436.20",THE CAMBRIDGE NURSING CENTRE,CARE ESTABLISHMENT,OPPD - Cost of Care - City South - Over 65,Older People - City & South - Care,Nursing Care
Cambridgeshire County Council,02-Nov-22,51301877957,"3,436.20",THE CAMBRIDGE NURSING CENTRE,CARE ESTABLISHMENT,OPPD - Cost of Care - City South - Over 65,Older People - City & South - Care,Nursing Care
Cambridgeshire County Council,02-Nov-22,51301877957,"3,436.20",THE CAMBRIDGE NURSING CENTRE,CARE ESTABLISHMENT,OPPD - Cost of Care - City South - Over 65,Older People - City & South - Care,Nursing Care
Cambridgeshire County Council,02-Nov-22,51301877957,"3,436.20",THE CAMBRIDGE NURSING CENTRE,CARE ESTABLISHMENT,OPPD - Cost of Care - City South - Over 65,Older People - City & South - Care,Nursing Care
Cambridgeshire County Council,02-Nov-22,51301877957,"3,436.20",THE CAMBRIDGE NURSING CENTRE,CARE ESTABLISHMENT,OPPD - Cost of Care - City South - Over 65,Older People - City & South - Care,Nursing Care
Cambridgeshire County Council,02-Nov-22,51301877957,"3,436.20",THE CAMBRIDGE NURSING CENTRE,CARE ESTABLISHMENT,OPPD - Cost of Care - City South - Over 65,Older People - City & South - Care,Nursing Care
Cambridgeshire County Council,02-Nov-22,51301877890,"3,467.30",Redacted Personal Data,INDIVIDUAL,Coroners,Coroners General,Professional Fees and Hired Services
Cambridgeshire County Council,02-Nov-22,51301878258,"3,501.40",Hunts Taxis Ltd,COMPANY,Adults - Central Transport,Adults Disabilities and OP Transport,Social Care Transport
Cambridgeshire County Council,02-Nov-22,51301877957,"3,548.57",THE CAMBRIDGE NURSING CENTRE,CARE ESTABLISHMENT,OPPD - Cost of Care - City South - Over 65,Older People - City & South - Care,Nursing Care
Cambridgeshire County Council,02-Nov-22,51301877957,"3,548.57",THE CAMBRIDGE NURSING CENTRE,CARE ESTABLISHMENT,OPPD - Cost of Care - City South - Over 65,Older People - City & South - Care,Nursing Care
Cambridgeshire County Council,02-Nov-22,51301878260,"3,549.00",Hunts Taxis Ltd,COMPANY,Adults - Central Transport,Adults Disabilities and OP Transport,Social Care Transport
Cambridgeshire County Council,02-Nov-22,51301878257,"3,549.00",Hunts Taxis Ltd,COMPANY,Adults - Central Transport,Adults Disabilities and OP Transport,Social Care Transport
Cambridgeshire County Council,02-Nov-22,51301878256,"3,549.00",Hunts Taxis Ltd,COMPANY,Adults - Central Transport,Adults Disabilities and OP Transport,Social Care Transport
Cambridgeshire County Council,02-Nov-22,51301878214,"3,584.50",ALL SAINTS PRE SCHOOL ACADEMY,NURSERY,SEND High Needs Top Up,SEND Specialist Services-High needs top-up-Early Years,Independent School Placements
Cambridgeshire County Council,02-Nov-22,51301877956,"3,622.50",THE RED HOUSE RESIDENTIAL & NURSING HOME,CARE ESTABLISHMENT,OPPD - Cost of Care - Huntingdon Blocks,Hunts - Long term blocks,Nursing Care
Cambridgeshire County Council,02-Nov-22,51301877956,"3,622.50",THE RED HOUSE RESIDENTIAL & NURSING HOME,CARE ESTABLISHMENT,OPPD - Cost of Care - Huntingdon Blocks,Hunts - Long term blocks,Nursing Care
Cambridgeshire County Council,02-Nov-22,51301877955,"3,622.50",HC-ONE,CARE ESTABLISHMENT,OPPD - Cost of Care - Huntingdon Blocks,Hunts - Long term blocks,Nursing Care
Cambridgeshire County Council,02-Nov-22,51301877955,"3,622.50",HC-ONE,CARE ESTABLISHMENT,OPPD - Cost of Care - Huntingdon Blocks,Hunts - Long term blocks,Nursing Care
Cambridgeshire County Council,02-Nov-22,51301878264,"3,726.53",PARKERS OF WISBECH LTD,TRADE SUPPLIER,LD - Young Adults Team,LD - Young Adults - Care,Social Care Transport
Cambridgeshire County Council,02-Nov-22,51301878255,"3,888.00",RAY-AL COACHES LTD,TRADE SUPPLIER,LD - Hunts Locality - Cost of Care,LD - Huntingdonshire - Care,Social Care Transport
Cambridgeshire County Council,02-Nov-22,51301878244,"3,976.32",STAR CABS LTD,TRADE SUPPLIER,LD - South Locality - Cost of Care,LD - South Cambs - Care,Social Care Transport
Cambridgeshire County Council,02-Nov-22,51301878233,"3,976.32",STAR CABS LTD,TRADE SUPPLIER,LD - South Locality - Cost of Care,LD - South Cambs - Care,Social Care Transport
Cambridgeshire County Council,02-Nov-22,51301877957,"4,140.00",THE CAMBRIDGE NURSING CENTRE,CARE ESTABLISHMENT,OPPD - Cost of Care - City South - Over 65,Older People - City & South - Care,Nursing Care
Cambridgeshire County Council,02-Nov-22,51301877957,"4,140.00",THE CAMBRIDGE NURSING CENTRE,CARE ESTABLISHMENT,OPPD - Cost of Care - City South - Over 65,Older People - City & South - Care,Nursing Care
Cambridgeshire County Council,02-Nov-22,51301877957,"4,140.00",THE CAMBRIDGE NURSING CENTRE,CARE ESTABLISHMENT,OPPD - Cost of Care - City South - Over 65,Older People - City & South - Care,Nursing Care
Cambridgeshire County Council,02-Nov-22,51301877957,"4,140.00",THE CAMBRIDGE NURSING CENTRE,CARE ESTABLISHMENT,OPPD - Cost of Care - City South - Over 65,Older People - City & South - Care,Nursing Care
Cambridgeshire County Council,02-Nov-22,51301877957,"4,140.00",THE CAMBRIDGE NURSING CENTRE,CARE ESTABLISHMENT,OPPD - Cost of Care - City South - Over 65,Older People - City & South - Care,Nursing Care
Cambridgeshire County Council,02-Nov-22,51301877957,"4,140.00",THE CAMBRIDGE NURSING CENTRE,CARE ESTABLISHMENT,OPPD - Cost of Care - City South - Over 65,Older People - City & South - Care,Nursing Care
Cambridgeshire County Council,02-Nov-22,51301877957,"4,140.00",THE CAMBRIDGE NURSING CENTRE,CARE ESTABLISHMENT,OPPD - Cost of Care - City South - Over 65,Older People - City & South - Care,Nursing Care
Cambridgeshire County Council,02-Nov-22,51301877957,"4,140.00",THE CAMBRIDGE NURSING CENTRE,CARE ESTABLISHMENT,OPPD - Cost of Care - City South - Over 65,Older People - City & South - Care,Nursing Care
Cambridgeshire County Council,02-Nov-22,51301877957,"4,140.00",THE CAMBRIDGE NURSING CENTRE,CARE ESTABLISHMENT,OPPD - Cost of Care - City South - Over 65,Older People - City & South - Care,Nursing Care
Cambridgeshire County Council,02-Nov-22,51301877957,"4,140.00",THE CAMBRIDGE NURSING CENTRE,CARE ESTABLISHMENT,OPPD - Cost of Care - City South - Over 65,Older People - City & South - Care,Nursing Care
Cambridgeshire County Council,02-Nov-22,51301877957,"4,140.00",THE CAMBRIDGE NURSING CENTRE,CARE ESTABLISHMENT,OPPD - Cost of Care - City South - Over 65,Older People - City & South - Care,Nursing Care
Cambridgeshire County Council,02-Nov-22,51301877957,"4,140.00",THE CAMBRIDGE NURSING CENTRE,CARE ESTABLISHMENT,OPPD - Cost of Care - City South - Over 65,Older People - City & South - Care,Nursing Care
Cambridgeshire County Council,02-Nov-22,51301877957,"4,140.00",THE CAMBRIDGE NURSING CENTRE,CARE ESTABLISHMENT,OPPD - Cost of Care - City South - Over 65,Older People - City & South - Care,Nursing Care
Cambridgeshire County Council,02-Nov-22,51301877957,"4,140.00",THE CAMBRIDGE NURSING CENTRE,CARE ESTABLISHMENT,OPPD - Cost of Care - City South - Over 65,Older People - City & South - Care,Nursing Care
Cambridgeshire County Council,02-Nov-22,51301877957,"4,140.00",THE CAMBRIDGE NURSING CENTRE,CARE ESTABLISHMENT,OPPD - Cost of Care - City South - Over 65,Older People - City & South - Care,Nursing Care
Cambridgeshire County Council,02-Nov-22,51301877957,"4,140.00",THE CAMBRIDGE NURSING CENTRE,CARE ESTABLISHMENT,OPPD - Cost of Care - City South - Over 65,Older People - City & South - Care,Nursing Care
Cambridgeshire County Council,02-Nov-22,51301877957,"4,140.00",THE CAMBRIDGE NURSING CENTRE,CARE ESTABLISHMENT,OPPD - Cost of Care - City South - Over 65,Older People - City & South - Care,Nursing Care
Cambridgeshire County Council,02-Nov-22,51301877957,"4,140.00",THE CAMBRIDGE NURSING CENTRE,CARE ESTABLISHMENT,OPPD - Cost of Care - City South - Over 65,Older People - City & South - Care,Nursing Care
Cambridgeshire County Council,02-Nov-22,51301877957,"4,258.29",THE CAMBRIDGE NURSING CENTRE,CARE ESTABLISHMENT,OPPD - Cost of Care - City South - Over 65,Older People - City & South - Care,Nursing Care
Cambridgeshire County Council,02-Nov-22,51301877957,"4,968.00",THE CAMBRIDGE NURSING CENTRE,CARE ESTABLISHMENT,OPPD - Cost of Care - City South - Over 65,Older People - City & South - Care,Nursing Care
Cambridgeshire County Council,02-Nov-22,51301877957,"4,968.00",THE CAMBRIDGE NURSING CENTRE,CARE ESTABLISHMENT,OPPD - Cost of Care - City South - Over 65,Older People - City & South - Care,Nursing Care
Cambridgeshire County Council,02-Nov-22,51301877957,"4,968.00",THE CAMBRIDGE NURSING CENTRE,CARE ESTABLISHMENT,OPPD - Cost of Care - City South - Over 65,Older People - City & South - Care,Nursing Care
Cambridgeshire County Council,02-Nov-22,51301877957,"4,968.00",THE CAMBRIDGE NURSING CENTRE,CARE ESTABLISHMENT,OPPD - Cost of Care - City South - Over 65,Older People - City & South - Care,Nursing Care
Cambridgeshire County Council,02-Nov-22,51301877953,"5,000.00",Dr Andy Cosh,SOLETRADER,GCP - Operations,GCP - Economic Assessment,Research & Development
Cambridgeshire County Council,02-Nov-22,51301878262,"5,050.10",PARKERS OF WISBECH LTD,TRADE SUPPLIER,LD - Fenland Locality - Cost of Care,LD - Fenland  - Care,Social Care Transport
Cambridgeshire County Council,02-Nov-22,51301877887,"5,079.62",Redacted Personal Data,INDIVIDUAL,Coroners,Coroners General,Professional Fees and Hired Services
Cambridgeshire County Council,02-Nov-22,51301862168,"5,844.00",ASHMOUNT SCHOOL,EDUCATION,Recoupment,Procurement - Out-County Special Schools & ER,Independent School Placements
Cambridgeshire County Council,02-Nov-22,51301878137,"6,250.00",HUNTINGDONSHIRE DISTRICT COUNCIL,OTHER PUBLIC BODIES,Corporate Offices,Eastfield House,Rents and Leases
Cambridgeshire County Council,02-Nov-22,51301877959,"6,385.00",COUNTRY LAND AND BUSINESS ASSOCIATION LIMITED,OTHER PUBLIC BODIES,County Farms,County Farms,Subscriptions
Cambridgeshire County Council,02-Nov-22,51301878303,"6,587.50",PETERBOROUGH CITY COUNCIL,OTHER PUBLIC BODIES,PH Childrens Vision Screening,Childrens Vision Screening,Professional Fees and Hired Services
Cambridgeshire County Council,02-Nov-22,51301878045,"6,714.00",Brookes Education Group UK Ltd,COMPANY,SEN Placements,Placements - Education,Independent School Placements
Cambridgeshire County Council,02-Nov-22,51301864739,"6,835.20",FRESH START IN EDUCATION,CARE ESTABLISHMENT,Out of School Tuition,Out of School Provision - Education and Settings,Independent School Placements
Cambridgeshire County Council,02-Nov-22,51301878074,"7,020.88",DADDY CABS LTD,TRADE SUPPLIER,Home to School Transport - Mainstream,Home to School Transport Mainstream - Primary,Home to School - Contract
Cambridgeshire County Council,02-Nov-22,51301878231,"8,531.40",COLLINS COACHES,TRADE SUPPLIER,Adults - Central Transport,Adults Disabilities and OP Transport,Social Care Transport
Cambridgeshire County Council,02-Nov-22,51301878230,"8,774.60",COLLINS COACHES,TRADE SUPPLIER,Adults - Central Transport,Adults Disabilities and OP Transport,Social Care Transport
Cambridgeshire County Council,02-Nov-22,51301877836,"9,950.00",Buntings Travel,COMPANY,Home to School Transport - Mainstream,Home to School Transport Mainstream - Secondary,Home to School - Contract
Cambridgeshire County Council,02-Nov-22,51301866155,"10,867.46",Team Q Maintenance Ltd,COMPANY,Corporate Offices,Horizon Resource Centre,Building Repair and Maintenance
Cambridgeshire County Council,02-Nov-22,51301878135,"11,280.00",HUNTINGDONSHIRE DISTRICT COUNCIL,OTHER PUBLIC BODIES,Corporate Offices,Pathfinder House,Service Charges
Cambridgeshire County Council,02-Nov-22,51301878242,"11,592.00",STAR CABS LTD,TRADE SUPPLIER,Adults - Central Transport,Adults Disabilities and OP Transport,Social Care Transport
Cambridgeshire County Council,02-Nov-22,51301878237,"11,592.00",STAR CABS LTD,TRADE SUPPLIER,Adults - Central Transport,Adults Disabilities and OP Transport,Social Care Transport
Cambridgeshire County Council,02-Nov-22,51301878136,"12,600.00",HUNTINGDONSHIRE DISTRICT COUNCIL,OTHER PUBLIC BODIES,Corporate Offices,Pathfinder House,Rents and Leases
Cambridgeshire County Council,02-Nov-22,51301877864,"13,117.00",LIFECRAFT,CHARITY,Mental Health Commissioning,Mental Health Commissioning,Day Care
Cambridgeshire County Council,02-Nov-22,51301865122,"15,528.36",BEVAN BRITTAN LLP,TRADE SUPPLIER,Waste Disposal incl PFI,Waste PFI,External Legal Fees
Cambridgeshire County Council,02-Nov-22,51301878035,"15,800.00",Keys PCE Ltd,CARE ESTABLISHMENT,LAC Placements,Placements - residential homes,Agency Placements - Out of  County
Cambridgeshire County Council,02-Nov-22,51301878038,"15,800.00",Keys PCE Ltd,CARE ESTABLISHMENT,LAC Placements,Placements - residential homes,Agency Placements - Out of  County
Cambridgeshire County Council,02-Nov-22,51301878029,"15,800.00",Keys PCE Ltd,CARE ESTABLISHMENT,LAC Placements,Placements - residential homes,Agency Placements - Out of  County
Cambridgeshire County Council,02-Nov-22,51301878026,"15,800.00",Keys PCE Ltd,CARE ESTABLISHMENT,LAC Placements,Placements - residential homes,Agency Placements - In County
Cambridgeshire County Council,02-Nov-22,51301878023,"15,800.00",Keys PCE Ltd,CARE ESTABLISHMENT,LAC Placements,Placements - residential homes,Agency Placements - In County
Cambridgeshire County Council,02-Nov-22,51301878032,"15,800.00",Keys PCE Ltd,CARE ESTABLISHMENT,LAC Placements,Placements - residential disability,Agency Placements - Out of  County
Cambridgeshire County Council,02-Nov-22,51301866229,"16,501.14",Vuzion UK Ltd,COMPANY,ICT Service,ICT Service Technical Support,Computer software - purchase
Cambridgeshire County Council,02-Nov-22,51301878261,"16,747.50",PARKERS OF WISBECH LTD,TRADE SUPPLIER,Adults - Central Transport,Adults Disabilities and OP Transport,Social Care Transport
Cambridgeshire County Council,02-Nov-22,51301878238,"18,270.00",STAR CABS LTD,TRADE SUPPLIER,Adults - Central Transport,Adults Disabilities and OP Transport,Social Care Transport
Cambridgeshire County Council,02-Nov-22,51301878243,"18,270.00",STAR CABS LTD,TRADE SUPPLIER,Adults - Central Transport,Adults Disabilities and OP Transport,Social Care Transport
Cambridgeshire County Council,02-Nov-22,51301878027,"18,960.00",Keys PCE Ltd,CARE ESTABLISHMENT,LAC Placements,Placements - residential homes,Agency Placements - In County
Cambridgeshire County Council,02-Nov-22,51301878024,"18,960.00",Keys PCE Ltd,CARE ESTABLISHMENT,LAC Placements,Placements - residential homes,Agency Placements - In County
Cambridgeshire County Council,02-Nov-22,51301878036,"18,960.00",Keys PCE Ltd,CARE ESTABLISHMENT,LAC Placements,Placements - residential homes,Agency Placements - Out of  County
Cambridgeshire County Council,02-Nov-22,51301878017,"18,960.00",Keys PCE Ltd,CARE ESTABLISHMENT,LAC Placements,Placements - residential homes,Agency Placements - Out of  County
Cambridgeshire County Council,02-Nov-22,51301878039,"18,960.00",Keys PCE Ltd,CARE ESTABLISHMENT,LAC Placements,Placements - residential homes,Agency Placements - Out of  County
Cambridgeshire County Council,02-Nov-22,51301878030,"18,960.00",Keys PCE Ltd,CARE ESTABLISHMENT,LAC Placements,Placements - residential homes,Agency Placements - Out of  County
Cambridgeshire County Council,02-Nov-22,51301878033,"18,960.00",Keys PCE Ltd,CARE ESTABLISHMENT,LAC Placements,Placements - residential disability,Agency Placements - Out of  County
Cambridgeshire County Council,02-Nov-22,51301878119,"21,277.15",CAMBRIDGESHIRE AND PETERBOROUGH NHS FOUNDATION TRUST,TRUST (OTHER),Integrated Community Equipment Service,ICES (Pool),Staffing Recharges - External
Cambridgeshire County Council,02-Nov-22,51301878160,"21,548.50",HEALTHWATCH CAMBRIDGESHIRE,CARE ESTABLISHMENT,Integration,Head of Integration,Specialist Servicing and Maintenance
Cambridgeshire County Council,02-Nov-22,51301878020,"23,785.71",Esland South Ltd,CARE ESTABLISHMENT,LAC Placements,Placements - residential homes,Agency Placements - Out of  County
Cambridgeshire County Council,02-Nov-22,51301878157,"26,696.40",Womble Bond Dickinson (UK) LLP,COMPANY,GCP - Cambourne to Cambridge (A428),GCP - Cambourne to Cambridge (A428),Construction - External Professional Fees
Cambridgeshire County Council,02-Nov-22,51301867654,"53,562.44",ATKINS LTD,COMPANY,Guided Busway - Litigation costs,Guided Bus,External Legal Fees
Cambridgeshire County Council,02-Nov-22,51301878308,"120,600.00",BEDFORD BOROUGH COUNCIL,OTHER PUBLIC BODIES,Adults Central Holding,Adults Central Holding,Payments to Other Local Authorities
Cambridgeshire County Council,02-Nov-22,51301878219,"126,695.04",Thalia WB  ODC Limited,TRADE SUPPLIER,Waste Disposal incl PFI,Waste PFI,Rents and Leases
Cambridgeshire County Council,02-Nov-22,51301866230,"232,949.72",WSP UK LTD T/A WSP INTEGRATED BUILDING SERVICES,TRADE SUPPLIER,GCP - Cambourne to Cambridge (A428),GCP - Cambourne to Cambridge (A428),Construction - External Professional Fees
Cambridgeshire County Council,02-Nov-22,51301865890,"333,936.98",MLL Telecom Limited,TRADE SUPPLIER,ICT Service,ICT Service Eastnet,Network Support Contracts
Cambridgeshire County Council,02-Nov-22,51301864647,"334,794.00",ATKINS LTD,COMPANY,GCP - Cambridge South East (A1307),GCP - Cambridge South East (A1307),Construction - External Professional Fees
Cambridgeshire County Council,03-Nov-22,65300017516,"-9,209.00",Private Hire 2 Go Ltd,COMPANY,Home to School Transport - Special,Home to School Transport Special - Primary,Home to School - Contract
Cambridgeshire County Council,03-Nov-22,51301863298,"2,697.60",ROLAND FLETCHER,SOLETRADER,Highways Maintenance,Rights of Way and Access,Rights of Way - gates
Cambridgeshire County Council,03-Nov-22,51301881756,"9,209.00",Private Hire 2 Go Ltd,COMPANY,Home to School Transport - Special,Home to School Transport Special - Primary,Home to School - Contract
Cambridgeshire County Council,04-Nov-22,51301878999,"-23,506.87",Bethel Children's Care Ltd,CARE ESTABLISHMENT,LAC Placements,Placements - residential homes,Agency Placements - Out of  County
Cambridgeshire County Council,04-Nov-22,51301879016,"-15,800.00",Keys PCE Ltd,CARE ESTABLISHMENT,LAC Placements,Placements - residential homes,Agency Placements - In County
Cambridgeshire County Council,04-Nov-22,51301878919,"-4,862.39",CARETECH COMMUNITY SERVICES,CARE ESTABLISHMENT,LAC Placements,Placements - supported accommodation,Agency Placements - In County
Cambridgeshire County Council,04-Nov-22,51301878690,"-3,441.15",CONSENSUS COMMUNITY SUPPORT LTD,CARE ESTABLISHMENT,LD - Young Adults Team,LD - Young Adults - Special Needs,Supported Living
Cambridgeshire County Council,04-Nov-22,51301878690,"-3,441.15",CONSENSUS COMMUNITY SUPPORT LTD,CARE ESTABLISHMENT,LD - Young Adults Team,LD - Young Adults - Special Needs,Supported Living
Cambridgeshire County Council,04-Nov-22,51301878690,"-3,441.15",CONSENSUS COMMUNITY SUPPORT LTD,CARE ESTABLISHMENT,LD - Young Adults Team,LD - Young Adults - Special Needs,Supported Living
Cambridgeshire County Council,04-Nov-22,51301878690,"-3,441.15",CONSENSUS COMMUNITY SUPPORT LTD,CARE ESTABLISHMENT,LD - Young Adults Team,LD - Young Adults - Special Needs,Supported Living
Cambridgeshire County Council,04-Nov-22,51301878690,"-3,441.15",CONSENSUS COMMUNITY SUPPORT LTD,CARE ESTABLISHMENT,LD - Young Adults Team,LD - Young Adults - Special Needs,Supported Living
Cambridgeshire County Council,04-Nov-22,51301878690,"-3,441.15",CONSENSUS COMMUNITY SUPPORT LTD,CARE ESTABLISHMENT,LD - Young Adults Team,LD - Young Adults - Special Needs,Supported Living
Cambridgeshire County Council,04-Nov-22,51301878690,"-3,441.15",CONSENSUS COMMUNITY SUPPORT LTD,CARE ESTABLISHMENT,LD - Young Adults Team,LD - Young Adults - Special Needs,Supported Living
Cambridgeshire County Council,04-Nov-22,51301878690,"-3,441.15",CONSENSUS COMMUNITY SUPPORT LTD,CARE ESTABLISHMENT,LD - Young Adults Team,LD - Young Adults - Special Needs,Supported Living
Cambridgeshire County Council,04-Nov-22,51301878690,"-3,441.15",CONSENSUS COMMUNITY SUPPORT LTD,CARE ESTABLISHMENT,LD - Young Adults Team,LD - Young Adults - Special Needs,Supported Living
Cambridgeshire County Council,04-Nov-22,51301878690,"-3,441.15",CONSENSUS COMMUNITY SUPPORT LTD,CARE ESTABLISHMENT,LD - Young Adults Team,LD - Young Adults - Special Needs,Supported Living
Cambridgeshire County Council,04-Nov-22,51301878690,"-3,441.15",CONSENSUS COMMUNITY SUPPORT LTD,CARE ESTABLISHMENT,LD - Young Adults Team,LD - Young Adults - Special Needs,Supported Living
Cambridgeshire County Council,04-Nov-22,51301878690,"-3,441.15",CONSENSUS COMMUNITY SUPPORT LTD,CARE ESTABLISHMENT,LD - Young Adults Team,LD - Young Adults - Special Needs,Supported Living
Cambridgeshire County Council,04-Nov-22,51301878690,"-3,441.15",CONSENSUS COMMUNITY SUPPORT LTD,CARE ESTABLISHMENT,LD - Young Adults Team,LD - Young Adults - Special Needs,Supported Living
Cambridgeshire County Council,04-Nov-22,51301878690,"-3,441.15",CONSENSUS COMMUNITY SUPPORT LTD,CARE ESTABLISHMENT,LD - Young Adults Team,LD - Young Adults - Special Needs,Supported Living
Cambridgeshire County Council,04-Nov-22,51301878690,"-3,441.15",CONSENSUS COMMUNITY SUPPORT LTD,CARE ESTABLISHMENT,LD - Young Adults Team,LD - Young Adults - Special Needs,Supported Living
Cambridgeshire County Council,04-Nov-22,51301878690,"-3,441.15",CONSENSUS COMMUNITY SUPPORT LTD,CARE ESTABLISHMENT,LD - Young Adults Team,LD - Young Adults - Special Needs,Supported Living
Cambridgeshire County Council,04-Nov-22,51301878690,"-3,441.15",CONSENSUS COMMUNITY SUPPORT LTD,CARE ESTABLISHMENT,LD - Young Adults Team,LD - Young Adults - Special Needs,Supported Living
Cambridgeshire County Council,04-Nov-22,51301878690,"-3,441.15",CONSENSUS COMMUNITY SUPPORT LTD,CARE ESTABLISHMENT,LD - Young Adults Team,LD - Young Adults - Special Needs,Supported Living
Cambridgeshire County Council,04-Nov-22,51301878690,"-3,441.15",CONSENSUS COMMUNITY SUPPORT LTD,CARE ESTABLISHMENT,LD - Young Adults Team,LD - Young Adults - Special Needs,Supported Living
Cambridgeshire County Council,04-Nov-22,51301878690,"-3,441.15",CONSENSUS COMMUNITY SUPPORT LTD,CARE ESTABLISHMENT,LD - Young Adults Team,LD - Young Adults - Special Needs,Supported Living
Cambridgeshire County Council,04-Nov-22,51301878690,"-3,441.15",CONSENSUS COMMUNITY SUPPORT LTD,CARE ESTABLISHMENT,LD - Young Adults Team,LD - Young Adults - Special Needs,Supported Living
Cambridgeshire County Council,04-Nov-22,51301878690,"-3,441.15",CONSENSUS COMMUNITY SUPPORT LTD,CARE ESTABLISHMENT,LD - Young Adults Team,LD - Young Adults - Special Needs,Supported Living
Cambridgeshire County Council,04-Nov-22,51301878690,"-3,441.15",CONSENSUS COMMUNITY SUPPORT LTD,CARE ESTABLISHMENT,LD - Young Adults Team,LD - Young Adults - Special Needs,Supported Living
Cambridgeshire County Council,04-Nov-22,51301878690,"-3,441.15",CONSENSUS COMMUNITY SUPPORT LTD,CARE ESTABLISHMENT,LD - Young Adults Team,LD - Young Adults - Special Needs,Supported Living
Cambridgeshire County Council,04-Nov-22,51301878690,"-3,441.15",CONSENSUS COMMUNITY SUPPORT LTD,CARE ESTABLISHMENT,LD - Young Adults Team,LD - Young Adults - Special Needs,Supported Living
Cambridgeshire County Council,04-Nov-22,51301878690,"-3,441.15",CONSENSUS COMMUNITY SUPPORT LTD,CARE ESTABLISHMENT,LD - Young Adults Team,LD - Young Adults - Special Needs,Supported Living
Cambridgeshire County Council,04-Nov-22,51301878690,"-3,441.15",CONSENSUS COMMUNITY SUPPORT LTD,CARE ESTABLISHMENT,LD - Young Adults Team,LD - Young Adults - Special Needs,Supported Living
Cambridgeshire County Council,04-Nov-22,51301878690,"-3,441.15",CONSENSUS COMMUNITY SUPPORT LTD,CARE ESTABLISHMENT,LD - Young Adults Team,LD - Young Adults - Special Needs,Supported Living
Cambridgeshire County Council,04-Nov-22,51301878690,"-3,441.15",CONSENSUS COMMUNITY SUPPORT LTD,CARE ESTABLISHMENT,LD - Young Adults Team,LD - Young Adults - Special Needs,Supported Living
Cambridgeshire County Council,04-Nov-22,51301878690,"-3,441.15",CONSENSUS COMMUNITY SUPPORT LTD,CARE ESTABLISHMENT,LD - Young Adults Team,LD - Young Adults - Special Needs,Supported Living
Cambridgeshire County Council,04-Nov-22,51301878690,"-3,441.15",CONSENSUS COMMUNITY SUPPORT LTD,CARE ESTABLISHMENT,LD - Young Adults Team,LD - Young Adults - Special Needs,Supported Living
Cambridgeshire County Council,04-Nov-22,51301878916,"-3,353.37",CARETECH COMMUNITY SERVICES,CARE ESTABLISHMENT,LAC Placements,Placements - supported accommodation,Agency Placements - In County
Cambridgeshire County Council,04-Nov-22,51301878690,"-3,331.22",CONSENSUS COMMUNITY SUPPORT LTD,CARE ESTABLISHMENT,LD - Young Adults Team,LD - Young Adults - Special Needs,Supported Living
Cambridgeshire County Council,04-Nov-22,51301878690,"-3,331.22",CONSENSUS COMMUNITY SUPPORT LTD,CARE ESTABLISHMENT,LD - Young Adults Team,LD - Young Adults - Special Needs,Supported Living
Cambridgeshire County Council,04-Nov-22,51301878690,"-3,331.22",CONSENSUS COMMUNITY SUPPORT LTD,CARE ESTABLISHMENT,LD - Young Adults Team,LD - Young Adults - Special Needs,Supported Living
Cambridgeshire County Council,04-Nov-22,51301878690,"-3,331.22",CONSENSUS COMMUNITY SUPPORT LTD,CARE ESTABLISHMENT,LD - Young Adults Team,LD - Young Adults - Special Needs,Supported Living
Cambridgeshire County Council,04-Nov-22,51301878681,"-2,743.44",Redacted Personal Data,INDIVIDUAL,LD - City Locality - Cost of Care,LD - City - Care,Direct Payments
Cambridgeshire County Council,04-Nov-22,51301878690,"-2,379.44",CONSENSUS COMMUNITY SUPPORT LTD,CARE ESTABLISHMENT,LD - Young Adults Team,LD - Young Adults - Special Needs,Supported Living
Cambridgeshire County Council,04-Nov-22,51301878668,"-2,052.04",CHS GROUP,CARE ESTABLISHMENT,LD - City Locality - Cost of Care,LD - City - Care,Residential Care - Property Voids
Cambridgeshire County Council,04-Nov-22,51301878709,"-1,995.96",Bedfordshire Opportunities for Learning Disabilities (BOLD),EDUCATION,LD - Young Adults Team,LD - Young Adults - Care,Day Care
Cambridgeshire County Council,04-Nov-22,51301878709,"-1,995.96",Bedfordshire Opportunities for Learning Disabilities (BOLD),EDUCATION,LD - Young Adults Team,LD - Young Adults - Care,Day Care
Cambridgeshire County Council,04-Nov-22,51301878709,"-1,995.96",Bedfordshire Opportunities for Learning Disabilities (BOLD),EDUCATION,LD - Young Adults Team,LD - Young Adults - Care,Day Care
Cambridgeshire County Council,04-Nov-22,51301878709,"-1,995.96",Bedfordshire Opportunities for Learning Disabilities (BOLD),EDUCATION,LD - Young Adults Team,LD - Young Adults - Care,Day Care
Cambridgeshire County Council,04-Nov-22,51301878709,"-1,995.96",Bedfordshire Opportunities for Learning Disabilities (BOLD),EDUCATION,LD - Young Adults Team,LD - Young Adults - Care,Day Care
Cambridgeshire County Council,04-Nov-22,51301878709,"-1,995.96",Bedfordshire Opportunities for Learning Disabilities (BOLD),EDUCATION,LD - Young Adults Team,LD - Young Adults - Care,Day Care
Cambridgeshire County Council,04-Nov-22,51301878709,"-1,995.96",Bedfordshire Opportunities for Learning Disabilities (BOLD),EDUCATION,LD - Young Adults Team,LD - Young Adults - Care,Day Care
Cambridgeshire County Council,04-Nov-22,51301878709,"-1,995.96",Bedfordshire Opportunities for Learning Disabilities (BOLD),EDUCATION,LD - Young Adults Team,LD - Young Adults - Care,Day Care
Cambridgeshire County Council,04-Nov-22,51301878709,"-1,995.96",Bedfordshire Opportunities for Learning Disabilities (BOLD),EDUCATION,LD - Young Adults Team,LD - Young Adults - Care,Day Care
Cambridgeshire County Council,04-Nov-22,51301878709,"-1,995.96",Bedfordshire Opportunities for Learning Disabilities (BOLD),EDUCATION,LD - Young Adults Team,LD - Young Adults - Care,Day Care
Cambridgeshire County Council,04-Nov-22,51301878709,"-1,995.96",Bedfordshire Opportunities for Learning Disabilities (BOLD),EDUCATION,LD - Young Adults Team,LD - Young Adults - Care,Day Care
Cambridgeshire County Council,04-Nov-22,51301878690,"-1,903.55",CONSENSUS COMMUNITY SUPPORT LTD,CARE ESTABLISHMENT,LD - Young Adults Team,LD - Young Adults - Special Needs,Supported Living
Cambridgeshire County Council,04-Nov-22,51301878716,"-1,899.10",TONY STOCKS T/A GUYATT HOUSE,CARE ESTABLISHMENT,LD - East Locality - Cost of Care,LD - East Cambs - Care,Residential Care
Cambridgeshire County Council,04-Nov-22,51301878716,"-1,899.10",TONY STOCKS T/A GUYATT HOUSE,CARE ESTABLISHMENT,LD - East Locality - Cost of Care,LD - East Cambs - Care,Residential Care
Cambridgeshire County Council,04-Nov-22,51301878716,"-1,899.10",TONY STOCKS T/A GUYATT HOUSE,CARE ESTABLISHMENT,LD - East Locality - Cost of Care,LD - East Cambs - Care,Residential Care
Cambridgeshire County Council,04-Nov-22,51301878716,"-1,899.10",TONY STOCKS T/A GUYATT HOUSE,CARE ESTABLISHMENT,LD - East Locality - Cost of Care,LD - East Cambs - Care,Residential Care
Cambridgeshire County Council,04-Nov-22,51301878716,"-1,899.10",TONY STOCKS T/A GUYATT HOUSE,CARE ESTABLISHMENT,LD - East Locality - Cost of Care,LD - East Cambs - Care,Residential Care
Cambridgeshire County Council,04-Nov-22,51301878716,"-1,899.10",TONY STOCKS T/A GUYATT HOUSE,CARE ESTABLISHMENT,LD - East Locality - Cost of Care,LD - East Cambs - Care,Residential Care
Cambridgeshire County Council,04-Nov-22,51301878716,"-1,899.10",TONY STOCKS T/A GUYATT HOUSE,CARE ESTABLISHMENT,LD - East Locality - Cost of Care,LD - East Cambs - Care,Residential Care
Cambridgeshire County Council,04-Nov-22,51301878716,"-1,899.10",TONY STOCKS T/A GUYATT HOUSE,CARE ESTABLISHMENT,LD - East Locality - Cost of Care,LD - East Cambs - Care,Residential Care
Cambridgeshire County Council,04-Nov-22,51301878716,"-1,899.10",TONY STOCKS T/A GUYATT HOUSE,CARE ESTABLISHMENT,LD - East Locality - Cost of Care,LD - East Cambs - Care,Residential Care
Cambridgeshire County Council,04-Nov-22,51301878716,"-1,899.10",TONY STOCKS T/A GUYATT HOUSE,CARE ESTABLISHMENT,LD - East Locality - Cost of Care,LD - East Cambs - Care,Residential Care
Cambridgeshire County Council,04-Nov-22,51301878716,"-1,899.10",TONY STOCKS T/A GUYATT HOUSE,CARE ESTABLISHMENT,LD - East Locality - Cost of Care,LD - East Cambs - Care,Residential Care
Cambridgeshire County Council,04-Nov-22,51301878716,"-1,899.10",TONY STOCKS T/A GUYATT HOUSE,CARE ESTABLISHMENT,LD - East Locality - Cost of Care,LD - East Cambs - Care,Residential Care
Cambridgeshire County Council,04-Nov-22,51301878716,"-1,899.10",TONY STOCKS T/A GUYATT HOUSE,CARE ESTABLISHMENT,LD - East Locality - Cost of Care,LD - East Cambs - Care,Residential Care
Cambridgeshire County Council,04-Nov-22,51301878716,"-1,899.10",TONY STOCKS T/A GUYATT HOUSE,CARE ESTABLISHMENT,LD - East Locality - Cost of Care,LD - East Cambs - Care,Residential Care
Cambridgeshire County Council,04-Nov-22,51301878716,"-1,899.10",TONY STOCKS T/A GUYATT HOUSE,CARE ESTABLISHMENT,LD - East Locality - Cost of Care,LD - East Cambs - Care,Residential Care
Cambridgeshire County Council,04-Nov-22,51301878716,"-1,899.10",TONY STOCKS T/A GUYATT HOUSE,CARE ESTABLISHMENT,LD - East Locality - Cost of Care,LD - East Cambs - Care,Residential Care
Cambridgeshire County Council,04-Nov-22,51301878716,"-1,899.10",TONY STOCKS T/A GUYATT HOUSE,CARE ESTABLISHMENT,LD - East Locality - Cost of Care,LD - East Cambs - Care,Residential Care
Cambridgeshire County Council,04-Nov-22,51301878716,"-1,899.10",TONY STOCKS T/A GUYATT HOUSE,CARE ESTABLISHMENT,LD - East Locality - Cost of Care,LD - East Cambs - Care,Residential Care
Cambridgeshire County Council,04-Nov-22,51301878716,"-1,899.10",TONY STOCKS T/A GUYATT HOUSE,CARE ESTABLISHMENT,LD - East Locality - Cost of Care,LD - East Cambs - Care,Residential Care
Cambridgeshire County Council,04-Nov-22,51301878716,"-1,899.10",TONY STOCKS T/A GUYATT HOUSE,CARE ESTABLISHMENT,LD - East Locality - Cost of Care,LD - East Cambs - Care,Residential Care
Cambridgeshire County Council,04-Nov-22,51301878716,"-1,899.10",TONY STOCKS T/A GUYATT HOUSE,CARE ESTABLISHMENT,LD - East Locality - Cost of Care,LD - East Cambs - Care,Residential Care
Cambridgeshire County Council,04-Nov-22,51301878716,"-1,899.10",TONY STOCKS T/A GUYATT HOUSE,CARE ESTABLISHMENT,LD - East Locality - Cost of Care,LD - East Cambs - Care,Residential Care
Cambridgeshire County Council,04-Nov-22,51301878716,"-1,899.10",TONY STOCKS T/A GUYATT HOUSE,CARE ESTABLISHMENT,LD - East Locality - Cost of Care,LD - East Cambs - Care,Residential Care
Cambridgeshire County Council,04-Nov-22,51301878716,"-1,899.10",TONY STOCKS T/A GUYATT HOUSE,CARE ESTABLISHMENT,LD - East Locality - Cost of Care,LD - East Cambs - Care,Residential Care
Cambridgeshire County Council,04-Nov-22,51301878716,"-1,899.10",TONY STOCKS T/A GUYATT HOUSE,CARE ESTABLISHMENT,LD - East Locality - Cost of Care,LD - East Cambs - Care,Residential Care
Cambridgeshire County Council,04-Nov-22,51301878716,"-1,899.10",TONY STOCKS T/A GUYATT HOUSE,CARE ESTABLISHMENT,LD - East Locality - Cost of Care,LD - East Cambs - Care,Residential Care
Cambridgeshire County Council,04-Nov-22,51301878716,"-1,899.10",TONY STOCKS T/A GUYATT HOUSE,CARE ESTABLISHMENT,LD - East Locality - Cost of Care,LD - East Cambs - Care,Residential Care
Cambridgeshire County Council,04-Nov-22,51301878716,"-1,899.10",TONY STOCKS T/A GUYATT HOUSE,CARE ESTABLISHMENT,LD - East Locality - Cost of Care,LD - East Cambs - Care,Residential Care
Cambridgeshire County Council,04-Nov-22,51301878716,"-1,899.10",TONY STOCKS T/A GUYATT HOUSE,CARE ESTABLISHMENT,LD - East Locality - Cost of Care,LD - East Cambs - Care,Residential Care
Cambridgeshire County Council,04-Nov-22,51301878716,"-1,899.10",TONY STOCKS T/A GUYATT HOUSE,CARE ESTABLISHMENT,LD - East Locality - Cost of Care,LD - East Cambs - Care,Residential Care
Cambridgeshire County Council,04-Nov-22,51301878716,"-1,899.10",TONY STOCKS T/A GUYATT HOUSE,CARE ESTABLISHMENT,LD - East Locality - Cost of Care,LD - East Cambs - Care,Residential Care
Cambridgeshire County Council,04-Nov-22,51301878716,"-1,899.10",TONY STOCKS T/A GUYATT HOUSE,CARE ESTABLISHMENT,LD - East Locality - Cost of Care,LD - East Cambs - Care,Residential Care
Cambridgeshire County Council,04-Nov-22,51301878716,"-1,899.10",TONY STOCKS T/A GUYATT HOUSE,CARE ESTABLISHMENT,LD - East Locality - Cost of Care,LD - East Cambs - Care,Residential Care
Cambridgeshire County Council,04-Nov-22,51301878716,"-1,899.10",TONY STOCKS T/A GUYATT HOUSE,CARE ESTABLISHMENT,LD - East Locality - Cost of Care,LD - East Cambs - Care,Residential Care
Cambridgeshire County Council,04-Nov-22,51301878716,"-1,899.10",TONY STOCKS T/A GUYATT HOUSE,CARE ESTABLISHMENT,LD - East Locality - Cost of Care,LD - East Cambs - Care,Residential Care
Cambridgeshire County Council,04-Nov-22,51301878709,"-1,710.82",Bedfordshire Opportunities for Learning Disabilities (BOLD),EDUCATION,LD - Young Adults Team,LD - Young Adults - Care,Day Care
Cambridgeshire County Council,04-Nov-22,51301878733,"-1,589.09",THE MANOR CHESHIRE HOME,CARE ESTABLISHMENT,LD - Hunts Locality - Cost of Care,LD - Huntingdonshire - Special Needs,Residential Care
Cambridgeshire County Council,04-Nov-22,51301878733,"-1,589.09",THE MANOR CHESHIRE HOME,CARE ESTABLISHMENT,LD - Hunts Locality - Cost of Care,LD - Huntingdonshire - Special Needs,Residential Care
Cambridgeshire County Council,04-Nov-22,51301878733,"-1,589.09",THE MANOR CHESHIRE HOME,CARE ESTABLISHMENT,LD - Hunts Locality - Cost of Care,LD - Huntingdonshire - Special Needs,Residential Care
Cambridgeshire County Council,04-Nov-22,51301878733,"-1,589.09",THE MANOR CHESHIRE HOME,CARE ESTABLISHMENT,LD - Hunts Locality - Cost of Care,LD - Huntingdonshire - Special Needs,Residential Care
Cambridgeshire County Council,04-Nov-22,51301878733,"-1,589.09",THE MANOR CHESHIRE HOME,CARE ESTABLISHMENT,LD - Hunts Locality - Cost of Care,LD - Huntingdonshire - Special Needs,Residential Care
Cambridgeshire County Council,04-Nov-22,51301878733,"-1,589.09",THE MANOR CHESHIRE HOME,CARE ESTABLISHMENT,LD - Hunts Locality - Cost of Care,LD - Huntingdonshire - Special Needs,Residential Care
Cambridgeshire County Council,04-Nov-22,51301878733,"-1,589.09",THE MANOR CHESHIRE HOME,CARE ESTABLISHMENT,LD - Hunts Locality - Cost of Care,LD - Huntingdonshire - Special Needs,Residential Care
Cambridgeshire County Council,04-Nov-22,51301878733,"-1,589.09",THE MANOR CHESHIRE HOME,CARE ESTABLISHMENT,LD - Hunts Locality - Cost of Care,LD - Huntingdonshire - Special Needs,Residential Care
Cambridgeshire County Council,04-Nov-22,51301878733,"-1,589.09",THE MANOR CHESHIRE HOME,CARE ESTABLISHMENT,LD - Hunts Locality - Cost of Care,LD - Huntingdonshire - Special Needs,Residential Care
Cambridgeshire County Council,04-Nov-22,51301878733,"-1,589.09",THE MANOR CHESHIRE HOME,CARE ESTABLISHMENT,LD - Hunts Locality - Cost of Care,LD - Huntingdonshire - Special Needs,Residential Care
Cambridgeshire County Council,04-Nov-22,51301878733,"-1,589.09",THE MANOR CHESHIRE HOME,CARE ESTABLISHMENT,LD - Hunts Locality - Cost of Care,LD - Huntingdonshire - Special Needs,Residential Care
Cambridgeshire County Council,04-Nov-22,51301878733,"-1,589.09",THE MANOR CHESHIRE HOME,CARE ESTABLISHMENT,LD - Hunts Locality - Cost of Care,LD - Huntingdonshire - Special Needs,Residential Care
Cambridgeshire County Council,04-Nov-22,51301878733,"-1,589.09",THE MANOR CHESHIRE HOME,CARE ESTABLISHMENT,LD - Hunts Locality - Cost of Care,LD - Huntingdonshire - Special Needs,Residential Care
Cambridgeshire County Council,04-Nov-22,51301878733,"-1,589.09",THE MANOR CHESHIRE HOME,CARE ESTABLISHMENT,LD - Hunts Locality - Cost of Care,LD - Huntingdonshire - Special Needs,Residential Care
Cambridgeshire County Council,04-Nov-22,51301878733,"-1,589.09",THE MANOR CHESHIRE HOME,CARE ESTABLISHMENT,LD - Hunts Locality - Cost of Care,LD - Huntingdonshire - Special Needs,Residential Care
Cambridgeshire County Council,04-Nov-22,51301878733,"-1,589.09",THE MANOR CHESHIRE HOME,CARE ESTABLISHMENT,LD - Hunts Locality - Cost of Care,LD - Huntingdonshire - Special Needs,Residential Care
Cambridgeshire County Council,04-Nov-22,51301878733,"-1,589.09",THE MANOR CHESHIRE HOME,CARE ESTABLISHMENT,LD - Hunts Locality - Cost of Care,LD - Huntingdonshire - Special Needs,Residential Care
Cambridgeshire County Council,04-Nov-22,51301878733,"-1,589.09",THE MANOR CHESHIRE HOME,CARE ESTABLISHMENT,LD - Hunts Locality - Cost of Care,LD - Huntingdonshire - Special Needs,Residential Care
Cambridgeshire County Council,04-Nov-22,51301878733,"-1,589.09",THE MANOR CHESHIRE HOME,CARE ESTABLISHMENT,LD - Hunts Locality - Cost of Care,LD - Huntingdonshire - Special Needs,Residential Care
Cambridgeshire County Council,04-Nov-22,51301878733,"-1,589.09",THE MANOR CHESHIRE HOME,CARE ESTABLISHMENT,LD - Hunts Locality - Cost of Care,LD - Huntingdonshire - Special Needs,Residential Care
Cambridgeshire County Council,04-Nov-22,51301878733,"-1,589.09",THE MANOR CHESHIRE HOME,CARE ESTABLISHMENT,LD - Hunts Locality - Cost of Care,LD - Huntingdonshire - Special Needs,Residential Care
Cambridgeshire County Council,04-Nov-22,51301878733,"-1,589.09",THE MANOR CHESHIRE HOME,CARE ESTABLISHMENT,LD - Hunts Locality - Cost of Care,LD - Huntingdonshire - Special Needs,Residential Care
Cambridgeshire County Council,04-Nov-22,51301878733,"-1,589.09",THE MANOR CHESHIRE HOME,CARE ESTABLISHMENT,LD - Hunts Locality - Cost of Care,LD - Huntingdonshire - Special Needs,Residential Care
Cambridgeshire County Council,04-Nov-22,51301878733,"-1,589.09",THE MANOR CHESHIRE HOME,CARE ESTABLISHMENT,LD - Hunts Locality - Cost of Care,LD - Huntingdonshire - Special Needs,Residential Care
Cambridgeshire County Council,04-Nov-22,51301878733,"-1,589.09",THE MANOR CHESHIRE HOME,CARE ESTABLISHMENT,LD - Hunts Locality - Cost of Care,LD - Huntingdonshire - Special Needs,Residential Care
Cambridgeshire County Council,04-Nov-22,51301878733,"-1,589.09",THE MANOR CHESHIRE HOME,CARE ESTABLISHMENT,LD - Hunts Locality - Cost of Care,LD - Huntingdonshire - Special Needs,Residential Care
Cambridgeshire County Council,04-Nov-22,51301878733,"-1,589.09",THE MANOR CHESHIRE HOME,CARE ESTABLISHMENT,LD - Hunts Locality - Cost of Care,LD - Huntingdonshire - Special Needs,Residential Care
Cambridgeshire County Council,04-Nov-22,51301878733,"-1,589.09",THE MANOR CHESHIRE HOME,CARE ESTABLISHMENT,LD - Hunts Locality - Cost of Care,LD - Huntingdonshire - Special Needs,Residential Care
Cambridgeshire County Council,04-Nov-22,51301878733,"-1,589.09",THE MANOR CHESHIRE HOME,CARE ESTABLISHMENT,LD - Hunts Locality - Cost of Care,LD - Huntingdonshire - Special Needs,Residential Care
Cambridgeshire County Council,04-Nov-22,51301878733,"-1,589.09",THE MANOR CHESHIRE HOME,CARE ESTABLISHMENT,LD - Hunts Locality - Cost of Care,LD - Huntingdonshire - Special Needs,Residential Care
Cambridgeshire County Council,04-Nov-22,51301878733,"-1,589.09",THE MANOR CHESHIRE HOME,CARE ESTABLISHMENT,LD - Hunts Locality - Cost of Care,LD - Huntingdonshire - Special Needs,Residential Care
Cambridgeshire County Council,04-Nov-22,51301878733,"-1,589.09",THE MANOR CHESHIRE HOME,CARE ESTABLISHMENT,LD - Hunts Locality - Cost of Care,LD - Huntingdonshire - Special Needs,Residential Care
Cambridgeshire County Council,04-Nov-22,51301878733,"-1,589.09",THE MANOR CHESHIRE HOME,CARE ESTABLISHMENT,LD - Hunts Locality - Cost of Care,LD - Huntingdonshire - Special Needs,Residential Care
Cambridgeshire County Council,04-Nov-22,51301878733,"-1,589.09",THE MANOR CHESHIRE HOME,CARE ESTABLISHMENT,LD - Hunts Locality - Cost of Care,LD - Huntingdonshire - Special Needs,Residential Care
Cambridgeshire County Council,04-Nov-22,51301878733,"-1,589.09",THE MANOR CHESHIRE HOME,CARE ESTABLISHMENT,LD - Hunts Locality - Cost of Care,LD - Huntingdonshire - Special Needs,Residential Care
Cambridgeshire County Council,04-Nov-22,51301878718,"-1,372.94",THE MANOR CHESHIRE HOME,CARE ESTABLISHMENT,OPPD - Cost of Care - Huntingdon - Under 65,OPPD - Under 65 - Huntingdon,Residential Care
Cambridgeshire County Council,04-Nov-22,51301878718,"-1,372.94",THE MANOR CHESHIRE HOME,CARE ESTABLISHMENT,OPPD - Cost of Care - Huntingdon - Under 65,OPPD - Under 65 - Huntingdon,Residential Care
Cambridgeshire County Council,04-Nov-22,51301878718,"-1,372.94",THE MANOR CHESHIRE HOME,CARE ESTABLISHMENT,OPPD - Cost of Care - Huntingdon - Under 65,OPPD - Under 65 - Huntingdon,Residential Care
Cambridgeshire County Council,04-Nov-22,51301878718,"-1,372.94",THE MANOR CHESHIRE HOME,CARE ESTABLISHMENT,OPPD - Cost of Care - Huntingdon - Under 65,OPPD - Under 65 - Huntingdon,Residential Care
Cambridgeshire County Council,04-Nov-22,51301878718,"-1,372.94",THE MANOR CHESHIRE HOME,CARE ESTABLISHMENT,OPPD - Cost of Care - Huntingdon - Under 65,OPPD - Under 65 - Huntingdon,Residential Care
Cambridgeshire County Council,04-Nov-22,51301878718,"-1,372.94",THE MANOR CHESHIRE HOME,CARE ESTABLISHMENT,OPPD - Cost of Care - Huntingdon - Under 65,OPPD - Under 65 - Huntingdon,Residential Care
Cambridgeshire County Council,04-Nov-22,51301878718,"-1,372.94",THE MANOR CHESHIRE HOME,CARE ESTABLISHMENT,OPPD - Cost of Care - Huntingdon - Under 65,OPPD - Under 65 - Huntingdon,Residential Care
Cambridgeshire County Council,04-Nov-22,51301878718,"-1,372.94",THE MANOR CHESHIRE HOME,CARE ESTABLISHMENT,OPPD - Cost of Care - Huntingdon - Under 65,OPPD - Under 65 - Huntingdon,Residential Care
Cambridgeshire County Council,04-Nov-22,51301878718,"-1,372.94",THE MANOR CHESHIRE HOME,CARE ESTABLISHMENT,OPPD - Cost of Care - Huntingdon - Under 65,OPPD - Under 65 - Huntingdon,Residential Care
Cambridgeshire County Council,04-Nov-22,51301878718,"-1,372.94",THE MANOR CHESHIRE HOME,CARE ESTABLISHMENT,OPPD - Cost of Care - Huntingdon - Under 65,OPPD - Under 65 - Huntingdon,Residential Care
Cambridgeshire County Council,04-Nov-22,51301878718,"-1,372.94",THE MANOR CHESHIRE HOME,CARE ESTABLISHMENT,OPPD - Cost of Care - Huntingdon - Under 65,OPPD - Under 65 - Huntingdon,Residential Care
Cambridgeshire County Council,04-Nov-22,51301878718,"-1,372.94",THE MANOR CHESHIRE HOME,CARE ESTABLISHMENT,OPPD - Cost of Care - Huntingdon - Under 65,OPPD - Under 65 - Huntingdon,Residential Care
Cambridgeshire County Council,04-Nov-22,51301878718,"-1,372.94",THE MANOR CHESHIRE HOME,CARE ESTABLISHMENT,OPPD - Cost of Care - Huntingdon - Under 65,OPPD - Under 65 - Huntingdon,Residential Care
Cambridgeshire County Council,04-Nov-22,51301878718,"-1,372.94",THE MANOR CHESHIRE HOME,CARE ESTABLISHMENT,OPPD - Cost of Care - Huntingdon - Under 65,OPPD - Under 65 - Huntingdon,Residential Care
Cambridgeshire County Council,04-Nov-22,51301878718,"-1,372.94",THE MANOR CHESHIRE HOME,CARE ESTABLISHMENT,OPPD - Cost of Care - Huntingdon - Under 65,OPPD - Under 65 - Huntingdon,Residential Care
Cambridgeshire County Council,04-Nov-22,51301878718,"-1,372.94",THE MANOR CHESHIRE HOME,CARE ESTABLISHMENT,OPPD - Cost of Care - Huntingdon - Under 65,OPPD - Under 65 - Huntingdon,Residential Care
Cambridgeshire County Council,04-Nov-22,51301878718,"-1,372.94",THE MANOR CHESHIRE HOME,CARE ESTABLISHMENT,OPPD - Cost of Care - Huntingdon - Under 65,OPPD - Under 65 - Huntingdon,Residential Care
Cambridgeshire County Council,04-Nov-22,51301878718,"-1,372.94",THE MANOR CHESHIRE HOME,CARE ESTABLISHMENT,OPPD - Cost of Care - Huntingdon - Under 65,OPPD - Under 65 - Huntingdon,Residential Care
Cambridgeshire County Council,04-Nov-22,51301878718,"-1,372.94",THE MANOR CHESHIRE HOME,CARE ESTABLISHMENT,OPPD - Cost of Care - Huntingdon - Under 65,OPPD - Under 65 - Huntingdon,Residential Care
Cambridgeshire County Council,04-Nov-22,51301878718,"-1,372.94",THE MANOR CHESHIRE HOME,CARE ESTABLISHMENT,OPPD - Cost of Care - Huntingdon - Under 65,OPPD - Under 65 - Huntingdon,Residential Care
Cambridgeshire County Council,04-Nov-22,51301878718,"-1,372.94",THE MANOR CHESHIRE HOME,CARE ESTABLISHMENT,OPPD - Cost of Care - Huntingdon - Under 65,OPPD - Under 65 - Huntingdon,Residential Care
Cambridgeshire County Council,04-Nov-22,51301878718,"-1,372.94",THE MANOR CHESHIRE HOME,CARE ESTABLISHMENT,OPPD - Cost of Care - Huntingdon - Under 65,OPPD - Under 65 - Huntingdon,Residential Care
Cambridgeshire County Council,04-Nov-22,51301878718,"-1,372.94",THE MANOR CHESHIRE HOME,CARE ESTABLISHMENT,OPPD - Cost of Care - Huntingdon - Under 65,OPPD - Under 65 - Huntingdon,Residential Care
Cambridgeshire County Council,04-Nov-22,51301878718,"-1,372.94",THE MANOR CHESHIRE HOME,CARE ESTABLISHMENT,OPPD - Cost of Care - Huntingdon - Under 65,OPPD - Under 65 - Huntingdon,Residential Care
Cambridgeshire County Council,04-Nov-22,51301878718,"-1,372.94",THE MANOR CHESHIRE HOME,CARE ESTABLISHMENT,OPPD - Cost of Care - Huntingdon - Under 65,OPPD - Under 65 - Huntingdon,Residential Care
Cambridgeshire County Council,04-Nov-22,51301878718,"-1,372.94",THE MANOR CHESHIRE HOME,CARE ESTABLISHMENT,OPPD - Cost of Care - Huntingdon - Under 65,OPPD - Under 65 - Huntingdon,Residential Care
Cambridgeshire County Council,04-Nov-22,51301878718,"-1,372.94",THE MANOR CHESHIRE HOME,CARE ESTABLISHMENT,OPPD - Cost of Care - Huntingdon - Under 65,OPPD - Under 65 - Huntingdon,Residential Care
Cambridgeshire County Council,04-Nov-22,51301878718,"-1,372.94",THE MANOR CHESHIRE HOME,CARE ESTABLISHMENT,OPPD - Cost of Care - Huntingdon - Under 65,OPPD - Under 65 - Huntingdon,Residential Care
Cambridgeshire County Council,04-Nov-22,51301878718,"-1,372.94",THE MANOR CHESHIRE HOME,CARE ESTABLISHMENT,OPPD - Cost of Care - Huntingdon - Under 65,OPPD - Under 65 - Huntingdon,Residential Care
Cambridgeshire County Council,04-Nov-22,51301878718,"-1,372.94",THE MANOR CHESHIRE HOME,CARE ESTABLISHMENT,OPPD - Cost of Care - Huntingdon - Under 65,OPPD - Under 65 - Huntingdon,Residential Care
Cambridgeshire County Council,04-Nov-22,51301878718,"-1,372.94",THE MANOR CHESHIRE HOME,CARE ESTABLISHMENT,OPPD - Cost of Care - Huntingdon - Under 65,OPPD - Under 65 - Huntingdon,Residential Care
Cambridgeshire County Council,04-Nov-22,51301878718,"-1,372.94",THE MANOR CHESHIRE HOME,CARE ESTABLISHMENT,OPPD - Cost of Care - Huntingdon - Under 65,OPPD - Under 65 - Huntingdon,Residential Care
Cambridgeshire County Council,04-Nov-22,51301878718,"-1,372.94",THE MANOR CHESHIRE HOME,CARE ESTABLISHMENT,OPPD - Cost of Care - Huntingdon - Under 65,OPPD - Under 65 - Huntingdon,Residential Care
Cambridgeshire County Council,04-Nov-22,51301878718,"-1,372.94",THE MANOR CHESHIRE HOME,CARE ESTABLISHMENT,OPPD - Cost of Care - Huntingdon - Under 65,OPPD - Under 65 - Huntingdon,Residential Care
Cambridgeshire County Council,04-Nov-22,51301878718,"-1,372.94",THE MANOR CHESHIRE HOME,CARE ESTABLISHMENT,OPPD - Cost of Care - Huntingdon - Under 65,OPPD - Under 65 - Huntingdon,Residential Care
Cambridgeshire County Council,04-Nov-22,51301878715,"-1,342.68",THE MANOR CHESHIRE HOME,CARE ESTABLISHMENT,LD - Hunts Locality - Cost of Care,LD - Huntingdonshire - Care,Residential Care
Cambridgeshire County Council,04-Nov-22,51301878715,"-1,342.68",THE MANOR CHESHIRE HOME,CARE ESTABLISHMENT,LD - Hunts Locality - Cost of Care,LD - Huntingdonshire - Care,Residential Care
Cambridgeshire County Council,04-Nov-22,51301878715,"-1,342.68",THE MANOR CHESHIRE HOME,CARE ESTABLISHMENT,LD - Hunts Locality - Cost of Care,LD - Huntingdonshire - Care,Residential Care
Cambridgeshire County Council,04-Nov-22,51301878715,"-1,342.68",THE MANOR CHESHIRE HOME,CARE ESTABLISHMENT,LD - Hunts Locality - Cost of Care,LD - Huntingdonshire - Care,Residential Care
Cambridgeshire County Council,04-Nov-22,51301878715,"-1,342.68",THE MANOR CHESHIRE HOME,CARE ESTABLISHMENT,LD - Hunts Locality - Cost of Care,LD - Huntingdonshire - Care,Residential Care
Cambridgeshire County Council,04-Nov-22,51301878715,"-1,342.68",THE MANOR CHESHIRE HOME,CARE ESTABLISHMENT,LD - Hunts Locality - Cost of Care,LD - Huntingdonshire - Care,Residential Care
Cambridgeshire County Council,04-Nov-22,51301878715,"-1,342.68",THE MANOR CHESHIRE HOME,CARE ESTABLISHMENT,LD - Hunts Locality - Cost of Care,LD - Huntingdonshire - Care,Residential Care
Cambridgeshire County Council,04-Nov-22,51301878715,"-1,342.68",THE MANOR CHESHIRE HOME,CARE ESTABLISHMENT,LD - Hunts Locality - Cost of Care,LD - Huntingdonshire - Care,Residential Care
Cambridgeshire County Council,04-Nov-22,51301878715,"-1,342.68",THE MANOR CHESHIRE HOME,CARE ESTABLISHMENT,LD - Hunts Locality - Cost of Care,LD - Huntingdonshire - Care,Residential Care
Cambridgeshire County Council,04-Nov-22,51301878715,"-1,342.68",THE MANOR CHESHIRE HOME,CARE ESTABLISHMENT,LD - Hunts Locality - Cost of Care,LD - Huntingdonshire - Care,Residential Care
Cambridgeshire County Council,04-Nov-22,51301878715,"-1,342.68",THE MANOR CHESHIRE HOME,CARE ESTABLISHMENT,LD - Hunts Locality - Cost of Care,LD - Huntingdonshire - Care,Residential Care
Cambridgeshire County Council,04-Nov-22,51301878715,"-1,342.68",THE MANOR CHESHIRE HOME,CARE ESTABLISHMENT,LD - Hunts Locality - Cost of Care,LD - Huntingdonshire - Care,Residential Care
Cambridgeshire County Council,04-Nov-22,51301878715,"-1,342.68",THE MANOR CHESHIRE HOME,CARE ESTABLISHMENT,LD - Hunts Locality - Cost of Care,LD - Huntingdonshire - Care,Residential Care
Cambridgeshire County Council,04-Nov-22,51301878715,"-1,342.68",THE MANOR CHESHIRE HOME,CARE ESTABLISHMENT,LD - Hunts Locality - Cost of Care,LD - Huntingdonshire - Care,Residential Care
Cambridgeshire County Council,04-Nov-22,51301878715,"-1,342.68",THE MANOR CHESHIRE HOME,CARE ESTABLISHMENT,LD - Hunts Locality - Cost of Care,LD - Huntingdonshire - Care,Residential Care
Cambridgeshire County Council,04-Nov-22,51301878715,"-1,342.68",THE MANOR CHESHIRE HOME,CARE ESTABLISHMENT,LD - Hunts Locality - Cost of Care,LD - Huntingdonshire - Care,Residential Care
Cambridgeshire County Council,04-Nov-22,51301878715,"-1,342.68",THE MANOR CHESHIRE HOME,CARE ESTABLISHMENT,LD - Hunts Locality - Cost of Care,LD - Huntingdonshire - Care,Residential Care
Cambridgeshire County Council,04-Nov-22,51301878715,"-1,342.68",THE MANOR CHESHIRE HOME,CARE ESTABLISHMENT,LD - Hunts Locality - Cost of Care,LD - Huntingdonshire - Care,Residential Care
Cambridgeshire County Council,04-Nov-22,51301878715,"-1,342.68",THE MANOR CHESHIRE HOME,CARE ESTABLISHMENT,LD - Hunts Locality - Cost of Care,LD - Huntingdonshire - Care,Residential Care
Cambridgeshire County Council,04-Nov-22,51301878715,"-1,342.68",THE MANOR CHESHIRE HOME,CARE ESTABLISHMENT,LD - Hunts Locality - Cost of Care,LD - Huntingdonshire - Care,Residential Care
Cambridgeshire County Council,04-Nov-22,51301878715,"-1,342.68",THE MANOR CHESHIRE HOME,CARE ESTABLISHMENT,LD - Hunts Locality - Cost of Care,LD - Huntingdonshire - Care,Residential Care
Cambridgeshire County Council,04-Nov-22,51301878715,"-1,342.68",THE MANOR CHESHIRE HOME,CARE ESTABLISHMENT,LD - Hunts Locality - Cost of Care,LD - Huntingdonshire - Care,Residential Care
Cambridgeshire County Council,04-Nov-22,51301878715,"-1,342.68",THE MANOR CHESHIRE HOME,CARE ESTABLISHMENT,LD - Hunts Locality - Cost of Care,LD - Huntingdonshire - Care,Residential Care
Cambridgeshire County Council,04-Nov-22,51301878715,"-1,342.68",THE MANOR CHESHIRE HOME,CARE ESTABLISHMENT,LD - Hunts Locality - Cost of Care,LD - Huntingdonshire - Care,Residential Care
Cambridgeshire County Council,04-Nov-22,51301878715,"-1,342.68",THE MANOR CHESHIRE HOME,CARE ESTABLISHMENT,LD - Hunts Locality - Cost of Care,LD - Huntingdonshire - Care,Residential Care
Cambridgeshire County Council,04-Nov-22,51301878715,"-1,342.68",THE MANOR CHESHIRE HOME,CARE ESTABLISHMENT,LD - Hunts Locality - Cost of Care,LD - Huntingdonshire - Care,Residential Care
Cambridgeshire County Council,04-Nov-22,51301878715,"-1,342.68",THE MANOR CHESHIRE HOME,CARE ESTABLISHMENT,LD - Hunts Locality - Cost of Care,LD - Huntingdonshire - Care,Residential Care
Cambridgeshire County Council,04-Nov-22,51301878715,"-1,342.68",THE MANOR CHESHIRE HOME,CARE ESTABLISHMENT,LD - Hunts Locality - Cost of Care,LD - Huntingdonshire - Care,Residential Care
Cambridgeshire County Council,04-Nov-22,51301878715,"-1,342.68",THE MANOR CHESHIRE HOME,CARE ESTABLISHMENT,LD - Hunts Locality - Cost of Care,LD - Huntingdonshire - Care,Residential Care
Cambridgeshire County Council,04-Nov-22,51301878715,"-1,342.68",THE MANOR CHESHIRE HOME,CARE ESTABLISHMENT,LD - Hunts Locality - Cost of Care,LD - Huntingdonshire - Care,Residential Care
Cambridgeshire County Council,04-Nov-22,51301878715,"-1,342.68",THE MANOR CHESHIRE HOME,CARE ESTABLISHMENT,LD - Hunts Locality - Cost of Care,LD - Huntingdonshire - Care,Residential Care
Cambridgeshire County Council,04-Nov-22,51301878715,"-1,342.68",THE MANOR CHESHIRE HOME,CARE ESTABLISHMENT,LD - Hunts Locality - Cost of Care,LD - Huntingdonshire - Care,Residential Care
Cambridgeshire County Council,04-Nov-22,51301878715,"-1,342.68",THE MANOR CHESHIRE HOME,CARE ESTABLISHMENT,LD - Hunts Locality - Cost of Care,LD - Huntingdonshire - Care,Residential Care
Cambridgeshire County Council,04-Nov-22,51301878715,"-1,342.68",THE MANOR CHESHIRE HOME,CARE ESTABLISHMENT,LD - Hunts Locality - Cost of Care,LD - Huntingdonshire - Care,Residential Care
Cambridgeshire County Council,04-Nov-22,51301878715,"-1,342.68",THE MANOR CHESHIRE HOME,CARE ESTABLISHMENT,LD - Hunts Locality - Cost of Care,LD - Huntingdonshire - Care,Residential Care
Cambridgeshire County Council,04-Nov-22,51301878736,"-1,306.47",THE MANOR CHESHIRE HOME,CARE ESTABLISHMENT,OPPD - Cost of Care - Huntingdon - Over 65,Hunts OP Team - Care,Residential Care
Cambridgeshire County Council,04-Nov-22,51301878736,"-1,306.47",THE MANOR CHESHIRE HOME,CARE ESTABLISHMENT,OPPD - Cost of Care - Huntingdon - Over 65,Hunts OP Team - Care,Residential Care
Cambridgeshire County Council,04-Nov-22,51301878736,"-1,306.47",THE MANOR CHESHIRE HOME,CARE ESTABLISHMENT,OPPD - Cost of Care - Huntingdon - Over 65,Hunts OP Team - Care,Residential Care
Cambridgeshire County Council,04-Nov-22,51301878736,"-1,306.47",THE MANOR CHESHIRE HOME,CARE ESTABLISHMENT,OPPD - Cost of Care - Huntingdon - Over 65,Hunts OP Team - Care,Residential Care
Cambridgeshire County Council,04-Nov-22,51301878736,"-1,306.47",THE MANOR CHESHIRE HOME,CARE ESTABLISHMENT,OPPD - Cost of Care - Huntingdon - Over 65,Hunts OP Team - Care,Residential Care
Cambridgeshire County Council,04-Nov-22,51301878736,"-1,306.47",THE MANOR CHESHIRE HOME,CARE ESTABLISHMENT,OPPD - Cost of Care - Huntingdon - Over 65,Hunts OP Team - Care,Residential Care
Cambridgeshire County Council,04-Nov-22,51301878736,"-1,306.47",THE MANOR CHESHIRE HOME,CARE ESTABLISHMENT,OPPD - Cost of Care - Huntingdon - Over 65,Hunts OP Team - Care,Residential Care
Cambridgeshire County Council,04-Nov-22,51301878736,"-1,306.47",THE MANOR CHESHIRE HOME,CARE ESTABLISHMENT,OPPD - Cost of Care - Huntingdon - Over 65,Hunts OP Team - Care,Residential Care
Cambridgeshire County Council,04-Nov-22,51301878736,"-1,306.47",THE MANOR CHESHIRE HOME,CARE ESTABLISHMENT,OPPD - Cost of Care - Huntingdon - Over 65,Hunts OP Team - Care,Residential Care
Cambridgeshire County Council,04-Nov-22,51301878736,"-1,306.47",THE MANOR CHESHIRE HOME,CARE ESTABLISHMENT,OPPD - Cost of Care - Huntingdon - Over 65,Hunts OP Team - Care,Residential Care
Cambridgeshire County Council,04-Nov-22,51301878736,"-1,306.47",THE MANOR CHESHIRE HOME,CARE ESTABLISHMENT,OPPD - Cost of Care - Huntingdon - Over 65,Hunts OP Team - Care,Residential Care
Cambridgeshire County Council,04-Nov-22,51301878736,"-1,306.47",THE MANOR CHESHIRE HOME,CARE ESTABLISHMENT,OPPD - Cost of Care - Huntingdon - Over 65,Hunts OP Team - Care,Residential Care
Cambridgeshire County Council,04-Nov-22,51301878736,"-1,306.47",THE MANOR CHESHIRE HOME,CARE ESTABLISHMENT,OPPD - Cost of Care - Huntingdon - Over 65,Hunts OP Team - Care,Residential Care
Cambridgeshire County Council,04-Nov-22,51301878736,"-1,306.47",THE MANOR CHESHIRE HOME,CARE ESTABLISHMENT,OPPD - Cost of Care - Huntingdon - Over 65,Hunts OP Team - Care,Residential Care
Cambridgeshire County Council,04-Nov-22,51301878736,"-1,306.47",THE MANOR CHESHIRE HOME,CARE ESTABLISHMENT,OPPD - Cost of Care - Huntingdon - Over 65,Hunts OP Team - Care,Residential Care
Cambridgeshire County Council,04-Nov-22,51301878736,"-1,306.47",THE MANOR CHESHIRE HOME,CARE ESTABLISHMENT,OPPD - Cost of Care - Huntingdon - Over 65,Hunts OP Team - Care,Residential Care
Cambridgeshire County Council,04-Nov-22,51301878736,"-1,306.47",THE MANOR CHESHIRE HOME,CARE ESTABLISHMENT,OPPD - Cost of Care - Huntingdon - Over 65,Hunts OP Team - Care,Residential Care
Cambridgeshire County Council,04-Nov-22,51301878736,"-1,306.47",THE MANOR CHESHIRE HOME,CARE ESTABLISHMENT,OPPD - Cost of Care - Huntingdon - Over 65,Hunts OP Team - Care,Residential Care
Cambridgeshire County Council,04-Nov-22,51301878736,"-1,306.47",THE MANOR CHESHIRE HOME,CARE ESTABLISHMENT,OPPD - Cost of Care - Huntingdon - Over 65,Hunts OP Team - Care,Residential Care
Cambridgeshire County Council,04-Nov-22,51301878736,"-1,306.47",THE MANOR CHESHIRE HOME,CARE ESTABLISHMENT,OPPD - Cost of Care - Huntingdon - Over 65,Hunts OP Team - Care,Residential Care
Cambridgeshire County Council,04-Nov-22,51301878736,"-1,306.47",THE MANOR CHESHIRE HOME,CARE ESTABLISHMENT,OPPD - Cost of Care - Huntingdon - Over 65,Hunts OP Team - Care,Residential Care
Cambridgeshire County Council,04-Nov-22,51301878736,"-1,306.47",THE MANOR CHESHIRE HOME,CARE ESTABLISHMENT,OPPD - Cost of Care - Huntingdon - Over 65,Hunts OP Team - Care,Residential Care
Cambridgeshire County Council,04-Nov-22,51301878736,"-1,306.47",THE MANOR CHESHIRE HOME,CARE ESTABLISHMENT,OPPD - Cost of Care - Huntingdon - Over 65,Hunts OP Team - Care,Residential Care
Cambridgeshire County Council,04-Nov-22,51301878736,"-1,306.47",THE MANOR CHESHIRE HOME,CARE ESTABLISHMENT,OPPD - Cost of Care - Huntingdon - Over 65,Hunts OP Team - Care,Residential Care
Cambridgeshire County Council,04-Nov-22,51301878736,"-1,306.47",THE MANOR CHESHIRE HOME,CARE ESTABLISHMENT,OPPD - Cost of Care - Huntingdon - Over 65,Hunts OP Team - Care,Residential Care
Cambridgeshire County Council,04-Nov-22,51301878736,"-1,306.47",THE MANOR CHESHIRE HOME,CARE ESTABLISHMENT,OPPD - Cost of Care - Huntingdon - Over 65,Hunts OP Team - Care,Residential Care
Cambridgeshire County Council,04-Nov-22,51301878736,"-1,306.47",THE MANOR CHESHIRE HOME,CARE ESTABLISHMENT,OPPD - Cost of Care - Huntingdon - Over 65,Hunts OP Team - Care,Residential Care
Cambridgeshire County Council,04-Nov-22,51301878736,"-1,306.47",THE MANOR CHESHIRE HOME,CARE ESTABLISHMENT,OPPD - Cost of Care - Huntingdon - Over 65,Hunts OP Team - Care,Residential Care
Cambridgeshire County Council,04-Nov-22,51301878736,"-1,306.47",THE MANOR CHESHIRE HOME,CARE ESTABLISHMENT,OPPD - Cost of Care - Huntingdon - Over 65,Hunts OP Team - Care,Residential Care
Cambridgeshire County Council,04-Nov-22,51301878736,"-1,306.47",THE MANOR CHESHIRE HOME,CARE ESTABLISHMENT,OPPD - Cost of Care - Huntingdon - Over 65,Hunts OP Team - Care,Residential Care
Cambridgeshire County Council,04-Nov-22,51301878736,"-1,306.47",THE MANOR CHESHIRE HOME,CARE ESTABLISHMENT,OPPD - Cost of Care - Huntingdon - Over 65,Hunts OP Team - Care,Residential Care
Cambridgeshire County Council,04-Nov-22,51301878736,"-1,306.47",THE MANOR CHESHIRE HOME,CARE ESTABLISHMENT,OPPD - Cost of Care - Huntingdon - Over 65,Hunts OP Team - Care,Residential Care
Cambridgeshire County Council,04-Nov-22,51301878736,"-1,306.47",THE MANOR CHESHIRE HOME,CARE ESTABLISHMENT,OPPD - Cost of Care - Huntingdon - Over 65,Hunts OP Team - Care,Residential Care
Cambridgeshire County Council,04-Nov-22,51301878736,"-1,306.47",THE MANOR CHESHIRE HOME,CARE ESTABLISHMENT,OPPD - Cost of Care - Huntingdon - Over 65,Hunts OP Team - Care,Residential Care
Cambridgeshire County Council,04-Nov-22,51301878736,"-1,306.47",THE MANOR CHESHIRE HOME,CARE ESTABLISHMENT,OPPD - Cost of Care - Huntingdon - Over 65,Hunts OP Team - Care,Residential Care
Cambridgeshire County Council,04-Nov-22,51301878734,"-1,257.70",THE MANOR CHESHIRE HOME,CARE ESTABLISHMENT,OPPD - Cost of Care - Huntingdon - Under 65,OPPD - Under 65 - Huntingdon,Residential Care
Cambridgeshire County Council,04-Nov-22,51301878734,"-1,257.70",THE MANOR CHESHIRE HOME,CARE ESTABLISHMENT,OPPD - Cost of Care - Huntingdon - Under 65,OPPD - Under 65 - Huntingdon,Residential Care
Cambridgeshire County Council,04-Nov-22,51301878734,"-1,257.70",THE MANOR CHESHIRE HOME,CARE ESTABLISHMENT,OPPD - Cost of Care - Huntingdon - Under 65,OPPD - Under 65 - Huntingdon,Residential Care
Cambridgeshire County Council,04-Nov-22,51301878734,"-1,257.70",THE MANOR CHESHIRE HOME,CARE ESTABLISHMENT,OPPD - Cost of Care - Huntingdon - Under 65,OPPD - Under 65 - Huntingdon,Residential Care
Cambridgeshire County Council,04-Nov-22,51301878734,"-1,257.70",THE MANOR CHESHIRE HOME,CARE ESTABLISHMENT,OPPD - Cost of Care - Huntingdon - Under 65,OPPD - Under 65 - Huntingdon,Residential Care
Cambridgeshire County Council,04-Nov-22,51301878734,"-1,257.70",THE MANOR CHESHIRE HOME,CARE ESTABLISHMENT,OPPD - Cost of Care - Huntingdon - Under 65,OPPD - Under 65 - Huntingdon,Residential Care
Cambridgeshire County Council,04-Nov-22,51301878734,"-1,257.70",THE MANOR CHESHIRE HOME,CARE ESTABLISHMENT,OPPD - Cost of Care - Huntingdon - Under 65,OPPD - Under 65 - Huntingdon,Residential Care
Cambridgeshire County Council,04-Nov-22,51301878734,"-1,257.70",THE MANOR CHESHIRE HOME,CARE ESTABLISHMENT,OPPD - Cost of Care - Huntingdon - Under 65,OPPD - Under 65 - Huntingdon,Residential Care
Cambridgeshire County Council,04-Nov-22,51301878734,"-1,257.70",THE MANOR CHESHIRE HOME,CARE ESTABLISHMENT,OPPD - Cost of Care - Huntingdon - Under 65,OPPD - Under 65 - Huntingdon,Residential Care
Cambridgeshire County Council,04-Nov-22,51301878734,"-1,257.70",THE MANOR CHESHIRE HOME,CARE ESTABLISHMENT,OPPD - Cost of Care - Huntingdon - Under 65,OPPD - Under 65 - Huntingdon,Residential Care
Cambridgeshire County Council,04-Nov-22,51301878734,"-1,257.70",THE MANOR CHESHIRE HOME,CARE ESTABLISHMENT,OPPD - Cost of Care - Huntingdon - Under 65,OPPD - Under 65 - Huntingdon,Residential Care
Cambridgeshire County Council,04-Nov-22,51301878734,"-1,257.70",THE MANOR CHESHIRE HOME,CARE ESTABLISHMENT,OPPD - Cost of Care - Huntingdon - Under 65,OPPD - Under 65 - Huntingdon,Residential Care
Cambridgeshire County Council,04-Nov-22,51301878734,"-1,257.70",THE MANOR CHESHIRE HOME,CARE ESTABLISHMENT,OPPD - Cost of Care - Huntingdon - Under 65,OPPD - Under 65 - Huntingdon,Residential Care
Cambridgeshire County Council,04-Nov-22,51301878734,"-1,257.70",THE MANOR CHESHIRE HOME,CARE ESTABLISHMENT,OPPD - Cost of Care - Huntingdon - Under 65,OPPD - Under 65 - Huntingdon,Residential Care
Cambridgeshire County Council,04-Nov-22,51301878734,"-1,257.70",THE MANOR CHESHIRE HOME,CARE ESTABLISHMENT,OPPD - Cost of Care - Huntingdon - Under 65,OPPD - Under 65 - Huntingdon,Residential Care
Cambridgeshire County Council,04-Nov-22,51301878734,"-1,257.70",THE MANOR CHESHIRE HOME,CARE ESTABLISHMENT,OPPD - Cost of Care - Huntingdon - Under 65,OPPD - Under 65 - Huntingdon,Residential Care
Cambridgeshire County Council,04-Nov-22,51301878734,"-1,257.70",THE MANOR CHESHIRE HOME,CARE ESTABLISHMENT,OPPD - Cost of Care - Huntingdon - Under 65,OPPD - Under 65 - Huntingdon,Residential Care
Cambridgeshire County Council,04-Nov-22,51301878734,"-1,257.70",THE MANOR CHESHIRE HOME,CARE ESTABLISHMENT,OPPD - Cost of Care - Huntingdon - Under 65,OPPD - Under 65 - Huntingdon,Residential Care
Cambridgeshire County Council,04-Nov-22,51301878734,"-1,257.70",THE MANOR CHESHIRE HOME,CARE ESTABLISHMENT,OPPD - Cost of Care - Huntingdon - Under 65,OPPD - Under 65 - Huntingdon,Residential Care
Cambridgeshire County Council,04-Nov-22,51301878734,"-1,257.70",THE MANOR CHESHIRE HOME,CARE ESTABLISHMENT,OPPD - Cost of Care - Huntingdon - Under 65,OPPD - Under 65 - Huntingdon,Residential Care
Cambridgeshire County Council,04-Nov-22,51301878734,"-1,257.70",THE MANOR CHESHIRE HOME,CARE ESTABLISHMENT,OPPD - Cost of Care - Huntingdon - Under 65,OPPD - Under 65 - Huntingdon,Residential Care
Cambridgeshire County Council,04-Nov-22,51301878734,"-1,257.70",THE MANOR CHESHIRE HOME,CARE ESTABLISHMENT,OPPD - Cost of Care - Huntingdon - Under 65,OPPD - Under 65 - Huntingdon,Residential Care
Cambridgeshire County Council,04-Nov-22,51301878734,"-1,257.70",THE MANOR CHESHIRE HOME,CARE ESTABLISHMENT,OPPD - Cost of Care - Huntingdon - Under 65,OPPD - Under 65 - Huntingdon,Residential Care
Cambridgeshire County Council,04-Nov-22,51301878734,"-1,257.70",THE MANOR CHESHIRE HOME,CARE ESTABLISHMENT,OPPD - Cost of Care - Huntingdon - Under 65,OPPD - Under 65 - Huntingdon,Residential Care
Cambridgeshire County Council,04-Nov-22,51301878734,"-1,257.70",THE MANOR CHESHIRE HOME,CARE ESTABLISHMENT,OPPD - Cost of Care - Huntingdon - Under 65,OPPD - Under 65 - Huntingdon,Residential Care
Cambridgeshire County Council,04-Nov-22,51301878734,"-1,257.70",THE MANOR CHESHIRE HOME,CARE ESTABLISHMENT,OPPD - Cost of Care - Huntingdon - Under 65,OPPD - Under 65 - Huntingdon,Residential Care
Cambridgeshire County Council,04-Nov-22,51301878734,"-1,257.70",THE MANOR CHESHIRE HOME,CARE ESTABLISHMENT,OPPD - Cost of Care - Huntingdon - Under 65,OPPD - Under 65 - Huntingdon,Residential Care
Cambridgeshire County Council,04-Nov-22,51301878734,"-1,257.70",THE MANOR CHESHIRE HOME,CARE ESTABLISHMENT,OPPD - Cost of Care - Huntingdon - Under 65,OPPD - Under 65 - Huntingdon,Residential Care
Cambridgeshire County Council,04-Nov-22,51301878734,"-1,257.70",THE MANOR CHESHIRE HOME,CARE ESTABLISHMENT,OPPD - Cost of Care - Huntingdon - Under 65,OPPD - Under 65 - Huntingdon,Residential Care
Cambridgeshire County Council,04-Nov-22,51301878734,"-1,257.70",THE MANOR CHESHIRE HOME,CARE ESTABLISHMENT,OPPD - Cost of Care - Huntingdon - Under 65,OPPD - Under 65 - Huntingdon,Residential Care
Cambridgeshire County Council,04-Nov-22,51301878734,"-1,257.70",THE MANOR CHESHIRE HOME,CARE ESTABLISHMENT,OPPD - Cost of Care - Huntingdon - Under 65,OPPD - Under 65 - Huntingdon,Residential Care
Cambridgeshire County Council,04-Nov-22,51301878734,"-1,257.70",THE MANOR CHESHIRE HOME,CARE ESTABLISHMENT,OPPD - Cost of Care - Huntingdon - Under 65,OPPD - Under 65 - Huntingdon,Residential Care
Cambridgeshire County Council,04-Nov-22,51301878734,"-1,257.70",THE MANOR CHESHIRE HOME,CARE ESTABLISHMENT,OPPD - Cost of Care - Huntingdon - Under 65,OPPD - Under 65 - Huntingdon,Residential Care
Cambridgeshire County Council,04-Nov-22,51301878734,"-1,257.70",THE MANOR CHESHIRE HOME,CARE ESTABLISHMENT,OPPD - Cost of Care - Huntingdon - Under 65,OPPD - Under 65 - Huntingdon,Residential Care
Cambridgeshire County Council,04-Nov-22,51301878734,"-1,257.70",THE MANOR CHESHIRE HOME,CARE ESTABLISHMENT,OPPD - Cost of Care - Huntingdon - Under 65,OPPD - Under 65 - Huntingdon,Residential Care
Cambridgeshire County Council,04-Nov-22,51301878727,"-1,088.37",THE MANOR CHESHIRE HOME,CARE ESTABLISHMENT,LD - Hunts Locality - Cost of Care,LD - Huntingdonshire - Care,Residential Care
Cambridgeshire County Council,04-Nov-22,51301878727,"-1,088.37",THE MANOR CHESHIRE HOME,CARE ESTABLISHMENT,LD - Hunts Locality - Cost of Care,LD - Huntingdonshire - Care,Residential Care
Cambridgeshire County Council,04-Nov-22,51301878727,"-1,088.37",THE MANOR CHESHIRE HOME,CARE ESTABLISHMENT,LD - Hunts Locality - Cost of Care,LD - Huntingdonshire - Care,Residential Care
Cambridgeshire County Council,04-Nov-22,51301878727,"-1,088.37",THE MANOR CHESHIRE HOME,CARE ESTABLISHMENT,LD - Hunts Locality - Cost of Care,LD - Huntingdonshire - Care,Residential Care
Cambridgeshire County Council,04-Nov-22,51301878727,"-1,088.37",THE MANOR CHESHIRE HOME,CARE ESTABLISHMENT,LD - Hunts Locality - Cost of Care,LD - Huntingdonshire - Care,Residential Care
Cambridgeshire County Council,04-Nov-22,51301878727,"-1,088.37",THE MANOR CHESHIRE HOME,CARE ESTABLISHMENT,LD - Hunts Locality - Cost of Care,LD - Huntingdonshire - Care,Residential Care
Cambridgeshire County Council,04-Nov-22,51301878727,"-1,088.37",THE MANOR CHESHIRE HOME,CARE ESTABLISHMENT,LD - Hunts Locality - Cost of Care,LD - Huntingdonshire - Care,Residential Care
Cambridgeshire County Council,04-Nov-22,51301878727,"-1,088.37",THE MANOR CHESHIRE HOME,CARE ESTABLISHMENT,LD - Hunts Locality - Cost of Care,LD - Huntingdonshire - Care,Residential Care
Cambridgeshire County Council,04-Nov-22,51301878727,"-1,088.37",THE MANOR CHESHIRE HOME,CARE ESTABLISHMENT,LD - Hunts Locality - Cost of Care,LD - Huntingdonshire - Care,Residential Care
Cambridgeshire County Council,04-Nov-22,51301878727,"-1,088.37",THE MANOR CHESHIRE HOME,CARE ESTABLISHMENT,LD - Hunts Locality - Cost of Care,LD - Huntingdonshire - Care,Residential Care
Cambridgeshire County Council,04-Nov-22,51301878727,"-1,088.37",THE MANOR CHESHIRE HOME,CARE ESTABLISHMENT,LD - Hunts Locality - Cost of Care,LD - Huntingdonshire - Care,Residential Care
Cambridgeshire County Council,04-Nov-22,51301878727,"-1,088.37",THE MANOR CHESHIRE HOME,CARE ESTABLISHMENT,LD - Hunts Locality - Cost of Care,LD - Huntingdonshire - Care,Residential Care
Cambridgeshire County Council,04-Nov-22,51301878727,"-1,088.37",THE MANOR CHESHIRE HOME,CARE ESTABLISHMENT,LD - Hunts Locality - Cost of Care,LD - Huntingdonshire - Care,Residential Care
Cambridgeshire County Council,04-Nov-22,51301878727,"-1,088.37",THE MANOR CHESHIRE HOME,CARE ESTABLISHMENT,LD - Hunts Locality - Cost of Care,LD - Huntingdonshire - Care,Residential Care
Cambridgeshire County Council,04-Nov-22,51301878727,"-1,088.37",THE MANOR CHESHIRE HOME,CARE ESTABLISHMENT,LD - Hunts Locality - Cost of Care,LD - Huntingdonshire - Care,Residential Care
Cambridgeshire County Council,04-Nov-22,51301878727,"-1,088.37",THE MANOR CHESHIRE HOME,CARE ESTABLISHMENT,LD - Hunts Locality - Cost of Care,LD - Huntingdonshire - Care,Residential Care
Cambridgeshire County Council,04-Nov-22,51301878727,"-1,088.37",THE MANOR CHESHIRE HOME,CARE ESTABLISHMENT,LD - Hunts Locality - Cost of Care,LD - Huntingdonshire - Care,Residential Care
Cambridgeshire County Council,04-Nov-22,51301878727,"-1,088.37",THE MANOR CHESHIRE HOME,CARE ESTABLISHMENT,LD - Hunts Locality - Cost of Care,LD - Huntingdonshire - Care,Residential Care
Cambridgeshire County Council,04-Nov-22,51301878727,"-1,088.37",THE MANOR CHESHIRE HOME,CARE ESTABLISHMENT,LD - Hunts Locality - Cost of Care,LD - Huntingdonshire - Care,Residential Care
Cambridgeshire County Council,04-Nov-22,51301878727,"-1,088.37",THE MANOR CHESHIRE HOME,CARE ESTABLISHMENT,LD - Hunts Locality - Cost of Care,LD - Huntingdonshire - Care,Residential Care
Cambridgeshire County Council,04-Nov-22,51301878727,"-1,088.37",THE MANOR CHESHIRE HOME,CARE ESTABLISHMENT,LD - Hunts Locality - Cost of Care,LD - Huntingdonshire - Care,Residential Care
Cambridgeshire County Council,04-Nov-22,51301878727,"-1,088.37",THE MANOR CHESHIRE HOME,CARE ESTABLISHMENT,LD - Hunts Locality - Cost of Care,LD - Huntingdonshire - Care,Residential Care
Cambridgeshire County Council,04-Nov-22,51301878727,"-1,088.37",THE MANOR CHESHIRE HOME,CARE ESTABLISHMENT,LD - Hunts Locality - Cost of Care,LD - Huntingdonshire - Care,Residential Care
Cambridgeshire County Council,04-Nov-22,51301878727,"-1,088.37",THE MANOR CHESHIRE HOME,CARE ESTABLISHMENT,LD - Hunts Locality - Cost of Care,LD - Huntingdonshire - Care,Residential Care
Cambridgeshire County Council,04-Nov-22,51301878727,"-1,088.37",THE MANOR CHESHIRE HOME,CARE ESTABLISHMENT,LD - Hunts Locality - Cost of Care,LD - Huntingdonshire - Care,Residential Care
Cambridgeshire County Council,04-Nov-22,51301878727,"-1,088.37",THE MANOR CHESHIRE HOME,CARE ESTABLISHMENT,LD - Hunts Locality - Cost of Care,LD - Huntingdonshire - Care,Residential Care
Cambridgeshire County Council,04-Nov-22,51301878727,"-1,088.37",THE MANOR CHESHIRE HOME,CARE ESTABLISHMENT,LD - Hunts Locality - Cost of Care,LD - Huntingdonshire - Care,Residential Care
Cambridgeshire County Council,04-Nov-22,51301878727,"-1,088.37",THE MANOR CHESHIRE HOME,CARE ESTABLISHMENT,LD - Hunts Locality - Cost of Care,LD - Huntingdonshire - Care,Residential Care
Cambridgeshire County Council,04-Nov-22,51301878727,"-1,088.37",THE MANOR CHESHIRE HOME,CARE ESTABLISHMENT,LD - Hunts Locality - Cost of Care,LD - Huntingdonshire - Care,Residential Care
Cambridgeshire County Council,04-Nov-22,51301878727,"-1,088.37",THE MANOR CHESHIRE HOME,CARE ESTABLISHMENT,LD - Hunts Locality - Cost of Care,LD - Huntingdonshire - Care,Residential Care
Cambridgeshire County Council,04-Nov-22,51301878727,"-1,088.37",THE MANOR CHESHIRE HOME,CARE ESTABLISHMENT,LD - Hunts Locality - Cost of Care,LD - Huntingdonshire - Care,Residential Care
Cambridgeshire County Council,04-Nov-22,51301878727,"-1,088.37",THE MANOR CHESHIRE HOME,CARE ESTABLISHMENT,LD - Hunts Locality - Cost of Care,LD - Huntingdonshire - Care,Residential Care
Cambridgeshire County Council,04-Nov-22,51301878727,"-1,088.37",THE MANOR CHESHIRE HOME,CARE ESTABLISHMENT,LD - Hunts Locality - Cost of Care,LD - Huntingdonshire - Care,Residential Care
Cambridgeshire County Council,04-Nov-22,51301878727,"-1,088.37",THE MANOR CHESHIRE HOME,CARE ESTABLISHMENT,LD - Hunts Locality - Cost of Care,LD - Huntingdonshire - Care,Residential Care
Cambridgeshire County Council,04-Nov-22,51301878727,"-1,088.37",THE MANOR CHESHIRE HOME,CARE ESTABLISHMENT,LD - Hunts Locality - Cost of Care,LD - Huntingdonshire - Care,Residential Care
Cambridgeshire County Council,04-Nov-22,51301878719,"-1,064.26",THE MANOR CHESHIRE HOME,CARE ESTABLISHMENT,OPPD - Cost of Care - Huntingdon - Over 65,Hunts OP Team - Care,Residential Care
Cambridgeshire County Council,04-Nov-22,51301878719,"-1,064.26",THE MANOR CHESHIRE HOME,CARE ESTABLISHMENT,OPPD - Cost of Care - Huntingdon - Over 65,Hunts OP Team - Care,Residential Care
Cambridgeshire County Council,04-Nov-22,51301878719,"-1,064.26",THE MANOR CHESHIRE HOME,CARE ESTABLISHMENT,OPPD - Cost of Care - Huntingdon - Over 65,Hunts OP Team - Care,Residential Care
Cambridgeshire County Council,04-Nov-22,51301878719,"-1,064.26",THE MANOR CHESHIRE HOME,CARE ESTABLISHMENT,OPPD - Cost of Care - Huntingdon - Over 65,Hunts OP Team - Care,Residential Care
Cambridgeshire County Council,04-Nov-22,51301878719,"-1,064.26",THE MANOR CHESHIRE HOME,CARE ESTABLISHMENT,OPPD - Cost of Care - Huntingdon - Over 65,Hunts OP Team - Care,Residential Care
Cambridgeshire County Council,04-Nov-22,51301878719,"-1,064.26",THE MANOR CHESHIRE HOME,CARE ESTABLISHMENT,OPPD - Cost of Care - Huntingdon - Over 65,Hunts OP Team - Care,Residential Care
Cambridgeshire County Council,04-Nov-22,51301878719,"-1,064.26",THE MANOR CHESHIRE HOME,CARE ESTABLISHMENT,OPPD - Cost of Care - Huntingdon - Over 65,Hunts OP Team - Care,Residential Care
Cambridgeshire County Council,04-Nov-22,51301878719,"-1,064.26",THE MANOR CHESHIRE HOME,CARE ESTABLISHMENT,OPPD - Cost of Care - Huntingdon - Over 65,Hunts OP Team - Care,Residential Care
Cambridgeshire County Council,04-Nov-22,51301878719,"-1,064.26",THE MANOR CHESHIRE HOME,CARE ESTABLISHMENT,OPPD - Cost of Care - Huntingdon - Over 65,Hunts OP Team - Care,Residential Care
Cambridgeshire County Council,04-Nov-22,51301878719,"-1,064.26",THE MANOR CHESHIRE HOME,CARE ESTABLISHMENT,OPPD - Cost of Care - Huntingdon - Over 65,Hunts OP Team - Care,Residential Care
Cambridgeshire County Council,04-Nov-22,51301878719,"-1,064.26",THE MANOR CHESHIRE HOME,CARE ESTABLISHMENT,OPPD - Cost of Care - Huntingdon - Over 65,Hunts OP Team - Care,Residential Care
Cambridgeshire County Council,04-Nov-22,51301878719,"-1,064.26",THE MANOR CHESHIRE HOME,CARE ESTABLISHMENT,OPPD - Cost of Care - Huntingdon - Over 65,Hunts OP Team - Care,Residential Care
Cambridgeshire County Council,04-Nov-22,51301878719,"-1,064.26",THE MANOR CHESHIRE HOME,CARE ESTABLISHMENT,OPPD - Cost of Care - Huntingdon - Over 65,Hunts OP Team - Care,Residential Care
Cambridgeshire County Council,04-Nov-22,51301878719,"-1,064.26",THE MANOR CHESHIRE HOME,CARE ESTABLISHMENT,OPPD - Cost of Care - Huntingdon - Over 65,Hunts OP Team - Care,Residential Care
Cambridgeshire County Council,04-Nov-22,51301878719,"-1,064.26",THE MANOR CHESHIRE HOME,CARE ESTABLISHMENT,OPPD - Cost of Care - Huntingdon - Over 65,Hunts OP Team - Care,Residential Care
Cambridgeshire County Council,04-Nov-22,51301878719,"-1,064.26",THE MANOR CHESHIRE HOME,CARE ESTABLISHMENT,OPPD - Cost of Care - Huntingdon - Over 65,Hunts OP Team - Care,Residential Care
Cambridgeshire County Council,04-Nov-22,51301878719,"-1,064.26",THE MANOR CHESHIRE HOME,CARE ESTABLISHMENT,OPPD - Cost of Care - Huntingdon - Over 65,Hunts OP Team - Care,Residential Care
Cambridgeshire County Council,04-Nov-22,51301878719,"-1,064.26",THE MANOR CHESHIRE HOME,CARE ESTABLISHMENT,OPPD - Cost of Care - Huntingdon - Over 65,Hunts OP Team - Care,Residential Care
Cambridgeshire County Council,04-Nov-22,51301878719,"-1,064.26",THE MANOR CHESHIRE HOME,CARE ESTABLISHMENT,OPPD - Cost of Care - Huntingdon - Over 65,Hunts OP Team - Care,Residential Care
Cambridgeshire County Council,04-Nov-22,51301878719,"-1,064.26",THE MANOR CHESHIRE HOME,CARE ESTABLISHMENT,OPPD - Cost of Care - Huntingdon - Over 65,Hunts OP Team - Care,Residential Care
Cambridgeshire County Council,04-Nov-22,51301878719,"-1,064.26",THE MANOR CHESHIRE HOME,CARE ESTABLISHMENT,OPPD - Cost of Care - Huntingdon - Over 65,Hunts OP Team - Care,Residential Care
Cambridgeshire County Council,04-Nov-22,51301878719,"-1,064.26",THE MANOR CHESHIRE HOME,CARE ESTABLISHMENT,OPPD - Cost of Care - Huntingdon - Over 65,Hunts OP Team - Care,Residential Care
Cambridgeshire County Council,04-Nov-22,51301878719,"-1,064.26",THE MANOR CHESHIRE HOME,CARE ESTABLISHMENT,OPPD - Cost of Care - Huntingdon - Over 65,Hunts OP Team - Care,Residential Care
Cambridgeshire County Council,04-Nov-22,51301878719,"-1,064.26",THE MANOR CHESHIRE HOME,CARE ESTABLISHMENT,OPPD - Cost of Care - Huntingdon - Over 65,Hunts OP Team - Care,Residential Care
Cambridgeshire County Council,04-Nov-22,51301878719,"-1,064.26",THE MANOR CHESHIRE HOME,CARE ESTABLISHMENT,OPPD - Cost of Care - Huntingdon - Over 65,Hunts OP Team - Care,Residential Care
Cambridgeshire County Council,04-Nov-22,51301878719,"-1,064.26",THE MANOR CHESHIRE HOME,CARE ESTABLISHMENT,OPPD - Cost of Care - Huntingdon - Over 65,Hunts OP Team - Care,Residential Care
Cambridgeshire County Council,04-Nov-22,51301878719,"-1,064.26",THE MANOR CHESHIRE HOME,CARE ESTABLISHMENT,OPPD - Cost of Care - Huntingdon - Over 65,Hunts OP Team - Care,Residential Care
Cambridgeshire County Council,04-Nov-22,51301878719,"-1,064.26",THE MANOR CHESHIRE HOME,CARE ESTABLISHMENT,OPPD - Cost of Care - Huntingdon - Over 65,Hunts OP Team - Care,Residential Care
Cambridgeshire County Council,04-Nov-22,51301878719,"-1,064.26",THE MANOR CHESHIRE HOME,CARE ESTABLISHMENT,OPPD - Cost of Care - Huntingdon - Over 65,Hunts OP Team - Care,Residential Care
Cambridgeshire County Council,04-Nov-22,51301878719,"-1,064.26",THE MANOR CHESHIRE HOME,CARE ESTABLISHMENT,OPPD - Cost of Care - Huntingdon - Over 65,Hunts OP Team - Care,Residential Care
Cambridgeshire County Council,04-Nov-22,51301878719,"-1,064.26",THE MANOR CHESHIRE HOME,CARE ESTABLISHMENT,OPPD - Cost of Care - Huntingdon - Over 65,Hunts OP Team - Care,Residential Care
Cambridgeshire County Council,04-Nov-22,51301878719,"-1,064.26",THE MANOR CHESHIRE HOME,CARE ESTABLISHMENT,OPPD - Cost of Care - Huntingdon - Over 65,Hunts OP Team - Care,Residential Care
Cambridgeshire County Council,04-Nov-22,51301878719,"-1,064.26",THE MANOR CHESHIRE HOME,CARE ESTABLISHMENT,OPPD - Cost of Care - Huntingdon - Over 65,Hunts OP Team - Care,Residential Care
Cambridgeshire County Council,04-Nov-22,51301878719,"-1,064.26",THE MANOR CHESHIRE HOME,CARE ESTABLISHMENT,OPPD - Cost of Care - Huntingdon - Over 65,Hunts OP Team - Care,Residential Care
Cambridgeshire County Council,04-Nov-22,51301878719,"-1,064.26",THE MANOR CHESHIRE HOME,CARE ESTABLISHMENT,OPPD - Cost of Care - Huntingdon - Over 65,Hunts OP Team - Care,Residential Care
Cambridgeshire County Council,04-Nov-22,51301878720,"-1,064.26",THE MANOR CHESHIRE HOME,CARE ESTABLISHMENT,OPPD - Cost of Care - Huntingdon - Over 65,Hunts OP Team - Care,Residential Care
Cambridgeshire County Council,04-Nov-22,51301878720,"-1,064.26",THE MANOR CHESHIRE HOME,CARE ESTABLISHMENT,OPPD - Cost of Care - Huntingdon - Over 65,Hunts OP Team - Care,Residential Care
Cambridgeshire County Council,04-Nov-22,51301878720,"-1,064.26",THE MANOR CHESHIRE HOME,CARE ESTABLISHMENT,OPPD - Cost of Care - Huntingdon - Over 65,Hunts OP Team - Care,Residential Care
Cambridgeshire County Council,04-Nov-22,51301878720,"-1,064.26",THE MANOR CHESHIRE HOME,CARE ESTABLISHMENT,OPPD - Cost of Care - Huntingdon - Over 65,Hunts OP Team - Care,Residential Care
Cambridgeshire County Council,04-Nov-22,51301878720,"-1,064.26",THE MANOR CHESHIRE HOME,CARE ESTABLISHMENT,OPPD - Cost of Care - Huntingdon - Over 65,Hunts OP Team - Care,Residential Care
Cambridgeshire County Council,04-Nov-22,51301878720,"-1,064.26",THE MANOR CHESHIRE HOME,CARE ESTABLISHMENT,OPPD - Cost of Care - Huntingdon - Over 65,Hunts OP Team - Care,Residential Care
Cambridgeshire County Council,04-Nov-22,51301878720,"-1,064.26",THE MANOR CHESHIRE HOME,CARE ESTABLISHMENT,OPPD - Cost of Care - Huntingdon - Over 65,Hunts OP Team - Care,Residential Care
Cambridgeshire County Council,04-Nov-22,51301878720,"-1,064.26",THE MANOR CHESHIRE HOME,CARE ESTABLISHMENT,OPPD - Cost of Care - Huntingdon - Over 65,Hunts OP Team - Care,Residential Care
Cambridgeshire County Council,04-Nov-22,51301878720,"-1,064.26",THE MANOR CHESHIRE HOME,CARE ESTABLISHMENT,OPPD - Cost of Care - Huntingdon - Over 65,Hunts OP Team - Care,Residential Care
Cambridgeshire County Council,04-Nov-22,51301878720,"-1,064.26",THE MANOR CHESHIRE HOME,CARE ESTABLISHMENT,OPPD - Cost of Care - Huntingdon - Over 65,Hunts OP Team - Care,Residential Care
Cambridgeshire County Council,04-Nov-22,51301878720,"-1,064.26",THE MANOR CHESHIRE HOME,CARE ESTABLISHMENT,OPPD - Cost of Care - Huntingdon - Over 65,Hunts OP Team - Care,Residential Care
Cambridgeshire County Council,04-Nov-22,51301878720,"-1,064.26",THE MANOR CHESHIRE HOME,CARE ESTABLISHMENT,OPPD - Cost of Care - Huntingdon - Over 65,Hunts OP Team - Care,Residential Care
Cambridgeshire County Council,04-Nov-22,51301878720,"-1,064.26",THE MANOR CHESHIRE HOME,CARE ESTABLISHMENT,OPPD - Cost of Care - Huntingdon - Over 65,Hunts OP Team - Care,Residential Care
Cambridgeshire County Council,04-Nov-22,51301878720,"-1,064.26",THE MANOR CHESHIRE HOME,CARE ESTABLISHMENT,OPPD - Cost of Care - Huntingdon - Over 65,Hunts OP Team - Care,Residential Care
Cambridgeshire County Council,04-Nov-22,51301878720,"-1,064.26",THE MANOR CHESHIRE HOME,CARE ESTABLISHMENT,OPPD - Cost of Care - Huntingdon - Over 65,Hunts OP Team - Care,Residential Care
Cambridgeshire County Council,04-Nov-22,51301878720,"-1,064.26",THE MANOR CHESHIRE HOME,CARE ESTABLISHMENT,OPPD - Cost of Care - Huntingdon - Over 65,Hunts OP Team - Care,Residential Care
Cambridgeshire County Council,04-Nov-22,51301878720,"-1,064.26",THE MANOR CHESHIRE HOME,CARE ESTABLISHMENT,OPPD - Cost of Care - Huntingdon - Over 65,Hunts OP Team - Care,Residential Care
Cambridgeshire County Council,04-Nov-22,51301878720,"-1,064.26",THE MANOR CHESHIRE HOME,CARE ESTABLISHMENT,OPPD - Cost of Care - Huntingdon - Over 65,Hunts OP Team - Care,Residential Care
Cambridgeshire County Council,04-Nov-22,51301878720,"-1,064.26",THE MANOR CHESHIRE HOME,CARE ESTABLISHMENT,OPPD - Cost of Care - Huntingdon - Over 65,Hunts OP Team - Care,Residential Care
Cambridgeshire County Council,04-Nov-22,51301878720,"-1,064.26",THE MANOR CHESHIRE HOME,CARE ESTABLISHMENT,OPPD - Cost of Care - Huntingdon - Over 65,Hunts OP Team - Care,Residential Care
Cambridgeshire County Council,04-Nov-22,51301878720,"-1,064.26",THE MANOR CHESHIRE HOME,CARE ESTABLISHMENT,OPPD - Cost of Care - Huntingdon - Over 65,Hunts OP Team - Care,Residential Care
Cambridgeshire County Council,04-Nov-22,51301878720,"-1,064.26",THE MANOR CHESHIRE HOME,CARE ESTABLISHMENT,OPPD - Cost of Care - Huntingdon - Over 65,Hunts OP Team - Care,Residential Care
Cambridgeshire County Council,04-Nov-22,51301878720,"-1,064.26",THE MANOR CHESHIRE HOME,CARE ESTABLISHMENT,OPPD - Cost of Care - Huntingdon - Over 65,Hunts OP Team - Care,Residential Care
Cambridgeshire County Council,04-Nov-22,51301878720,"-1,064.26",THE MANOR CHESHIRE HOME,CARE ESTABLISHMENT,OPPD - Cost of Care - Huntingdon - Over 65,Hunts OP Team - Care,Residential Care
Cambridgeshire County Council,04-Nov-22,51301878720,"-1,064.26",THE MANOR CHESHIRE HOME,CARE ESTABLISHMENT,OPPD - Cost of Care - Huntingdon - Over 65,Hunts OP Team - Care,Residential Care
Cambridgeshire County Council,04-Nov-22,51301878720,"-1,064.26",THE MANOR CHESHIRE HOME,CARE ESTABLISHMENT,OPPD - Cost of Care - Huntingdon - Over 65,Hunts OP Team - Care,Residential Care
Cambridgeshire County Council,04-Nov-22,51301878720,"-1,064.26",THE MANOR CHESHIRE HOME,CARE ESTABLISHMENT,OPPD - Cost of Care - Huntingdon - Over 65,Hunts OP Team - Care,Residential Care
Cambridgeshire County Council,04-Nov-22,51301878720,"-1,064.26",THE MANOR CHESHIRE HOME,CARE ESTABLISHMENT,OPPD - Cost of Care - Huntingdon - Over 65,Hunts OP Team - Care,Residential Care
Cambridgeshire County Council,04-Nov-22,51301878720,"-1,064.26",THE MANOR CHESHIRE HOME,CARE ESTABLISHMENT,OPPD - Cost of Care - Huntingdon - Over 65,Hunts OP Team - Care,Residential Care
Cambridgeshire County Council,04-Nov-22,51301878720,"-1,064.26",THE MANOR CHESHIRE HOME,CARE ESTABLISHMENT,OPPD - Cost of Care - Huntingdon - Over 65,Hunts OP Team - Care,Residential Care
Cambridgeshire County Council,04-Nov-22,51301878720,"-1,064.26",THE MANOR CHESHIRE HOME,CARE ESTABLISHMENT,OPPD - Cost of Care - Huntingdon - Over 65,Hunts OP Team - Care,Residential Care
Cambridgeshire County Council,04-Nov-22,51301878720,"-1,064.26",THE MANOR CHESHIRE HOME,CARE ESTABLISHMENT,OPPD - Cost of Care - Huntingdon - Over 65,Hunts OP Team - Care,Residential Care
Cambridgeshire County Council,04-Nov-22,51301878720,"-1,064.26",THE MANOR CHESHIRE HOME,CARE ESTABLISHMENT,OPPD - Cost of Care - Huntingdon - Over 65,Hunts OP Team - Care,Residential Care
Cambridgeshire County Council,04-Nov-22,51301878720,"-1,064.26",THE MANOR CHESHIRE HOME,CARE ESTABLISHMENT,OPPD - Cost of Care - Huntingdon - Over 65,Hunts OP Team - Care,Residential Care
Cambridgeshire County Council,04-Nov-22,51301878720,"-1,064.26",THE MANOR CHESHIRE HOME,CARE ESTABLISHMENT,OPPD - Cost of Care - Huntingdon - Over 65,Hunts OP Team - Care,Residential Care
Cambridgeshire County Council,04-Nov-22,51301878728,"-1,064.26",THE MANOR CHESHIRE HOME,CARE ESTABLISHMENT,LD - Hunts Locality - Cost of Care,LD - Huntingdonshire - Care,Residential Care
Cambridgeshire County Council,04-Nov-22,51301878728,"-1,064.26",THE MANOR CHESHIRE HOME,CARE ESTABLISHMENT,LD - Hunts Locality - Cost of Care,LD - Huntingdonshire - Care,Residential Care
Cambridgeshire County Council,04-Nov-22,51301878728,"-1,064.26",THE MANOR CHESHIRE HOME,CARE ESTABLISHMENT,LD - Hunts Locality - Cost of Care,LD - Huntingdonshire - Care,Residential Care
Cambridgeshire County Council,04-Nov-22,51301878728,"-1,064.26",THE MANOR CHESHIRE HOME,CARE ESTABLISHMENT,LD - Hunts Locality - Cost of Care,LD - Huntingdonshire - Care,Residential Care
Cambridgeshire County Council,04-Nov-22,51301878728,"-1,064.26",THE MANOR CHESHIRE HOME,CARE ESTABLISHMENT,LD - Hunts Locality - Cost of Care,LD - Huntingdonshire - Care,Residential Care
Cambridgeshire County Council,04-Nov-22,51301878728,"-1,064.26",THE MANOR CHESHIRE HOME,CARE ESTABLISHMENT,LD - Hunts Locality - Cost of Care,LD - Huntingdonshire - Care,Residential Care
Cambridgeshire County Council,04-Nov-22,51301878728,"-1,064.26",THE MANOR CHESHIRE HOME,CARE ESTABLISHMENT,LD - Hunts Locality - Cost of Care,LD - Huntingdonshire - Care,Residential Care
Cambridgeshire County Council,04-Nov-22,51301878728,"-1,064.26",THE MANOR CHESHIRE HOME,CARE ESTABLISHMENT,LD - Hunts Locality - Cost of Care,LD - Huntingdonshire - Care,Residential Care
Cambridgeshire County Council,04-Nov-22,51301878728,"-1,064.26",THE MANOR CHESHIRE HOME,CARE ESTABLISHMENT,LD - Hunts Locality - Cost of Care,LD - Huntingdonshire - Care,Residential Care
Cambridgeshire County Council,04-Nov-22,51301878728,"-1,064.26",THE MANOR CHESHIRE HOME,CARE ESTABLISHMENT,LD - Hunts Locality - Cost of Care,LD - Huntingdonshire - Care,Residential Care
Cambridgeshire County Council,04-Nov-22,51301878728,"-1,064.26",THE MANOR CHESHIRE HOME,CARE ESTABLISHMENT,LD - Hunts Locality - Cost of Care,LD - Huntingdonshire - Care,Residential Care
Cambridgeshire County Council,04-Nov-22,51301878728,"-1,064.26",THE MANOR CHESHIRE HOME,CARE ESTABLISHMENT,LD - Hunts Locality - Cost of Care,LD - Huntingdonshire - Care,Residential Care
Cambridgeshire County Council,04-Nov-22,51301878728,"-1,064.26",THE MANOR CHESHIRE HOME,CARE ESTABLISHMENT,LD - Hunts Locality - Cost of Care,LD - Huntingdonshire - Care,Residential Care
Cambridgeshire County Council,04-Nov-22,51301878728,"-1,064.26",THE MANOR CHESHIRE HOME,CARE ESTABLISHMENT,LD - Hunts Locality - Cost of Care,LD - Huntingdonshire - Care,Residential Care
Cambridgeshire County Council,04-Nov-22,51301878728,"-1,064.26",THE MANOR CHESHIRE HOME,CARE ESTABLISHMENT,LD - Hunts Locality - Cost of Care,LD - Huntingdonshire - Care,Residential Care
Cambridgeshire County Council,04-Nov-22,51301878728,"-1,064.26",THE MANOR CHESHIRE HOME,CARE ESTABLISHMENT,LD - Hunts Locality - Cost of Care,LD - Huntingdonshire - Care,Residential Care
Cambridgeshire County Council,04-Nov-22,51301878728,"-1,064.26",THE MANOR CHESHIRE HOME,CARE ESTABLISHMENT,LD - Hunts Locality - Cost of Care,LD - Huntingdonshire - Care,Residential Care
Cambridgeshire County Council,04-Nov-22,51301878728,"-1,064.26",THE MANOR CHESHIRE HOME,CARE ESTABLISHMENT,LD - Hunts Locality - Cost of Care,LD - Huntingdonshire - Care,Residential Care
Cambridgeshire County Council,04-Nov-22,51301878728,"-1,064.26",THE MANOR CHESHIRE HOME,CARE ESTABLISHMENT,LD - Hunts Locality - Cost of Care,LD - Huntingdonshire - Care,Residential Care
Cambridgeshire County Council,04-Nov-22,51301878728,"-1,064.26",THE MANOR CHESHIRE HOME,CARE ESTABLISHMENT,LD - Hunts Locality - Cost of Care,LD - Huntingdonshire - Care,Residential Care
Cambridgeshire County Council,04-Nov-22,51301878728,"-1,064.26",THE MANOR CHESHIRE HOME,CARE ESTABLISHMENT,LD - Hunts Locality - Cost of Care,LD - Huntingdonshire - Care,Residential Care
Cambridgeshire County Council,04-Nov-22,51301878728,"-1,064.26",THE MANOR CHESHIRE HOME,CARE ESTABLISHMENT,LD - Hunts Locality - Cost of Care,LD - Huntingdonshire - Care,Residential Care
Cambridgeshire County Council,04-Nov-22,51301878728,"-1,064.26",THE MANOR CHESHIRE HOME,CARE ESTABLISHMENT,LD - Hunts Locality - Cost of Care,LD - Huntingdonshire - Care,Residential Care
Cambridgeshire County Council,04-Nov-22,51301878728,"-1,064.26",THE MANOR CHESHIRE HOME,CARE ESTABLISHMENT,LD - Hunts Locality - Cost of Care,LD - Huntingdonshire - Care,Residential Care
Cambridgeshire County Council,04-Nov-22,51301878728,"-1,064.26",THE MANOR CHESHIRE HOME,CARE ESTABLISHMENT,LD - Hunts Locality - Cost of Care,LD - Huntingdonshire - Care,Residential Care
Cambridgeshire County Council,04-Nov-22,51301878728,"-1,064.26",THE MANOR CHESHIRE HOME,CARE ESTABLISHMENT,LD - Hunts Locality - Cost of Care,LD - Huntingdonshire - Care,Residential Care
Cambridgeshire County Council,04-Nov-22,51301878728,"-1,064.26",THE MANOR CHESHIRE HOME,CARE ESTABLISHMENT,LD - Hunts Locality - Cost of Care,LD - Huntingdonshire - Care,Residential Care
Cambridgeshire County Council,04-Nov-22,51301878728,"-1,064.26",THE MANOR CHESHIRE HOME,CARE ESTABLISHMENT,LD - Hunts Locality - Cost of Care,LD - Huntingdonshire - Care,Residential Care
Cambridgeshire County Council,04-Nov-22,51301878728,"-1,064.26",THE MANOR CHESHIRE HOME,CARE ESTABLISHMENT,LD - Hunts Locality - Cost of Care,LD - Huntingdonshire - Care,Residential Care
Cambridgeshire County Council,04-Nov-22,51301878728,"-1,064.26",THE MANOR CHESHIRE HOME,CARE ESTABLISHMENT,LD - Hunts Locality - Cost of Care,LD - Huntingdonshire - Care,Residential Care
Cambridgeshire County Council,04-Nov-22,51301878728,"-1,064.26",THE MANOR CHESHIRE HOME,CARE ESTABLISHMENT,LD - Hunts Locality - Cost of Care,LD - Huntingdonshire - Care,Residential Care
Cambridgeshire County Council,04-Nov-22,51301878728,"-1,064.26",THE MANOR CHESHIRE HOME,CARE ESTABLISHMENT,LD - Hunts Locality - Cost of Care,LD - Huntingdonshire - Care,Residential Care
Cambridgeshire County Council,04-Nov-22,51301878728,"-1,064.26",THE MANOR CHESHIRE HOME,CARE ESTABLISHMENT,LD - Hunts Locality - Cost of Care,LD - Huntingdonshire - Care,Residential Care
Cambridgeshire County Council,04-Nov-22,51301878728,"-1,064.26",THE MANOR CHESHIRE HOME,CARE ESTABLISHMENT,LD - Hunts Locality - Cost of Care,LD - Huntingdonshire - Care,Residential Care
Cambridgeshire County Council,04-Nov-22,51301878728,"-1,064.26",THE MANOR CHESHIRE HOME,CARE ESTABLISHMENT,LD - Hunts Locality - Cost of Care,LD - Huntingdonshire - Care,Residential Care
Cambridgeshire County Council,04-Nov-22,51301878737,"-1,064.26",THE MANOR CHESHIRE HOME,CARE ESTABLISHMENT,OPPD - Cost of Care - Huntingdon - Under 65,OPPD - Under 65 - Huntingdon,Residential Care
Cambridgeshire County Council,04-Nov-22,51301878737,"-1,064.26",THE MANOR CHESHIRE HOME,CARE ESTABLISHMENT,OPPD - Cost of Care - Huntingdon - Under 65,OPPD - Under 65 - Huntingdon,Residential Care
Cambridgeshire County Council,04-Nov-22,51301878737,"-1,064.26",THE MANOR CHESHIRE HOME,CARE ESTABLISHMENT,OPPD - Cost of Care - Huntingdon - Under 65,OPPD - Under 65 - Huntingdon,Residential Care
Cambridgeshire County Council,04-Nov-22,51301878737,"-1,064.26",THE MANOR CHESHIRE HOME,CARE ESTABLISHMENT,OPPD - Cost of Care - Huntingdon - Under 65,OPPD - Under 65 - Huntingdon,Residential Care
Cambridgeshire County Council,04-Nov-22,51301878737,"-1,064.26",THE MANOR CHESHIRE HOME,CARE ESTABLISHMENT,OPPD - Cost of Care - Huntingdon - Under 65,OPPD - Under 65 - Huntingdon,Residential Care
Cambridgeshire County Council,04-Nov-22,51301878737,"-1,064.26",THE MANOR CHESHIRE HOME,CARE ESTABLISHMENT,OPPD - Cost of Care - Huntingdon - Under 65,OPPD - Under 65 - Huntingdon,Residential Care
Cambridgeshire County Council,04-Nov-22,51301878737,"-1,064.26",THE MANOR CHESHIRE HOME,CARE ESTABLISHMENT,OPPD - Cost of Care - Huntingdon - Under 65,OPPD - Under 65 - Huntingdon,Residential Care
Cambridgeshire County Council,04-Nov-22,51301878737,"-1,064.26",THE MANOR CHESHIRE HOME,CARE ESTABLISHMENT,OPPD - Cost of Care - Huntingdon - Under 65,OPPD - Under 65 - Huntingdon,Residential Care
Cambridgeshire County Council,04-Nov-22,51301878737,"-1,064.26",THE MANOR CHESHIRE HOME,CARE ESTABLISHMENT,OPPD - Cost of Care - Huntingdon - Under 65,OPPD - Under 65 - Huntingdon,Residential Care
Cambridgeshire County Council,04-Nov-22,51301878737,"-1,064.26",THE MANOR CHESHIRE HOME,CARE ESTABLISHMENT,OPPD - Cost of Care - Huntingdon - Under 65,OPPD - Under 65 - Huntingdon,Residential Care
Cambridgeshire County Council,04-Nov-22,51301878737,"-1,064.26",THE MANOR CHESHIRE HOME,CARE ESTABLISHMENT,OPPD - Cost of Care - Huntingdon - Under 65,OPPD - Under 65 - Huntingdon,Residential Care
Cambridgeshire County Council,04-Nov-22,51301878737,"-1,064.26",THE MANOR CHESHIRE HOME,CARE ESTABLISHMENT,OPPD - Cost of Care - Huntingdon - Under 65,OPPD - Under 65 - Huntingdon,Residential Care
Cambridgeshire County Council,04-Nov-22,51301878737,"-1,064.26",THE MANOR CHESHIRE HOME,CARE ESTABLISHMENT,OPPD - Cost of Care - Huntingdon - Under 65,OPPD - Under 65 - Huntingdon,Residential Care
Cambridgeshire County Council,04-Nov-22,51301878737,"-1,064.26",THE MANOR CHESHIRE HOME,CARE ESTABLISHMENT,OPPD - Cost of Care - Huntingdon - Under 65,OPPD - Under 65 - Huntingdon,Residential Care
Cambridgeshire County Council,04-Nov-22,51301878737,"-1,064.26",THE MANOR CHESHIRE HOME,CARE ESTABLISHMENT,OPPD - Cost of Care - Huntingdon - Under 65,OPPD - Under 65 - Huntingdon,Residential Care
Cambridgeshire County Council,04-Nov-22,51301878737,"-1,064.26",THE MANOR CHESHIRE HOME,CARE ESTABLISHMENT,OPPD - Cost of Care - Huntingdon - Under 65,OPPD - Under 65 - Huntingdon,Residential Care
Cambridgeshire County Council,04-Nov-22,51301878737,"-1,064.26",THE MANOR CHESHIRE HOME,CARE ESTABLISHMENT,OPPD - Cost of Care - Huntingdon - Under 65,OPPD - Under 65 - Huntingdon,Residential Care
Cambridgeshire County Council,04-Nov-22,51301878737,"-1,064.26",THE MANOR CHESHIRE HOME,CARE ESTABLISHMENT,OPPD - Cost of Care - Huntingdon - Under 65,OPPD - Under 65 - Huntingdon,Residential Care
Cambridgeshire County Council,04-Nov-22,51301878737,"-1,064.26",THE MANOR CHESHIRE HOME,CARE ESTABLISHMENT,OPPD - Cost of Care - Huntingdon - Under 65,OPPD - Under 65 - Huntingdon,Residential Care
Cambridgeshire County Council,04-Nov-22,51301878737,"-1,064.26",THE MANOR CHESHIRE HOME,CARE ESTABLISHMENT,OPPD - Cost of Care - Huntingdon - Under 65,OPPD - Under 65 - Huntingdon,Residential Care
Cambridgeshire County Council,04-Nov-22,51301878737,"-1,064.26",THE MANOR CHESHIRE HOME,CARE ESTABLISHMENT,OPPD - Cost of Care - Huntingdon - Under 65,OPPD - Under 65 - Huntingdon,Residential Care
Cambridgeshire County Council,04-Nov-22,51301878737,"-1,064.26",THE MANOR CHESHIRE HOME,CARE ESTABLISHMENT,OPPD - Cost of Care - Huntingdon - Under 65,OPPD - Under 65 - Huntingdon,Residential Care
Cambridgeshire County Council,04-Nov-22,51301878737,"-1,064.26",THE MANOR CHESHIRE HOME,CARE ESTABLISHMENT,OPPD - Cost of Care - Huntingdon - Under 65,OPPD - Under 65 - Huntingdon,Residential Care
Cambridgeshire County Council,04-Nov-22,51301878737,"-1,064.26",THE MANOR CHESHIRE HOME,CARE ESTABLISHMENT,OPPD - Cost of Care - Huntingdon - Under 65,OPPD - Under 65 - Huntingdon,Residential Care
Cambridgeshire County Council,04-Nov-22,51301878717,"-1,064.26",THE MANOR CHESHIRE HOME,CARE ESTABLISHMENT,OPPD - Cost of Care - Huntingdon - Under 65,OPPD - Under 65 - Huntingdon,Residential Care
Cambridgeshire County Council,04-Nov-22,51301878717,"-1,064.26",THE MANOR CHESHIRE HOME,CARE ESTABLISHMENT,OPPD - Cost of Care - Huntingdon - Under 65,OPPD - Under 65 - Huntingdon,Residential Care
Cambridgeshire County Council,04-Nov-22,51301878717,"-1,064.26",THE MANOR CHESHIRE HOME,CARE ESTABLISHMENT,OPPD - Cost of Care - Huntingdon - Under 65,OPPD - Under 65 - Huntingdon,Residential Care
Cambridgeshire County Council,04-Nov-22,51301878717,"-1,064.26",THE MANOR CHESHIRE HOME,CARE ESTABLISHMENT,OPPD - Cost of Care - Huntingdon - Under 65,OPPD - Under 65 - Huntingdon,Residential Care
Cambridgeshire County Council,04-Nov-22,51301878717,"-1,064.26",THE MANOR CHESHIRE HOME,CARE ESTABLISHMENT,OPPD - Cost of Care - Huntingdon - Under 65,OPPD - Under 65 - Huntingdon,Residential Care
Cambridgeshire County Council,04-Nov-22,51301878717,"-1,064.26",THE MANOR CHESHIRE HOME,CARE ESTABLISHMENT,OPPD - Cost of Care - Huntingdon - Under 65,OPPD - Under 65 - Huntingdon,Residential Care
Cambridgeshire County Council,04-Nov-22,51301878717,"-1,064.26",THE MANOR CHESHIRE HOME,CARE ESTABLISHMENT,OPPD - Cost of Care - Huntingdon - Under 65,OPPD - Under 65 - Huntingdon,Residential Care
Cambridgeshire County Council,04-Nov-22,51301878717,"-1,064.26",THE MANOR CHESHIRE HOME,CARE ESTABLISHMENT,OPPD - Cost of Care - Huntingdon - Under 65,OPPD - Under 65 - Huntingdon,Residential Care
Cambridgeshire County Council,04-Nov-22,51301878717,"-1,064.26",THE MANOR CHESHIRE HOME,CARE ESTABLISHMENT,OPPD - Cost of Care - Huntingdon - Under 65,OPPD - Under 65 - Huntingdon,Residential Care
Cambridgeshire County Council,04-Nov-22,51301878717,"-1,064.26",THE MANOR CHESHIRE HOME,CARE ESTABLISHMENT,OPPD - Cost of Care - Huntingdon - Under 65,OPPD - Under 65 - Huntingdon,Residential Care
Cambridgeshire County Council,04-Nov-22,51301878717,"-1,064.26",THE MANOR CHESHIRE HOME,CARE ESTABLISHMENT,OPPD - Cost of Care - Huntingdon - Under 65,OPPD - Under 65 - Huntingdon,Residential Care
Cambridgeshire County Council,04-Nov-22,51301878737,"-1,064.26",THE MANOR CHESHIRE HOME,CARE ESTABLISHMENT,OPPD - Cost of Care - Huntingdon - Under 65,OPPD - Under 65 - Huntingdon,Residential Care
Cambridgeshire County Council,04-Nov-22,51301878737,"-1,064.26",THE MANOR CHESHIRE HOME,CARE ESTABLISHMENT,OPPD - Cost of Care - Huntingdon - Under 65,OPPD - Under 65 - Huntingdon,Residential Care
Cambridgeshire County Council,04-Nov-22,51301878737,"-1,064.26",THE MANOR CHESHIRE HOME,CARE ESTABLISHMENT,OPPD - Cost of Care - Huntingdon - Under 65,OPPD - Under 65 - Huntingdon,Residential Care
Cambridgeshire County Council,04-Nov-22,51301878737,"-1,064.26",THE MANOR CHESHIRE HOME,CARE ESTABLISHMENT,OPPD - Cost of Care - Huntingdon - Under 65,OPPD - Under 65 - Huntingdon,Residential Care
Cambridgeshire County Council,04-Nov-22,51301878717,"-1,064.26",THE MANOR CHESHIRE HOME,CARE ESTABLISHMENT,OPPD - Cost of Care - Huntingdon - Under 65,OPPD - Under 65 - Huntingdon,Residential Care
Cambridgeshire County Council,04-Nov-22,51301878717,"-1,064.26",THE MANOR CHESHIRE HOME,CARE ESTABLISHMENT,OPPD - Cost of Care - Huntingdon - Under 65,OPPD - Under 65 - Huntingdon,Residential Care
Cambridgeshire County Council,04-Nov-22,51301878717,"-1,064.26",THE MANOR CHESHIRE HOME,CARE ESTABLISHMENT,OPPD - Cost of Care - Huntingdon - Under 65,OPPD - Under 65 - Huntingdon,Residential Care
Cambridgeshire County Council,04-Nov-22,51301878717,"-1,064.26",THE MANOR CHESHIRE HOME,CARE ESTABLISHMENT,OPPD - Cost of Care - Huntingdon - Under 65,OPPD - Under 65 - Huntingdon,Residential Care
Cambridgeshire County Council,04-Nov-22,51301878717,"-1,064.26",THE MANOR CHESHIRE HOME,CARE ESTABLISHMENT,OPPD - Cost of Care - Huntingdon - Under 65,OPPD - Under 65 - Huntingdon,Residential Care
Cambridgeshire County Council,04-Nov-22,51301878717,"-1,064.26",THE MANOR CHESHIRE HOME,CARE ESTABLISHMENT,OPPD - Cost of Care - Huntingdon - Under 65,OPPD - Under 65 - Huntingdon,Residential Care
Cambridgeshire County Council,04-Nov-22,51301878717,"-1,064.26",THE MANOR CHESHIRE HOME,CARE ESTABLISHMENT,OPPD - Cost of Care - Huntingdon - Under 65,OPPD - Under 65 - Huntingdon,Residential Care
Cambridgeshire County Council,04-Nov-22,51301878717,"-1,064.26",THE MANOR CHESHIRE HOME,CARE ESTABLISHMENT,OPPD - Cost of Care - Huntingdon - Under 65,OPPD - Under 65 - Huntingdon,Residential Care
Cambridgeshire County Council,04-Nov-22,51301878717,"-1,064.26",THE MANOR CHESHIRE HOME,CARE ESTABLISHMENT,OPPD - Cost of Care - Huntingdon - Under 65,OPPD - Under 65 - Huntingdon,Residential Care
Cambridgeshire County Council,04-Nov-22,51301878717,"-1,064.26",THE MANOR CHESHIRE HOME,CARE ESTABLISHMENT,OPPD - Cost of Care - Huntingdon - Under 65,OPPD - Under 65 - Huntingdon,Residential Care
Cambridgeshire County Council,04-Nov-22,51301878717,"-1,064.26",THE MANOR CHESHIRE HOME,CARE ESTABLISHMENT,OPPD - Cost of Care - Huntingdon - Under 65,OPPD - Under 65 - Huntingdon,Residential Care
Cambridgeshire County Council,04-Nov-22,51301878717,"-1,064.26",THE MANOR CHESHIRE HOME,CARE ESTABLISHMENT,OPPD - Cost of Care - Huntingdon - Under 65,OPPD - Under 65 - Huntingdon,Residential Care
Cambridgeshire County Council,04-Nov-22,51301878717,"-1,064.26",THE MANOR CHESHIRE HOME,CARE ESTABLISHMENT,OPPD - Cost of Care - Huntingdon - Under 65,OPPD - Under 65 - Huntingdon,Residential Care
Cambridgeshire County Council,04-Nov-22,51301878717,"-1,064.26",THE MANOR CHESHIRE HOME,CARE ESTABLISHMENT,OPPD - Cost of Care - Huntingdon - Under 65,OPPD - Under 65 - Huntingdon,Residential Care
Cambridgeshire County Council,04-Nov-22,51301878717,"-1,064.26",THE MANOR CHESHIRE HOME,CARE ESTABLISHMENT,OPPD - Cost of Care - Huntingdon - Under 65,OPPD - Under 65 - Huntingdon,Residential Care
Cambridgeshire County Council,04-Nov-22,51301878717,"-1,064.26",THE MANOR CHESHIRE HOME,CARE ESTABLISHMENT,OPPD - Cost of Care - Huntingdon - Under 65,OPPD - Under 65 - Huntingdon,Residential Care
Cambridgeshire County Council,04-Nov-22,51301878717,"-1,064.26",THE MANOR CHESHIRE HOME,CARE ESTABLISHMENT,OPPD - Cost of Care - Huntingdon - Under 65,OPPD - Under 65 - Huntingdon,Residential Care
Cambridgeshire County Council,04-Nov-22,51301878717,"-1,064.26",THE MANOR CHESHIRE HOME,CARE ESTABLISHMENT,OPPD - Cost of Care - Huntingdon - Under 65,OPPD - Under 65 - Huntingdon,Residential Care
Cambridgeshire County Council,04-Nov-22,51301878717,"-1,064.26",THE MANOR CHESHIRE HOME,CARE ESTABLISHMENT,OPPD - Cost of Care - Huntingdon - Under 65,OPPD - Under 65 - Huntingdon,Residential Care
Cambridgeshire County Council,04-Nov-22,51301878717,"-1,064.26",THE MANOR CHESHIRE HOME,CARE ESTABLISHMENT,OPPD - Cost of Care - Huntingdon - Under 65,OPPD - Under 65 - Huntingdon,Residential Care
Cambridgeshire County Council,04-Nov-22,51301878717,"-1,064.26",THE MANOR CHESHIRE HOME,CARE ESTABLISHMENT,OPPD - Cost of Care - Huntingdon - Under 65,OPPD - Under 65 - Huntingdon,Residential Care
Cambridgeshire County Council,04-Nov-22,51301878717,"-1,064.26",THE MANOR CHESHIRE HOME,CARE ESTABLISHMENT,OPPD - Cost of Care - Huntingdon - Under 65,OPPD - Under 65 - Huntingdon,Residential Care
Cambridgeshire County Council,04-Nov-22,51301878717,"-1,064.26",THE MANOR CHESHIRE HOME,CARE ESTABLISHMENT,OPPD - Cost of Care - Huntingdon - Under 65,OPPD - Under 65 - Huntingdon,Residential Care
Cambridgeshire County Council,04-Nov-22,51301878717,"-1,064.26",THE MANOR CHESHIRE HOME,CARE ESTABLISHMENT,OPPD - Cost of Care - Huntingdon - Under 65,OPPD - Under 65 - Huntingdon,Residential Care
Cambridgeshire County Council,04-Nov-22,51301878735,"-1,064.26",THE MANOR CHESHIRE HOME,CARE ESTABLISHMENT,OPPD - Cost of Care - Huntingdon - Under 65,OPPD - Under 65 - Huntingdon,Residential Care
Cambridgeshire County Council,04-Nov-22,51301878735,"-1,064.26",THE MANOR CHESHIRE HOME,CARE ESTABLISHMENT,OPPD - Cost of Care - Huntingdon - Under 65,OPPD - Under 65 - Huntingdon,Residential Care
Cambridgeshire County Council,04-Nov-22,51301878735,"-1,064.26",THE MANOR CHESHIRE HOME,CARE ESTABLISHMENT,OPPD - Cost of Care - Huntingdon - Under 65,OPPD - Under 65 - Huntingdon,Residential Care
Cambridgeshire County Council,04-Nov-22,51301878735,"-1,064.26",THE MANOR CHESHIRE HOME,CARE ESTABLISHMENT,OPPD - Cost of Care - Huntingdon - Under 65,OPPD - Under 65 - Huntingdon,Residential Care
Cambridgeshire County Council,04-Nov-22,51301878735,"-1,064.26",THE MANOR CHESHIRE HOME,CARE ESTABLISHMENT,OPPD - Cost of Care - Huntingdon - Under 65,OPPD - Under 65 - Huntingdon,Residential Care
Cambridgeshire County Council,04-Nov-22,51301878735,"-1,064.26",THE MANOR CHESHIRE HOME,CARE ESTABLISHMENT,OPPD - Cost of Care - Huntingdon - Under 65,OPPD - Under 65 - Huntingdon,Residential Care
Cambridgeshire County Council,04-Nov-22,51301878735,"-1,064.26",THE MANOR CHESHIRE HOME,CARE ESTABLISHMENT,OPPD - Cost of Care - Huntingdon - Under 65,OPPD - Under 65 - Huntingdon,Residential Care
Cambridgeshire County Council,04-Nov-22,51301878735,"-1,064.26",THE MANOR CHESHIRE HOME,CARE ESTABLISHMENT,OPPD - Cost of Care - Huntingdon - Under 65,OPPD - Under 65 - Huntingdon,Residential Care
Cambridgeshire County Council,04-Nov-22,51301878735,"-1,064.26",THE MANOR CHESHIRE HOME,CARE ESTABLISHMENT,OPPD - Cost of Care - Huntingdon - Under 65,OPPD - Under 65 - Huntingdon,Residential Care
Cambridgeshire County Council,04-Nov-22,51301878735,"-1,064.26",THE MANOR CHESHIRE HOME,CARE ESTABLISHMENT,OPPD - Cost of Care - Huntingdon - Under 65,OPPD - Under 65 - Huntingdon,Residential Care
Cambridgeshire County Council,04-Nov-22,51301878735,"-1,064.26",THE MANOR CHESHIRE HOME,CARE ESTABLISHMENT,OPPD - Cost of Care - Huntingdon - Under 65,OPPD - Under 65 - Huntingdon,Residential Care
Cambridgeshire County Council,04-Nov-22,51301878735,"-1,064.26",THE MANOR CHESHIRE HOME,CARE ESTABLISHMENT,OPPD - Cost of Care - Huntingdon - Under 65,OPPD - Under 65 - Huntingdon,Residential Care
Cambridgeshire County Council,04-Nov-22,51301878735,"-1,064.26",THE MANOR CHESHIRE HOME,CARE ESTABLISHMENT,OPPD - Cost of Care - Huntingdon - Under 65,OPPD - Under 65 - Huntingdon,Residential Care
Cambridgeshire County Council,04-Nov-22,51301878735,"-1,064.26",THE MANOR CHESHIRE HOME,CARE ESTABLISHMENT,OPPD - Cost of Care - Huntingdon - Under 65,OPPD - Under 65 - Huntingdon,Residential Care
Cambridgeshire County Council,04-Nov-22,51301878735,"-1,064.26",THE MANOR CHESHIRE HOME,CARE ESTABLISHMENT,OPPD - Cost of Care - Huntingdon - Under 65,OPPD - Under 65 - Huntingdon,Residential Care
Cambridgeshire County Council,04-Nov-22,51301878735,"-1,064.26",THE MANOR CHESHIRE HOME,CARE ESTABLISHMENT,OPPD - Cost of Care - Huntingdon - Under 65,OPPD - Under 65 - Huntingdon,Residential Care
Cambridgeshire County Council,04-Nov-22,51301878735,"-1,064.26",THE MANOR CHESHIRE HOME,CARE ESTABLISHMENT,OPPD - Cost of Care - Huntingdon - Under 65,OPPD - Under 65 - Huntingdon,Residential Care
Cambridgeshire County Council,04-Nov-22,51301878735,"-1,064.26",THE MANOR CHESHIRE HOME,CARE ESTABLISHMENT,OPPD - Cost of Care - Huntingdon - Under 65,OPPD - Under 65 - Huntingdon,Residential Care
Cambridgeshire County Council,04-Nov-22,51301878735,"-1,064.26",THE MANOR CHESHIRE HOME,CARE ESTABLISHMENT,OPPD - Cost of Care - Huntingdon - Under 65,OPPD - Under 65 - Huntingdon,Residential Care
Cambridgeshire County Council,04-Nov-22,51301878735,"-1,064.26",THE MANOR CHESHIRE HOME,CARE ESTABLISHMENT,OPPD - Cost of Care - Huntingdon - Under 65,OPPD - Under 65 - Huntingdon,Residential Care
Cambridgeshire County Council,04-Nov-22,51301878735,"-1,064.26",THE MANOR CHESHIRE HOME,CARE ESTABLISHMENT,OPPD - Cost of Care - Huntingdon - Under 65,OPPD - Under 65 - Huntingdon,Residential Care
Cambridgeshire County Council,04-Nov-22,51301878735,"-1,064.26",THE MANOR CHESHIRE HOME,CARE ESTABLISHMENT,OPPD - Cost of Care - Huntingdon - Under 65,OPPD - Under 65 - Huntingdon,Residential Care
Cambridgeshire County Council,04-Nov-22,51301878735,"-1,064.26",THE MANOR CHESHIRE HOME,CARE ESTABLISHMENT,OPPD - Cost of Care - Huntingdon - Under 65,OPPD - Under 65 - Huntingdon,Residential Care
Cambridgeshire County Council,04-Nov-22,51301878735,"-1,064.26",THE MANOR CHESHIRE HOME,CARE ESTABLISHMENT,OPPD - Cost of Care - Huntingdon - Under 65,OPPD - Under 65 - Huntingdon,Residential Care
Cambridgeshire County Council,04-Nov-22,51301878735,"-1,064.26",THE MANOR CHESHIRE HOME,CARE ESTABLISHMENT,OPPD - Cost of Care - Huntingdon - Under 65,OPPD - Under 65 - Huntingdon,Residential Care
Cambridgeshire County Council,04-Nov-22,51301878735,"-1,064.26",THE MANOR CHESHIRE HOME,CARE ESTABLISHMENT,OPPD - Cost of Care - Huntingdon - Under 65,OPPD - Under 65 - Huntingdon,Residential Care
Cambridgeshire County Council,04-Nov-22,51301878735,"-1,064.26",THE MANOR CHESHIRE HOME,CARE ESTABLISHMENT,OPPD - Cost of Care - Huntingdon - Under 65,OPPD - Under 65 - Huntingdon,Residential Care
Cambridgeshire County Council,04-Nov-22,51301878735,"-1,064.26",THE MANOR CHESHIRE HOME,CARE ESTABLISHMENT,OPPD - Cost of Care - Huntingdon - Under 65,OPPD - Under 65 - Huntingdon,Residential Care
Cambridgeshire County Council,04-Nov-22,51301878735,"-1,064.26",THE MANOR CHESHIRE HOME,CARE ESTABLISHMENT,OPPD - Cost of Care - Huntingdon - Under 65,OPPD - Under 65 - Huntingdon,Residential Care
Cambridgeshire County Council,04-Nov-22,51301878735,"-1,064.26",THE MANOR CHESHIRE HOME,CARE ESTABLISHMENT,OPPD - Cost of Care - Huntingdon - Under 65,OPPD - Under 65 - Huntingdon,Residential Care
Cambridgeshire County Council,04-Nov-22,51301878735,"-1,064.26",THE MANOR CHESHIRE HOME,CARE ESTABLISHMENT,OPPD - Cost of Care - Huntingdon - Under 65,OPPD - Under 65 - Huntingdon,Residential Care
Cambridgeshire County Council,04-Nov-22,51301878735,"-1,064.26",THE MANOR CHESHIRE HOME,CARE ESTABLISHMENT,OPPD - Cost of Care - Huntingdon - Under 65,OPPD - Under 65 - Huntingdon,Residential Care
Cambridgeshire County Council,04-Nov-22,51301878735,"-1,064.26",THE MANOR CHESHIRE HOME,CARE ESTABLISHMENT,OPPD - Cost of Care - Huntingdon - Under 65,OPPD - Under 65 - Huntingdon,Residential Care
Cambridgeshire County Council,04-Nov-22,51301878735,"-1,064.26",THE MANOR CHESHIRE HOME,CARE ESTABLISHMENT,OPPD - Cost of Care - Huntingdon - Under 65,OPPD - Under 65 - Huntingdon,Residential Care
Cambridgeshire County Council,04-Nov-22,51301878735,"-1,064.26",THE MANOR CHESHIRE HOME,CARE ESTABLISHMENT,OPPD - Cost of Care - Huntingdon - Under 65,OPPD - Under 65 - Huntingdon,Residential Care
Cambridgeshire County Council,04-Nov-22,51301878737,"-1,064.26",THE MANOR CHESHIRE HOME,CARE ESTABLISHMENT,OPPD - Cost of Care - Huntingdon - Under 65,OPPD - Under 65 - Huntingdon,Residential Care
Cambridgeshire County Council,04-Nov-22,51301878737,"-1,064.26",THE MANOR CHESHIRE HOME,CARE ESTABLISHMENT,OPPD - Cost of Care - Huntingdon - Under 65,OPPD - Under 65 - Huntingdon,Residential Care
Cambridgeshire County Council,04-Nov-22,51301878737,"-1,064.26",THE MANOR CHESHIRE HOME,CARE ESTABLISHMENT,OPPD - Cost of Care - Huntingdon - Under 65,OPPD - Under 65 - Huntingdon,Residential Care
Cambridgeshire County Council,04-Nov-22,51301878737,"-1,064.26",THE MANOR CHESHIRE HOME,CARE ESTABLISHMENT,OPPD - Cost of Care - Huntingdon - Under 65,OPPD - Under 65 - Huntingdon,Residential Care
Cambridgeshire County Council,04-Nov-22,51301878737,"-1,064.26",THE MANOR CHESHIRE HOME,CARE ESTABLISHMENT,OPPD - Cost of Care - Huntingdon - Under 65,OPPD - Under 65 - Huntingdon,Residential Care
Cambridgeshire County Council,04-Nov-22,51301878737,"-1,064.26",THE MANOR CHESHIRE HOME,CARE ESTABLISHMENT,OPPD - Cost of Care - Huntingdon - Under 65,OPPD - Under 65 - Huntingdon,Residential Care
Cambridgeshire County Council,04-Nov-22,51301878737,"-1,064.26",THE MANOR CHESHIRE HOME,CARE ESTABLISHMENT,OPPD - Cost of Care - Huntingdon - Under 65,OPPD - Under 65 - Huntingdon,Residential Care
Cambridgeshire County Council,04-Nov-22,51301878708,"-1,061.08",AVENUES EAST (AVENUES TRUST GROUP),CARE ESTABLISHMENT,LD - City Locality - Cost of Care,LD - City - Care,Supported Living
Cambridgeshire County Council,04-Nov-22,51301878708,"-1,061.08",AVENUES EAST (AVENUES TRUST GROUP),CARE ESTABLISHMENT,LD - City Locality - Cost of Care,LD - City - Care,Supported Living
Cambridgeshire County Council,04-Nov-22,51301878708,"-1,061.08",AVENUES EAST (AVENUES TRUST GROUP),CARE ESTABLISHMENT,LD - City Locality - Cost of Care,LD - City - Care,Supported Living
Cambridgeshire County Council,04-Nov-22,51301878708,"-1,061.08",AVENUES EAST (AVENUES TRUST GROUP),CARE ESTABLISHMENT,LD - City Locality - Cost of Care,LD - City - Care,Supported Living
Cambridgeshire County Council,04-Nov-22,51301878708,"-1,061.08",AVENUES EAST (AVENUES TRUST GROUP),CARE ESTABLISHMENT,LD - City Locality - Cost of Care,LD - City - Care,Supported Living
Cambridgeshire County Council,04-Nov-22,51301878708,"-1,061.08",AVENUES EAST (AVENUES TRUST GROUP),CARE ESTABLISHMENT,LD - City Locality - Cost of Care,LD - City - Care,Supported Living
Cambridgeshire County Council,04-Nov-22,51301878708,"-1,061.08",AVENUES EAST (AVENUES TRUST GROUP),CARE ESTABLISHMENT,LD - City Locality - Cost of Care,LD - City - Care,Supported Living
Cambridgeshire County Council,04-Nov-22,51301878708,"-1,061.08",AVENUES EAST (AVENUES TRUST GROUP),CARE ESTABLISHMENT,LD - City Locality - Cost of Care,LD - City - Care,Supported Living
Cambridgeshire County Council,04-Nov-22,51301878708,"-1,061.08",AVENUES EAST (AVENUES TRUST GROUP),CARE ESTABLISHMENT,LD - City Locality - Cost of Care,LD - City - Care,Supported Living
Cambridgeshire County Council,04-Nov-22,51301878708,"-1,061.08",AVENUES EAST (AVENUES TRUST GROUP),CARE ESTABLISHMENT,LD - City Locality - Cost of Care,LD - City - Care,Supported Living
Cambridgeshire County Council,04-Nov-22,51301878708,"-1,061.08",AVENUES EAST (AVENUES TRUST GROUP),CARE ESTABLISHMENT,LD - City Locality - Cost of Care,LD - City - Care,Supported Living
Cambridgeshire County Council,04-Nov-22,51301878708,"-1,061.08",AVENUES EAST (AVENUES TRUST GROUP),CARE ESTABLISHMENT,LD - City Locality - Cost of Care,LD - City - Care,Supported Living
Cambridgeshire County Council,04-Nov-22,51301878708,"-1,061.08",AVENUES EAST (AVENUES TRUST GROUP),CARE ESTABLISHMENT,LD - City Locality - Cost of Care,LD - City - Care,Supported Living
Cambridgeshire County Council,04-Nov-22,51301878708,"-1,061.08",AVENUES EAST (AVENUES TRUST GROUP),CARE ESTABLISHMENT,LD - City Locality - Cost of Care,LD - City - Care,Supported Living
Cambridgeshire County Council,04-Nov-22,51301878708,"-1,061.08",AVENUES EAST (AVENUES TRUST GROUP),CARE ESTABLISHMENT,LD - City Locality - Cost of Care,LD - City - Care,Supported Living
Cambridgeshire County Council,04-Nov-22,51301878708,"-1,061.08",AVENUES EAST (AVENUES TRUST GROUP),CARE ESTABLISHMENT,LD - City Locality - Cost of Care,LD - City - Care,Supported Living
Cambridgeshire County Council,04-Nov-22,51301878708,"-1,061.08",AVENUES EAST (AVENUES TRUST GROUP),CARE ESTABLISHMENT,LD - City Locality - Cost of Care,LD - City - Care,Supported Living
Cambridgeshire County Council,04-Nov-22,51301878708,"-1,061.08",AVENUES EAST (AVENUES TRUST GROUP),CARE ESTABLISHMENT,LD - City Locality - Cost of Care,LD - City - Care,Supported Living
Cambridgeshire County Council,04-Nov-22,51301878708,"-1,061.08",AVENUES EAST (AVENUES TRUST GROUP),CARE ESTABLISHMENT,LD - City Locality - Cost of Care,LD - City - Care,Supported Living
Cambridgeshire County Council,04-Nov-22,51301878708,"-1,061.08",AVENUES EAST (AVENUES TRUST GROUP),CARE ESTABLISHMENT,LD - City Locality - Cost of Care,LD - City - Care,Supported Living
Cambridgeshire County Council,04-Nov-22,51301878708,"-1,061.08",AVENUES EAST (AVENUES TRUST GROUP),CARE ESTABLISHMENT,LD - City Locality - Cost of Care,LD - City - Care,Supported Living
Cambridgeshire County Council,04-Nov-22,51301878708,"-1,061.08",AVENUES EAST (AVENUES TRUST GROUP),CARE ESTABLISHMENT,LD - City Locality - Cost of Care,LD - City - Care,Supported Living
Cambridgeshire County Council,04-Nov-22,51301878708,"-1,061.08",AVENUES EAST (AVENUES TRUST GROUP),CARE ESTABLISHMENT,LD - City Locality - Cost of Care,LD - City - Care,Supported Living
Cambridgeshire County Council,04-Nov-22,51301878708,"-1,061.08",AVENUES EAST (AVENUES TRUST GROUP),CARE ESTABLISHMENT,LD - City Locality - Cost of Care,LD - City - Care,Supported Living
Cambridgeshire County Council,04-Nov-22,51301878708,"-1,061.08",AVENUES EAST (AVENUES TRUST GROUP),CARE ESTABLISHMENT,LD - City Locality - Cost of Care,LD - City - Care,Supported Living
Cambridgeshire County Council,04-Nov-22,51301878708,"-1,061.08",AVENUES EAST (AVENUES TRUST GROUP),CARE ESTABLISHMENT,LD - City Locality - Cost of Care,LD - City - Care,Supported Living
Cambridgeshire County Council,04-Nov-22,51301878708,"-1,061.08",AVENUES EAST (AVENUES TRUST GROUP),CARE ESTABLISHMENT,LD - City Locality - Cost of Care,LD - City - Care,Supported Living
Cambridgeshire County Council,04-Nov-22,51301878708,"-1,061.08",AVENUES EAST (AVENUES TRUST GROUP),CARE ESTABLISHMENT,LD - City Locality - Cost of Care,LD - City - Care,Supported Living
Cambridgeshire County Council,04-Nov-22,51301878708,"-1,061.08",AVENUES EAST (AVENUES TRUST GROUP),CARE ESTABLISHMENT,LD - City Locality - Cost of Care,LD - City - Care,Supported Living
Cambridgeshire County Council,04-Nov-22,51301878708,"-1,061.08",AVENUES EAST (AVENUES TRUST GROUP),CARE ESTABLISHMENT,LD - City Locality - Cost of Care,LD - City - Care,Supported Living
Cambridgeshire County Council,04-Nov-22,51301878708,"-1,061.08",AVENUES EAST (AVENUES TRUST GROUP),CARE ESTABLISHMENT,LD - City Locality - Cost of Care,LD - City - Care,Supported Living
Cambridgeshire County Council,04-Nov-22,51301878692,-996.03,Everliving Services Ltd,CARE ESTABLISHMENT,AMH Cambridge South - care,Cambridge Mental Health team,Supported Living
Cambridgeshire County Council,04-Nov-22,51301878692,-996.03,Everliving Services Ltd,CARE ESTABLISHMENT,AMH Cambridge South - care,Cambridge Mental Health team,Supported Living
Cambridgeshire County Council,04-Nov-22,51301878692,-996.03,Everliving Services Ltd,CARE ESTABLISHMENT,AMH Cambridge South - care,Cambridge Mental Health team,Supported Living
Cambridgeshire County Council,04-Nov-22,51301878692,-996.03,Everliving Services Ltd,CARE ESTABLISHMENT,AMH Cambridge South - care,Cambridge Mental Health team,Supported Living
Cambridgeshire County Council,04-Nov-22,51301878692,-996.03,Everliving Services Ltd,CARE ESTABLISHMENT,AMH Cambridge South - care,Cambridge Mental Health team,Supported Living
Cambridgeshire County Council,04-Nov-22,51301878692,-996.03,Everliving Services Ltd,CARE ESTABLISHMENT,AMH Cambridge South - care,Cambridge Mental Health team,Supported Living
Cambridgeshire County Council,04-Nov-22,51301878690,-983.19,CONSENSUS COMMUNITY SUPPORT LTD,CARE ESTABLISHMENT,LD - Young Adults Team,LD - Young Adults - Special Needs,Supported Living
Cambridgeshire County Council,04-Nov-22,51301878732,-923.69,THE MANOR CHESHIRE HOME,CARE ESTABLISHMENT,LD - South Locality - Cost of Care,LD - South Cambs - Care,Residential Care
Cambridgeshire County Council,04-Nov-22,51301878732,-923.69,THE MANOR CHESHIRE HOME,CARE ESTABLISHMENT,LD - South Locality - Cost of Care,LD - South Cambs - Care,Residential Care
Cambridgeshire County Council,04-Nov-22,51301878732,-923.69,THE MANOR CHESHIRE HOME,CARE ESTABLISHMENT,LD - South Locality - Cost of Care,LD - South Cambs - Care,Residential Care
Cambridgeshire County Council,04-Nov-22,51301878732,-923.69,THE MANOR CHESHIRE HOME,CARE ESTABLISHMENT,LD - South Locality - Cost of Care,LD - South Cambs - Care,Residential Care
Cambridgeshire County Council,04-Nov-22,51301878732,-923.69,THE MANOR CHESHIRE HOME,CARE ESTABLISHMENT,LD - South Locality - Cost of Care,LD - South Cambs - Care,Residential Care
Cambridgeshire County Council,04-Nov-22,51301878732,-923.69,THE MANOR CHESHIRE HOME,CARE ESTABLISHMENT,LD - South Locality - Cost of Care,LD - South Cambs - Care,Residential Care
Cambridgeshire County Council,04-Nov-22,51301878732,-923.69,THE MANOR CHESHIRE HOME,CARE ESTABLISHMENT,LD - South Locality - Cost of Care,LD - South Cambs - Care,Residential Care
Cambridgeshire County Council,04-Nov-22,51301878732,-923.69,THE MANOR CHESHIRE HOME,CARE ESTABLISHMENT,LD - South Locality - Cost of Care,LD - South Cambs - Care,Residential Care
Cambridgeshire County Council,04-Nov-22,51301878732,-923.69,THE MANOR CHESHIRE HOME,CARE ESTABLISHMENT,LD - South Locality - Cost of Care,LD - South Cambs - Care,Residential Care
Cambridgeshire County Council,04-Nov-22,51301878732,-923.69,THE MANOR CHESHIRE HOME,CARE ESTABLISHMENT,LD - South Locality - Cost of Care,LD - South Cambs - Care,Residential Care
Cambridgeshire County Council,04-Nov-22,51301878732,-923.69,THE MANOR CHESHIRE HOME,CARE ESTABLISHMENT,LD - South Locality - Cost of Care,LD - South Cambs - Care,Residential Care
Cambridgeshire County Council,04-Nov-22,51301878732,-923.69,THE MANOR CHESHIRE HOME,CARE ESTABLISHMENT,LD - South Locality - Cost of Care,LD - South Cambs - Care,Residential Care
Cambridgeshire County Council,04-Nov-22,51301878732,-923.69,THE MANOR CHESHIRE HOME,CARE ESTABLISHMENT,LD - South Locality - Cost of Care,LD - South Cambs - Care,Residential Care
Cambridgeshire County Council,04-Nov-22,51301878732,-923.69,THE MANOR CHESHIRE HOME,CARE ESTABLISHMENT,LD - South Locality - Cost of Care,LD - South Cambs - Care,Residential Care
Cambridgeshire County Council,04-Nov-22,51301878732,-923.69,THE MANOR CHESHIRE HOME,CARE ESTABLISHMENT,LD - South Locality - Cost of Care,LD - South Cambs - Care,Residential Care
Cambridgeshire County Council,04-Nov-22,51301878732,-923.69,THE MANOR CHESHIRE HOME,CARE ESTABLISHMENT,LD - South Locality - Cost of Care,LD - South Cambs - Care,Residential Care
Cambridgeshire County Council,04-Nov-22,51301878732,-923.69,THE MANOR CHESHIRE HOME,CARE ESTABLISHMENT,LD - South Locality - Cost of Care,LD - South Cambs - Care,Residential Care
Cambridgeshire County Council,04-Nov-22,51301878732,-923.69,THE MANOR CHESHIRE HOME,CARE ESTABLISHMENT,LD - South Locality - Cost of Care,LD - South Cambs - Care,Residential Care
Cambridgeshire County Council,04-Nov-22,51301878732,-923.69,THE MANOR CHESHIRE HOME,CARE ESTABLISHMENT,LD - South Locality - Cost of Care,LD - South Cambs - Care,Residential Care
Cambridgeshire County Council,04-Nov-22,51301878732,-923.69,THE MANOR CHESHIRE HOME,CARE ESTABLISHMENT,LD - South Locality - Cost of Care,LD - South Cambs - Care,Residential Care
Cambridgeshire County Council,04-Nov-22,51301878732,-923.69,THE MANOR CHESHIRE HOME,CARE ESTABLISHMENT,LD - South Locality - Cost of Care,LD - South Cambs - Care,Residential Care
Cambridgeshire County Council,04-Nov-22,51301878732,-923.69,THE MANOR CHESHIRE HOME,CARE ESTABLISHMENT,LD - South Locality - Cost of Care,LD - South Cambs - Care,Residential Care
Cambridgeshire County Council,04-Nov-22,51301878732,-923.69,THE MANOR CHESHIRE HOME,CARE ESTABLISHMENT,LD - South Locality - Cost of Care,LD - South Cambs - Care,Residential Care
Cambridgeshire County Council,04-Nov-22,51301878732,-923.69,THE MANOR CHESHIRE HOME,CARE ESTABLISHMENT,LD - South Locality - Cost of Care,LD - South Cambs - Care,Residential Care
Cambridgeshire County Council,04-Nov-22,51301878732,-923.69,THE MANOR CHESHIRE HOME,CARE ESTABLISHMENT,LD - South Locality - Cost of Care,LD - South Cambs - Care,Residential Care
Cambridgeshire County Council,04-Nov-22,51301878732,-923.69,THE MANOR CHESHIRE HOME,CARE ESTABLISHMENT,LD - South Locality - Cost of Care,LD - South Cambs - Care,Residential Care
Cambridgeshire County Council,04-Nov-22,51301878732,-923.69,THE MANOR CHESHIRE HOME,CARE ESTABLISHMENT,LD - South Locality - Cost of Care,LD - South Cambs - Care,Residential Care
Cambridgeshire County Council,04-Nov-22,51301878732,-923.69,THE MANOR CHESHIRE HOME,CARE ESTABLISHMENT,LD - South Locality - Cost of Care,LD - South Cambs - Care,Residential Care
Cambridgeshire County Council,04-Nov-22,51301878732,-923.69,THE MANOR CHESHIRE HOME,CARE ESTABLISHMENT,LD - South Locality - Cost of Care,LD - South Cambs - Care,Residential Care
Cambridgeshire County Council,04-Nov-22,51301878732,-923.69,THE MANOR CHESHIRE HOME,CARE ESTABLISHMENT,LD - South Locality - Cost of Care,LD - South Cambs - Care,Residential Care
Cambridgeshire County Council,04-Nov-22,51301878732,-923.69,THE MANOR CHESHIRE HOME,CARE ESTABLISHMENT,LD - South Locality - Cost of Care,LD - South Cambs - Care,Residential Care
Cambridgeshire County Council,04-Nov-22,51301878732,-923.69,THE MANOR CHESHIRE HOME,CARE ESTABLISHMENT,LD - South Locality - Cost of Care,LD - South Cambs - Care,Residential Care
Cambridgeshire County Council,04-Nov-22,51301878732,-923.69,THE MANOR CHESHIRE HOME,CARE ESTABLISHMENT,LD - South Locality - Cost of Care,LD - South Cambs - Care,Residential Care
Cambridgeshire County Council,04-Nov-22,51301878732,-923.69,THE MANOR CHESHIRE HOME,CARE ESTABLISHMENT,LD - South Locality - Cost of Care,LD - South Cambs - Care,Residential Care
Cambridgeshire County Council,04-Nov-22,51301878732,-923.69,THE MANOR CHESHIRE HOME,CARE ESTABLISHMENT,LD - South Locality - Cost of Care,LD - South Cambs - Care,Residential Care
Cambridgeshire County Council,04-Nov-22,51301878686,-893.47,AVENUES EAST (AVENUES TRUST GROUP),CARE ESTABLISHMENT,LD - South Locality - Cost of Care,LD - South Cambs - Care,Domiciliary Care
Cambridgeshire County Council,04-Nov-22,51301878686,-893.47,AVENUES EAST (AVENUES TRUST GROUP),CARE ESTABLISHMENT,LD - South Locality - Cost of Care,LD - South Cambs - Care,Domiciliary Care
Cambridgeshire County Council,04-Nov-22,51301878686,-893.47,AVENUES EAST (AVENUES TRUST GROUP),CARE ESTABLISHMENT,LD - South Locality - Cost of Care,LD - South Cambs - Care,Domiciliary Care
Cambridgeshire County Council,04-Nov-22,51301878686,-893.47,AVENUES EAST (AVENUES TRUST GROUP),CARE ESTABLISHMENT,LD - South Locality - Cost of Care,LD - South Cambs - Care,Domiciliary Care
Cambridgeshire County Council,04-Nov-22,51301878686,-893.47,AVENUES EAST (AVENUES TRUST GROUP),CARE ESTABLISHMENT,LD - South Locality - Cost of Care,LD - South Cambs - Care,Domiciliary Care
Cambridgeshire County Council,04-Nov-22,51301878686,-893.47,AVENUES EAST (AVENUES TRUST GROUP),CARE ESTABLISHMENT,LD - South Locality - Cost of Care,LD - South Cambs - Care,Domiciliary Care
Cambridgeshire County Council,04-Nov-22,51301878686,-893.47,AVENUES EAST (AVENUES TRUST GROUP),CARE ESTABLISHMENT,LD - South Locality - Cost of Care,LD - South Cambs - Care,Domiciliary Care
Cambridgeshire County Council,04-Nov-22,51301878686,-893.47,AVENUES EAST (AVENUES TRUST GROUP),CARE ESTABLISHMENT,LD - South Locality - Cost of Care,LD - South Cambs - Care,Domiciliary Care
Cambridgeshire County Council,04-Nov-22,51301878686,-893.47,AVENUES EAST (AVENUES TRUST GROUP),CARE ESTABLISHMENT,LD - South Locality - Cost of Care,LD - South Cambs - Care,Domiciliary Care
Cambridgeshire County Council,04-Nov-22,51301878686,-893.47,AVENUES EAST (AVENUES TRUST GROUP),CARE ESTABLISHMENT,LD - South Locality - Cost of Care,LD - South Cambs - Care,Domiciliary Care
Cambridgeshire County Council,04-Nov-22,51301878686,-893.47,AVENUES EAST (AVENUES TRUST GROUP),CARE ESTABLISHMENT,LD - South Locality - Cost of Care,LD - South Cambs - Care,Domiciliary Care
Cambridgeshire County Council,04-Nov-22,51301878686,-893.47,AVENUES EAST (AVENUES TRUST GROUP),CARE ESTABLISHMENT,LD - South Locality - Cost of Care,LD - South Cambs - Care,Domiciliary Care
Cambridgeshire County Council,04-Nov-22,51301878686,-893.47,AVENUES EAST (AVENUES TRUST GROUP),CARE ESTABLISHMENT,LD - South Locality - Cost of Care,LD - South Cambs - Care,Domiciliary Care
Cambridgeshire County Council,04-Nov-22,51301878686,-893.47,AVENUES EAST (AVENUES TRUST GROUP),CARE ESTABLISHMENT,LD - South Locality - Cost of Care,LD - South Cambs - Care,Domiciliary Care
Cambridgeshire County Council,04-Nov-22,51301878686,-893.47,AVENUES EAST (AVENUES TRUST GROUP),CARE ESTABLISHMENT,LD - South Locality - Cost of Care,LD - South Cambs - Care,Domiciliary Care
Cambridgeshire County Council,04-Nov-22,51301878686,-893.47,AVENUES EAST (AVENUES TRUST GROUP),CARE ESTABLISHMENT,LD - South Locality - Cost of Care,LD - South Cambs - Care,Domiciliary Care
Cambridgeshire County Council,04-Nov-22,51301878686,-893.47,AVENUES EAST (AVENUES TRUST GROUP),CARE ESTABLISHMENT,LD - South Locality - Cost of Care,LD - South Cambs - Care,Domiciliary Care
Cambridgeshire County Council,04-Nov-22,51301878686,-893.47,AVENUES EAST (AVENUES TRUST GROUP),CARE ESTABLISHMENT,LD - South Locality - Cost of Care,LD - South Cambs - Care,Domiciliary Care
Cambridgeshire County Council,04-Nov-22,51301878686,-893.47,AVENUES EAST (AVENUES TRUST GROUP),CARE ESTABLISHMENT,LD - South Locality - Cost of Care,LD - South Cambs - Care,Domiciliary Care
Cambridgeshire County Council,04-Nov-22,51301878686,-893.47,AVENUES EAST (AVENUES TRUST GROUP),CARE ESTABLISHMENT,LD - South Locality - Cost of Care,LD - South Cambs - Care,Domiciliary Care
Cambridgeshire County Council,04-Nov-22,51301878686,-893.47,AVENUES EAST (AVENUES TRUST GROUP),CARE ESTABLISHMENT,LD - South Locality - Cost of Care,LD - South Cambs - Care,Domiciliary Care
Cambridgeshire County Council,04-Nov-22,51301878686,-893.47,AVENUES EAST (AVENUES TRUST GROUP),CARE ESTABLISHMENT,LD - South Locality - Cost of Care,LD - South Cambs - Care,Domiciliary Care
Cambridgeshire County Council,04-Nov-22,51301878686,-893.47,AVENUES EAST (AVENUES TRUST GROUP),CARE ESTABLISHMENT,LD - South Locality - Cost of Care,LD - South Cambs - Care,Domiciliary Care
Cambridgeshire County Council,04-Nov-22,51301878686,-893.47,AVENUES EAST (AVENUES TRUST GROUP),CARE ESTABLISHMENT,LD - South Locality - Cost of Care,LD - South Cambs - Care,Domiciliary Care
Cambridgeshire County Council,04-Nov-22,51301878686,-893.47,AVENUES EAST (AVENUES TRUST GROUP),CARE ESTABLISHMENT,LD - South Locality - Cost of Care,LD - South Cambs - Care,Domiciliary Care
Cambridgeshire County Council,04-Nov-22,51301878686,-893.47,AVENUES EAST (AVENUES TRUST GROUP),CARE ESTABLISHMENT,LD - South Locality - Cost of Care,LD - South Cambs - Care,Domiciliary Care
Cambridgeshire County Council,04-Nov-22,51301878686,-893.47,AVENUES EAST (AVENUES TRUST GROUP),CARE ESTABLISHMENT,LD - South Locality - Cost of Care,LD - South Cambs - Care,Domiciliary Care
Cambridgeshire County Council,04-Nov-22,51301878686,-893.47,AVENUES EAST (AVENUES TRUST GROUP),CARE ESTABLISHMENT,LD - South Locality - Cost of Care,LD - South Cambs - Care,Domiciliary Care
Cambridgeshire County Council,04-Nov-22,51301878686,-893.47,AVENUES EAST (AVENUES TRUST GROUP),CARE ESTABLISHMENT,LD - South Locality - Cost of Care,LD - South Cambs - Care,Domiciliary Care
Cambridgeshire County Council,04-Nov-22,51301878686,-893.47,AVENUES EAST (AVENUES TRUST GROUP),CARE ESTABLISHMENT,LD - South Locality - Cost of Care,LD - South Cambs - Care,Domiciliary Care
Cambridgeshire County Council,04-Nov-22,51301878686,-893.47,AVENUES EAST (AVENUES TRUST GROUP),CARE ESTABLISHMENT,LD - South Locality - Cost of Care,LD - South Cambs - Care,Domiciliary Care
Cambridgeshire County Council,04-Nov-22,51301878733,-772.94,THE MANOR CHESHIRE HOME,CARE ESTABLISHMENT,LD - Hunts Locality - Cost of Care,LD - Huntingdonshire - Special Needs,Residential Care
Cambridgeshire County Council,04-Nov-22,51301878733,-772.94,THE MANOR CHESHIRE HOME,CARE ESTABLISHMENT,LD - Hunts Locality - Cost of Care,LD - Huntingdonshire - Special Needs,Residential Care
Cambridgeshire County Council,04-Nov-22,51301878733,-772.94,THE MANOR CHESHIRE HOME,CARE ESTABLISHMENT,LD - Hunts Locality - Cost of Care,LD - Huntingdonshire - Special Needs,Residential Care
Cambridgeshire County Council,04-Nov-22,51301878733,-772.94,THE MANOR CHESHIRE HOME,CARE ESTABLISHMENT,LD - Hunts Locality - Cost of Care,LD - Huntingdonshire - Special Needs,Residential Care
Cambridgeshire County Council,04-Nov-22,51301878733,-772.94,THE MANOR CHESHIRE HOME,CARE ESTABLISHMENT,LD - Hunts Locality - Cost of Care,LD - Huntingdonshire - Special Needs,Residential Care
Cambridgeshire County Council,04-Nov-22,51301878733,-772.94,THE MANOR CHESHIRE HOME,CARE ESTABLISHMENT,LD - Hunts Locality - Cost of Care,LD - Huntingdonshire - Special Needs,Residential Care
Cambridgeshire County Council,04-Nov-22,51301878733,-772.94,THE MANOR CHESHIRE HOME,CARE ESTABLISHMENT,LD - Hunts Locality - Cost of Care,LD - Huntingdonshire - Special Needs,Residential Care
Cambridgeshire County Council,04-Nov-22,51301878733,-772.94,THE MANOR CHESHIRE HOME,CARE ESTABLISHMENT,LD - Hunts Locality - Cost of Care,LD - Huntingdonshire - Special Needs,Residential Care
Cambridgeshire County Council,04-Nov-22,51301878733,-772.94,THE MANOR CHESHIRE HOME,CARE ESTABLISHMENT,LD - Hunts Locality - Cost of Care,LD - Huntingdonshire - Special Needs,Residential Care
Cambridgeshire County Council,04-Nov-22,51301878733,-772.94,THE MANOR CHESHIRE HOME,CARE ESTABLISHMENT,LD - Hunts Locality - Cost of Care,LD - Huntingdonshire - Special Needs,Residential Care
Cambridgeshire County Council,04-Nov-22,51301878733,-772.94,THE MANOR CHESHIRE HOME,CARE ESTABLISHMENT,LD - Hunts Locality - Cost of Care,LD - Huntingdonshire - Special Needs,Residential Care
Cambridgeshire County Council,04-Nov-22,51301878733,-772.94,THE MANOR CHESHIRE HOME,CARE ESTABLISHMENT,LD - Hunts Locality - Cost of Care,LD - Huntingdonshire - Special Needs,Residential Care
Cambridgeshire County Council,04-Nov-22,51301878733,-772.94,THE MANOR CHESHIRE HOME,CARE ESTABLISHMENT,LD - Hunts Locality - Cost of Care,LD - Huntingdonshire - Special Needs,Residential Care
Cambridgeshire County Council,04-Nov-22,51301878733,-772.94,THE MANOR CHESHIRE HOME,CARE ESTABLISHMENT,LD - Hunts Locality - Cost of Care,LD - Huntingdonshire - Special Needs,Residential Care
Cambridgeshire County Council,04-Nov-22,51301878733,-772.94,THE MANOR CHESHIRE HOME,CARE ESTABLISHMENT,LD - Hunts Locality - Cost of Care,LD - Huntingdonshire - Special Needs,Residential Care
Cambridgeshire County Council,04-Nov-22,51301878733,-772.94,THE MANOR CHESHIRE HOME,CARE ESTABLISHMENT,LD - Hunts Locality - Cost of Care,LD - Huntingdonshire - Special Needs,Residential Care
Cambridgeshire County Council,04-Nov-22,51301878733,-772.94,THE MANOR CHESHIRE HOME,CARE ESTABLISHMENT,LD - Hunts Locality - Cost of Care,LD - Huntingdonshire - Special Needs,Residential Care
Cambridgeshire County Council,04-Nov-22,51301878733,-772.94,THE MANOR CHESHIRE HOME,CARE ESTABLISHMENT,LD - Hunts Locality - Cost of Care,LD - Huntingdonshire - Special Needs,Residential Care
Cambridgeshire County Council,04-Nov-22,51301878733,-772.94,THE MANOR CHESHIRE HOME,CARE ESTABLISHMENT,LD - Hunts Locality - Cost of Care,LD - Huntingdonshire - Special Needs,Residential Care
Cambridgeshire County Council,04-Nov-22,51301878733,-772.94,THE MANOR CHESHIRE HOME,CARE ESTABLISHMENT,LD - Hunts Locality - Cost of Care,LD - Huntingdonshire - Special Needs,Residential Care
Cambridgeshire County Council,04-Nov-22,51301878733,-772.94,THE MANOR CHESHIRE HOME,CARE ESTABLISHMENT,LD - Hunts Locality - Cost of Care,LD - Huntingdonshire - Special Needs,Residential Care
Cambridgeshire County Council,04-Nov-22,51301878733,-772.94,THE MANOR CHESHIRE HOME,CARE ESTABLISHMENT,LD - Hunts Locality - Cost of Care,LD - Huntingdonshire - Special Needs,Residential Care
Cambridgeshire County Council,04-Nov-22,51301878733,-772.94,THE MANOR CHESHIRE HOME,CARE ESTABLISHMENT,LD - Hunts Locality - Cost of Care,LD - Huntingdonshire - Special Needs,Residential Care
Cambridgeshire County Council,04-Nov-22,51301878733,-772.94,THE MANOR CHESHIRE HOME,CARE ESTABLISHMENT,LD - Hunts Locality - Cost of Care,LD - Huntingdonshire - Special Needs,Residential Care
Cambridgeshire County Council,04-Nov-22,51301878733,-772.94,THE MANOR CHESHIRE HOME,CARE ESTABLISHMENT,LD - Hunts Locality - Cost of Care,LD - Huntingdonshire - Special Needs,Residential Care
Cambridgeshire County Council,04-Nov-22,51301878733,-772.94,THE MANOR CHESHIRE HOME,CARE ESTABLISHMENT,LD - Hunts Locality - Cost of Care,LD - Huntingdonshire - Special Needs,Residential Care
Cambridgeshire County Council,04-Nov-22,51301878733,-772.94,THE MANOR CHESHIRE HOME,CARE ESTABLISHMENT,LD - Hunts Locality - Cost of Care,LD - Huntingdonshire - Special Needs,Residential Care
Cambridgeshire County Council,04-Nov-22,51301878733,-772.94,THE MANOR CHESHIRE HOME,CARE ESTABLISHMENT,LD - Hunts Locality - Cost of Care,LD - Huntingdonshire - Special Needs,Residential Care
Cambridgeshire County Council,04-Nov-22,51301878733,-772.94,THE MANOR CHESHIRE HOME,CARE ESTABLISHMENT,LD - Hunts Locality - Cost of Care,LD - Huntingdonshire - Special Needs,Residential Care
Cambridgeshire County Council,04-Nov-22,51301878733,-772.94,THE MANOR CHESHIRE HOME,CARE ESTABLISHMENT,LD - Hunts Locality - Cost of Care,LD - Huntingdonshire - Special Needs,Residential Care
Cambridgeshire County Council,04-Nov-22,51301878733,-772.94,THE MANOR CHESHIRE HOME,CARE ESTABLISHMENT,LD - Hunts Locality - Cost of Care,LD - Huntingdonshire - Special Needs,Residential Care
Cambridgeshire County Council,04-Nov-22,51301878733,-772.94,THE MANOR CHESHIRE HOME,CARE ESTABLISHMENT,LD - Hunts Locality - Cost of Care,LD - Huntingdonshire - Special Needs,Residential Care
Cambridgeshire County Council,04-Nov-22,51301878733,-772.94,THE MANOR CHESHIRE HOME,CARE ESTABLISHMENT,LD - Hunts Locality - Cost of Care,LD - Huntingdonshire - Special Needs,Residential Care
Cambridgeshire County Council,04-Nov-22,51301878733,-772.94,THE MANOR CHESHIRE HOME,CARE ESTABLISHMENT,LD - Hunts Locality - Cost of Care,LD - Huntingdonshire - Special Needs,Residential Care
Cambridgeshire County Council,04-Nov-22,51301878733,-772.94,THE MANOR CHESHIRE HOME,CARE ESTABLISHMENT,LD - Hunts Locality - Cost of Care,LD - Huntingdonshire - Special Needs,Residential Care
Cambridgeshire County Council,04-Nov-22,51301878706,-737.90,Everliving Services Ltd,CARE ESTABLISHMENT,AMH Hunts and Fens - care,Hunts Mental Health Team,Supported Living
Cambridgeshire County Council,04-Nov-22,51301878706,-737.90,Everliving Services Ltd,CARE ESTABLISHMENT,AMH Hunts and Fens - care,Hunts Mental Health Team,Supported Living
Cambridgeshire County Council,04-Nov-22,51301878706,-737.90,Everliving Services Ltd,CARE ESTABLISHMENT,AMH Hunts and Fens - care,Hunts Mental Health Team,Supported Living
Cambridgeshire County Council,04-Nov-22,51301878706,-737.90,Everliving Services Ltd,CARE ESTABLISHMENT,AMH Hunts and Fens - care,Hunts Mental Health Team,Supported Living
Cambridgeshire County Council,04-Nov-22,51301878706,-737.90,Everliving Services Ltd,CARE ESTABLISHMENT,AMH Hunts and Fens - care,Hunts Mental Health Team,Supported Living
Cambridgeshire County Council,04-Nov-22,51301878706,-737.90,Everliving Services Ltd,CARE ESTABLISHMENT,AMH Hunts and Fens - care,Hunts Mental Health Team,Supported Living
Cambridgeshire County Council,04-Nov-22,51301878706,-737.90,Everliving Services Ltd,CARE ESTABLISHMENT,AMH Hunts and Fens - care,Hunts Mental Health Team,Supported Living
Cambridgeshire County Council,04-Nov-22,51301878706,-737.90,Everliving Services Ltd,CARE ESTABLISHMENT,AMH Hunts and Fens - care,Hunts Mental Health Team,Supported Living
Cambridgeshire County Council,04-Nov-22,51301878706,-737.90,Everliving Services Ltd,CARE ESTABLISHMENT,AMH Hunts and Fens - care,Hunts Mental Health Team,Supported Living
Cambridgeshire County Council,04-Nov-22,51301878706,-737.90,Everliving Services Ltd,CARE ESTABLISHMENT,AMH Hunts and Fens - care,Hunts Mental Health Team,Supported Living
Cambridgeshire County Council,04-Nov-22,51301878706,-737.90,Everliving Services Ltd,CARE ESTABLISHMENT,AMH Hunts and Fens - care,Hunts Mental Health Team,Supported Living
Cambridgeshire County Council,04-Nov-22,51301878706,-737.90,Everliving Services Ltd,CARE ESTABLISHMENT,AMH Hunts and Fens - care,Hunts Mental Health Team,Supported Living
Cambridgeshire County Council,04-Nov-22,51301878706,-737.90,Everliving Services Ltd,CARE ESTABLISHMENT,AMH Hunts and Fens - care,Hunts Mental Health Team,Supported Living
Cambridgeshire County Council,04-Nov-22,51301878706,-737.90,Everliving Services Ltd,CARE ESTABLISHMENT,AMH Hunts and Fens - care,Hunts Mental Health Team,Supported Living
Cambridgeshire County Council,04-Nov-22,51301878727,-725.58,THE MANOR CHESHIRE HOME,CARE ESTABLISHMENT,LD - Hunts Locality - Cost of Care,LD - Huntingdonshire - Care,Residential Care
Cambridgeshire County Council,04-Nov-22,51301878727,-725.58,THE MANOR CHESHIRE HOME,CARE ESTABLISHMENT,LD - Hunts Locality - Cost of Care,LD - Huntingdonshire - Care,Residential Care
Cambridgeshire County Council,04-Nov-22,51301878727,-725.58,THE MANOR CHESHIRE HOME,CARE ESTABLISHMENT,LD - Hunts Locality - Cost of Care,LD - Huntingdonshire - Care,Residential Care
Cambridgeshire County Council,04-Nov-22,51301878727,-725.58,THE MANOR CHESHIRE HOME,CARE ESTABLISHMENT,LD - Hunts Locality - Cost of Care,LD - Huntingdonshire - Care,Residential Care
Cambridgeshire County Council,04-Nov-22,51301878727,-725.58,THE MANOR CHESHIRE HOME,CARE ESTABLISHMENT,LD - Hunts Locality - Cost of Care,LD - Huntingdonshire - Care,Residential Care
